Organisation Name,Organisation Code,Unique Ref No,Effective Date,Directorate  where expenditure incurred,Supplier name ,Payment Date,Net Amount,Purpose of Spend,Procurement Classification (Higher Level),Procurement Classification (Lower Level),,Capital/Revenue
Walsall Council,http://opendatacommunities.org/id/metropolitan-district-council/walsall,WC70-1,31/07/2016,Childrens,247 CARS (WILLENHALL) LIMITED,12/07/2016,"9,830.00",52000-WITH DRIVER-HIRE OF VEHICLES,SCHOOL TRANSPORT,Transport,,Revenue
Walsall Council,http://opendatacommunities.org/id/metropolitan-district-council/walsall,WC70-2,31/07/2016,Change and Governance,2BM LIMITED,27/07/2016,"2,400.00",63820-RECHARGE FOR MAINTENANCE/APPLICATION COSTS-COMPUTER,DATA CENTRES,Supplies & Services,,Revenue
Walsall Council,http://opendatacommunities.org/id/metropolitan-district-council/walsall,WC70-3,31/07/2016,Change and Governance,39 ESSEX STREET LLP PFA,01/07/2016,-972.00,63000-PROFESSIONAL FEES AND SERVICES,CORPORATE EXPENSES,Supplies & Services,,Revenue
Walsall Council,http://opendatacommunities.org/id/metropolitan-district-council/walsall,WC70-4,31/07/2016,Change and Governance,4 SIGHT EYECARE CENTRE 002,21/07/2016,916.67,63102-CONSULTANTS FEES - CORPORATE,HR DIRECT SERVICES,Supplies & Services,,Revenue
Walsall Council,http://opendatacommunities.org/id/metropolitan-district-council/walsall,WC70-5,31/07/2016,Childrens,5 CARE SERVICES LTD,04/07/2016,966.00,63000-PROFESSIONAL FEES AND SERVICES,DIRECTLY COMMISSIONED NURSING SERVICES,Supplies & Services,,Revenue
Walsall Council,http://opendatacommunities.org/id/metropolitan-district-council/walsall,WC70-6,31/07/2016,Childrens,5 CARE SERVICES LTD,08/07/2016,"1,011.00",63000-PROFESSIONAL FEES AND SERVICES,DIRECTLY COMMISSIONED NURSING SERVICES,Supplies & Services,,Revenue
Walsall Council,http://opendatacommunities.org/id/metropolitan-district-council/walsall,WC70-7,31/07/2016,Childrens,5 CARE SERVICES LTD,08/07/2016,"1,034.50",63000-PROFESSIONAL FEES AND SERVICES,DIRECTLY COMMISSIONED NURSING SERVICES,Supplies & Services,,Revenue
Walsall Council,http://opendatacommunities.org/id/metropolitan-district-council/walsall,WC70-8,31/07/2016,Childrens,5 CARE SERVICES LTD,08/07/2016,"1,178.00",63000-PROFESSIONAL FEES AND SERVICES,DIRECTLY COMMISSIONED NURSING SERVICES,Supplies & Services,,Revenue
Walsall Council,http://opendatacommunities.org/id/metropolitan-district-council/walsall,WC70-9,31/07/2016,Childrens,5 CARE SERVICES LTD,04/07/2016,"1,644.00",63000-PROFESSIONAL FEES AND SERVICES,DIRECTLY COMMISSIONED NURSING SERVICES,Supplies & Services,,Revenue
Walsall Council,http://opendatacommunities.org/id/metropolitan-district-council/walsall,WC70-10,31/07/2016,Childrens,5 CARE SERVICES LTD,08/07/2016,"1,795.00",63000-PROFESSIONAL FEES AND SERVICES,DIRECTLY COMMISSIONED NURSING SERVICES,Supplies & Services,,Revenue
Walsall Council,http://opendatacommunities.org/id/metropolitan-district-council/walsall,WC70-11,31/07/2016,Social Care & Inclusion,5 CARE SERVICES LTD,01/07/2016,"5,064.48",73372-DOMICILIARY CARE,OP COMMISSIONING,Third Party Payments,,Revenue
Walsall Council,http://opendatacommunities.org/id/metropolitan-district-council/walsall,WC70-12,31/07/2016,Social Care & Inclusion,5 CARE SERVICES LTD,22/07/2016,"5,625.24",73372-DOMICILIARY CARE,OP COMMISSIONING,Third Party Payments,,Revenue
Walsall Council,http://opendatacommunities.org/id/metropolitan-district-council/walsall,WC70-13,31/07/2016,Social Care & Inclusion,5 CARE SERVICES LTD,20/07/2016,"39,308.04",73372-DOMICILIARY CARE,OP COMMISSIONING,Third Party Payments,,Revenue
Walsall Council,http://opendatacommunities.org/id/metropolitan-district-council/walsall,WC70-14,31/07/2016,Economy & Environment,A ASHTON,01/07/2016,269.50,60006-NEW-FURNITURE & EQUIPMENT,ARBORETUM,Supplies & Services,,Revenue
Walsall Council,http://opendatacommunities.org/id/metropolitan-district-council/walsall,WC70-15,31/07/2016,Economy & Environment,A D T FIRE AND SECURITY PLC,07/07/2016,359.04,60008-MAINTENANCE-FURNITURE & EQUIPMENT,LIBRARY OPERATIONS CENTRAL,Supplies & Services,,Revenue
Walsall Council,http://opendatacommunities.org/id/metropolitan-district-council/walsall,WC70-16,31/07/2016,Change and Governance,A D T FIRE AND SECURITY PLC,06/07/2016,436.00,60008-MAINTENANCE-FURNITURE & EQUIPMENT,ACCOMMODATION SERVICES MANAGEMENT,Supplies & Services,,Revenue
Walsall Council,http://opendatacommunities.org/id/metropolitan-district-council/walsall,WC70-17,31/07/2016,Economy & Environment,A D T FIRE AND SECURITY PLC,25/07/2016,784.06,"40000-REPAIRS,ALTERATIONS & MAINTENANCE-PREM",ARBORETUM,Premises,,Revenue
Walsall Council,http://opendatacommunities.org/id/metropolitan-district-council/walsall,WC70-18,31/07/2016,Change and Governance,A D T FIRE AND SECURITY PLC,21/07/2016,"1,050.00",73002-SECURITY-PRIV CONTRACTOR FEES,CENTRALISED MAINTENANCE,Third Party Payments,,Revenue
Walsall Council,http://opendatacommunities.org/id/metropolitan-district-council/walsall,WC70-19,31/07/2016,Change and Governance,A F BLAKEMORE & SON LTD,14/07/2016,239.49,61016-FOOD AND BEVERAGES-PROVISIONS,WALSALL TOWN HALL,Supplies & Services,,Revenue
Walsall Council,http://opendatacommunities.org/id/metropolitan-district-council/walsall,WC70-20,31/07/2016,Economy & Environment,A F BLAKEMORE & SON LTD,12/07/2016,272.83,61008-CONFECTIONERY/SNACKS-PROVISIONS,OAK PARK,Supplies & Services,,Revenue
Walsall Council,http://opendatacommunities.org/id/metropolitan-district-council/walsall,WC70-21,31/07/2016,Economy & Environment,A F BLAKEMORE & SON LTD,18/07/2016,282.15,61008-CONFECTIONERY/SNACKS-PROVISIONS,WALSALL GALA CENTRE,Supplies & Services,,Revenue
Walsall Council,http://opendatacommunities.org/id/metropolitan-district-council/walsall,WC70-22,31/07/2016,Social Care & Inclusion,A F BLAKEMORE & SON LTD,14/07/2016,288.57,61016-FOOD AND BEVERAGES-PROVISIONS,GOSCOTE,Supplies & Services,,Revenue
Walsall Council,http://opendatacommunities.org/id/metropolitan-district-council/walsall,WC70-23,31/07/2016,Economy & Environment,A F BLAKEMORE & SON LTD,18/07/2016,350.72,61018-DRINKS-PROVISIONS,WALSALL GALA CENTRE,Supplies & Services,,Revenue
Walsall Council,http://opendatacommunities.org/id/metropolitan-district-council/walsall,WC70-24,31/07/2016,Economy & Environment,A F BLAKEMORE & SON LTD,18/07/2016,396.52,61018-DRINKS-PROVISIONS,WALSALL GALA CENTRE,Supplies & Services,,Revenue
Walsall Council,http://opendatacommunities.org/id/metropolitan-district-council/walsall,WC70-25,31/07/2016,Social Care & Inclusion,A F BLAKEMORE & SON LTD,18/07/2016,429.47,61016-FOOD AND BEVERAGES-PROVISIONS,GOSCOTE,Supplies & Services,,Revenue
Walsall Council,http://opendatacommunities.org/id/metropolitan-district-council/walsall,WC70-26,31/07/2016,Social Care & Inclusion,A F BLAKEMORE & SON LTD,22/07/2016,464.71,61016-FOOD AND BEVERAGES-PROVISIONS,REABLEMENT TEAM - HOLLY BANK,Supplies & Services,,Revenue
Walsall Council,http://opendatacommunities.org/id/metropolitan-district-council/walsall,WC70-27,31/07/2016,Social Care & Inclusion,A F BLAKEMORE & SON LTD,22/07/2016,639.75,61016-FOOD AND BEVERAGES-PROVISIONS,REABLEMENT TEAM - HOLLY BANK,Supplies & Services,,Revenue
Walsall Council,http://opendatacommunities.org/id/metropolitan-district-council/walsall,WC70-28,31/07/2016,Childrens,REDACTED,04/07/2016,340.16,74006-HOLIDAY/CHRISTMAS ALLOWANCE-FOSTER CARERS-OTH AGENCY PROVISION,INTERNAL FOSTER CARE PROVISION,Third Party Payments,,Revenue
Walsall Council,http://opendatacommunities.org/id/metropolitan-district-council/walsall,WC70-29,31/07/2016,Economy & Environment,A KARIMS CHUCKERY PHARMACY,21/07/2016,17.70,63000-PROFESSIONAL FEES AND SERVICES,SEXUAL HEALTH,Supplies & Services,,Revenue
Walsall Council,http://opendatacommunities.org/id/metropolitan-district-council/walsall,WC70-30,31/07/2016,Economy & Environment,A KARIMS CHUCKERY PHARMACY,20/07/2016,26.55,63000-PROFESSIONAL FEES AND SERVICES,SEXUAL HEALTH,Supplies & Services,,Revenue
Walsall Council,http://opendatacommunities.org/id/metropolitan-district-council/walsall,WC70-31,31/07/2016,Economy & Environment,A KARIMS CHUCKERY PHARMACY,21/07/2016,"1,164.67",71007-CONTRIBUTION TO PCT,PUBLIC HEALTH BUSINESS SUPPORT,Third Party Payments,,Revenue
Walsall Council,http://opendatacommunities.org/id/metropolitan-district-council/walsall,WC70-32,31/07/2016,Economy & Environment,A KARIMS CHUCKERY PHARMACY,20/07/2016,"1,418.29",71007-CONTRIBUTION TO PCT,PUBLIC HEALTH BUSINESS SUPPORT,Third Party Payments,,Revenue
Walsall Council,http://opendatacommunities.org/id/metropolitan-district-council/walsall,WC70-33,31/07/2016,Childrens,REDACTED,05/07/2016,464.00,76000-TRANSFER PAYMENTS - SOCIAL SERVICES CLIENTS,TRANSITION AND LEAVING CARE,Transfer Payments,,Revenue
Walsall Council,http://opendatacommunities.org/id/metropolitan-district-council/walsall,WC70-34,31/07/2016,Childrens,REDACTED,19/07/2016,464.00,76000-TRANSFER PAYMENTS - SOCIAL SERVICES CLIENTS,TRANSITION AND LEAVING CARE,Transfer Payments,,Revenue
Walsall Council,http://opendatacommunities.org/id/metropolitan-district-council/walsall,WC70-35,31/07/2016,Childrens,REDACTED,12/07/2016,345.24,76422-DIRECT PAYMENTS TO SOCIAL SERVICES CLIENTS,FAMILY SUPPORT - DIRECT PAYMENTS,Transfer Payments,,Revenue
Walsall Council,http://opendatacommunities.org/id/metropolitan-district-council/walsall,WC70-36,31/07/2016,Childrens,ABACUS FOSTERING LTD,06/07/2016,"4,071.48",74037-INDEPENDENT FOSTER CARE-OTH AGENCY PROVISION,EXTERNAL FOSTER CARE PROVISION,Third Party Payments,,Revenue
Walsall Council,http://opendatacommunities.org/id/metropolitan-district-council/walsall,WC70-37,31/07/2016,Childrens,REDACTED,04/07/2016,650.92,74006-HOLIDAY/CHRISTMAS ALLOWANCE-FOSTER CARERS-OTH AGENCY PROVISION,INTERNAL FOSTER CARE PROVISION,Third Party Payments,,Revenue
Walsall Council,http://opendatacommunities.org/id/metropolitan-district-council/walsall,WC70-38,31/07/2016,Social Care & Inclusion,ABBEY COURT NURSING & RESIDEN,20/07/2016,"1,654.07",73373-RESIDENTIAL & NURSING CARE PLACEMENTS,OP COMMISSIONING,Third Party Payments,,Revenue
Walsall Council,http://opendatacommunities.org/id/metropolitan-district-council/walsall,WC70-39,31/07/2016,Social Care & Inclusion,ABBEY COURT NURSING & RESIDEN,20/07/2016,"2,081.43",73373-RESIDENTIAL & NURSING CARE PLACEMENTS,MH COMMISSIONING,Third Party Payments,,Revenue
Walsall Council,http://opendatacommunities.org/id/metropolitan-district-council/walsall,WC70-40,31/07/2016,Social Care & Inclusion,ABBEY HEALTHCARE HOMES LTD,12/07/2016,"1,699.16",73373-RESIDENTIAL & NURSING CARE PLACEMENTS,YADS COMMISSIONING,Third Party Payments,,Revenue
Walsall Council,http://opendatacommunities.org/id/metropolitan-district-council/walsall,WC70-41,31/07/2016,Social Care & Inclusion,ABBEY HEALTHCARE HOMES LTD,12/07/2016,"2,294.08",73373-RESIDENTIAL & NURSING CARE PLACEMENTS,YADS COMMISSIONING,Third Party Payments,,Revenue
Walsall Council,http://opendatacommunities.org/id/metropolitan-district-council/walsall,WC70-42,31/07/2016,Childrens,ABC DAY NURSERY (WILLENHALL) LIMITED,13/07/2016,"3,051.36",66505-OTHER-GRANTS TO OTHER ORGS,EARLY YEARS - 2 YR OLDS,Third Party Payments,,Revenue
Walsall Council,http://opendatacommunities.org/id/metropolitan-district-council/walsall,WC70-43,31/07/2016,Childrens,ABC DAY NURSERY (WILLENHALL) LIMITED,15/07/2016,"18,232.10",66505-OTHER-GRANTS TO OTHER ORGS,EARLY YEARS - 3 YR OLDS,Third Party Payments,,Revenue
Walsall Council,http://opendatacommunities.org/id/metropolitan-district-council/walsall,WC70-44,31/07/2016,Childrens,ABC FOSTERING,15/07/2016,"2,779.71",74037-INDEPENDENT FOSTER CARE-OTH AGENCY PROVISION,EXTERNAL FOSTER CARE PROVISION,Third Party Payments,,Revenue
Walsall Council,http://opendatacommunities.org/id/metropolitan-district-council/walsall,WC70-45,31/07/2016,Childrens,ABC FOSTERING,15/07/2016,"2,823.42",74037-INDEPENDENT FOSTER CARE-OTH AGENCY PROVISION,EXTERNAL FOSTER CARE PROVISION,Third Party Payments,,Revenue
Walsall Council,http://opendatacommunities.org/id/metropolitan-district-council/walsall,WC70-46,31/07/2016,Childrens,ABC FOSTERING,15/07/2016,"2,823.42",74037-INDEPENDENT FOSTER CARE-OTH AGENCY PROVISION,EXTERNAL FOSTER CARE PROVISION,Third Party Payments,,Revenue
Walsall Council,http://opendatacommunities.org/id/metropolitan-district-council/walsall,WC70-47,31/07/2016,Childrens,ABC FOSTERING,15/07/2016,"2,900.57",74037-INDEPENDENT FOSTER CARE-OTH AGENCY PROVISION,EXTERNAL FOSTER CARE PROVISION,Third Party Payments,,Revenue
Walsall Council,http://opendatacommunities.org/id/metropolitan-district-council/walsall,WC70-48,31/07/2016,Childrens,ABC FOSTERING,15/07/2016,"2,900.57",74037-INDEPENDENT FOSTER CARE-OTH AGENCY PROVISION,EXTERNAL FOSTER CARE PROVISION,Third Party Payments,,Revenue
Walsall Council,http://opendatacommunities.org/id/metropolitan-district-council/walsall,WC70-49,31/07/2016,Childrens,ABC FOSTERING,15/07/2016,"3,008.57",74037-INDEPENDENT FOSTER CARE-OTH AGENCY PROVISION,EXTERNAL FOSTER CARE PROVISION,Third Party Payments,,Revenue
Walsall Council,http://opendatacommunities.org/id/metropolitan-district-council/walsall,WC70-50,31/07/2016,Social Care & Inclusion,REDACTED,12/07/2016,"2,357.99",76422-DIRECT PAYMENTS TO SOCIAL SERVICES CLIENTS,LD COMMISSIONING,Transfer Payments,,Revenue
Walsall Council,http://opendatacommunities.org/id/metropolitan-district-council/walsall,WC70-51,31/07/2016,Childrens,ABU BAKR NURSERY,14/07/2016,"4,229.70",66505-OTHER-GRANTS TO OTHER ORGS,EARLY YEARS - 3 YR OLDS,Third Party Payments,,Revenue
Walsall Council,http://opendatacommunities.org/id/metropolitan-district-council/walsall,WC70-52,31/07/2016,Social Care & Inclusion,ACCORD HOUSING ASSOCIATION LTD#135,08/07/2016,299.46,73374-SUPPORTED & OTHER ACCOMMODATION,MH COMMISSIONING,Third Party Payments,,Revenue
Walsall Council,http://opendatacommunities.org/id/metropolitan-district-council/walsall,WC70-53,31/07/2016,Social Care & Inclusion,ACCORD HOUSING ASSOCIATION LTD#135,06/07/2016,328.44,73374-SUPPORTED & OTHER ACCOMMODATION,MH COMMISSIONING,Third Party Payments,,Revenue
Walsall Council,http://opendatacommunities.org/id/metropolitan-district-council/walsall,WC70-54,31/07/2016,Social Care & Inclusion,ACCORD HOUSING ASSOCIATION LTD#135,05/07/2016,334.88,73374-SUPPORTED & OTHER ACCOMMODATION,MH COMMISSIONING,Third Party Payments,,Revenue
Walsall Council,http://opendatacommunities.org/id/metropolitan-district-council/walsall,WC70-55,31/07/2016,Social Care & Inclusion,ACCORD HOUSING ASSOCIATION LTD#135,06/07/2016,373.52,73374-SUPPORTED & OTHER ACCOMMODATION,MH COMMISSIONING,Third Party Payments,,Revenue
Walsall Council,http://opendatacommunities.org/id/metropolitan-district-council/walsall,WC70-56,31/07/2016,Social Care & Inclusion,ACCORD HOUSING ASSOCIATION LTD#135,05/07/2016,473.34,73374-SUPPORTED & OTHER ACCOMMODATION,MH COMMISSIONING,Third Party Payments,,Revenue
Walsall Council,http://opendatacommunities.org/id/metropolitan-district-council/walsall,WC70-57,31/07/2016,Social Care & Inclusion,ACCORD HOUSING ASSOCIATION LTD#135,06/07/2016,578.25,73374-SUPPORTED & OTHER ACCOMMODATION,LD COMMISSIONING,Third Party Payments,,Revenue
Walsall Council,http://opendatacommunities.org/id/metropolitan-district-council/walsall,WC70-58,31/07/2016,Social Care & Inclusion,ACCORD HOUSING ASSOCIATION LTD#135,06/07/2016,578.25,73374-SUPPORTED & OTHER ACCOMMODATION,LD COMMISSIONING,Third Party Payments,,Revenue
Walsall Council,http://opendatacommunities.org/id/metropolitan-district-council/walsall,WC70-59,31/07/2016,Social Care & Inclusion,ACCORD HOUSING ASSOCIATION LTD#135,06/07/2016,578.25,73374-SUPPORTED & OTHER ACCOMMODATION,LD COMMISSIONING,Third Party Payments,,Revenue
Walsall Council,http://opendatacommunities.org/id/metropolitan-district-council/walsall,WC70-60,31/07/2016,Social Care & Inclusion,ACCORD HOUSING ASSOCIATION LTD#135,06/07/2016,578.25,73374-SUPPORTED & OTHER ACCOMMODATION,LD COMMISSIONING,Third Party Payments,,Revenue
Walsall Council,http://opendatacommunities.org/id/metropolitan-district-council/walsall,WC70-61,31/07/2016,Social Care & Inclusion,ACCORD HOUSING ASSOCIATION LTD#135,06/07/2016,578.25,73374-SUPPORTED & OTHER ACCOMMODATION,LD COMMISSIONING,Third Party Payments,,Revenue
Walsall Council,http://opendatacommunities.org/id/metropolitan-district-council/walsall,WC70-62,31/07/2016,Social Care & Inclusion,ACCORD HOUSING ASSOCIATION LTD#135,06/07/2016,578.25,73374-SUPPORTED & OTHER ACCOMMODATION,LD COMMISSIONING,Third Party Payments,,Revenue
Walsall Council,http://opendatacommunities.org/id/metropolitan-district-council/walsall,WC70-63,31/07/2016,Social Care & Inclusion,ACCORD HOUSING ASSOCIATION LTD#135,06/07/2016,578.25,73374-SUPPORTED & OTHER ACCOMMODATION,LD COMMISSIONING,Third Party Payments,,Revenue
Walsall Council,http://opendatacommunities.org/id/metropolitan-district-council/walsall,WC70-64,31/07/2016,Social Care & Inclusion,ACCORD HOUSING ASSOCIATION LTD#135,06/07/2016,578.25,73374-SUPPORTED & OTHER ACCOMMODATION,LD COMMISSIONING,Third Party Payments,,Revenue
Walsall Council,http://opendatacommunities.org/id/metropolitan-district-council/walsall,WC70-65,31/07/2016,Social Care & Inclusion,ACCORD HOUSING ASSOCIATION LTD#135,06/07/2016,578.25,73374-SUPPORTED & OTHER ACCOMMODATION,LD COMMISSIONING,Third Party Payments,,Revenue
Walsall Council,http://opendatacommunities.org/id/metropolitan-district-council/walsall,WC70-66,31/07/2016,Social Care & Inclusion,ACCORD HOUSING ASSOCIATION LTD#135,06/07/2016,578.25,73374-SUPPORTED & OTHER ACCOMMODATION,LD COMMISSIONING,Third Party Payments,,Revenue
Walsall Council,http://opendatacommunities.org/id/metropolitan-district-council/walsall,WC70-67,31/07/2016,Social Care & Inclusion,ACCORD HOUSING ASSOCIATION LTD#135,08/07/2016,769.34,73374-SUPPORTED & OTHER ACCOMMODATION,LD COMMISSIONING,Third Party Payments,,Revenue
Walsall Council,http://opendatacommunities.org/id/metropolitan-district-council/walsall,WC70-68,31/07/2016,Social Care & Inclusion,ACCORD HOUSING ASSOCIATION LTD#135,08/07/2016,771.00,73374-SUPPORTED & OTHER ACCOMMODATION,LD COMMISSIONING,Third Party Payments,,Revenue
Walsall Council,http://opendatacommunities.org/id/metropolitan-district-council/walsall,WC70-69,31/07/2016,Social Care & Inclusion,ACCORD HOUSING ASSOCIATION LTD#135,08/07/2016,771.00,73374-SUPPORTED & OTHER ACCOMMODATION,LD COMMISSIONING,Third Party Payments,,Revenue
Walsall Council,http://opendatacommunities.org/id/metropolitan-district-council/walsall,WC70-70,31/07/2016,Social Care & Inclusion,ACCORD HOUSING ASSOCIATION LTD#135,06/07/2016,915.50,73374-SUPPORTED & OTHER ACCOMMODATION,LD COMMISSIONING,Third Party Payments,,Revenue
Walsall Council,http://opendatacommunities.org/id/metropolitan-district-council/walsall,WC70-71,31/07/2016,Social Care & Inclusion,ACCORD HOUSING ASSOCIATION LTD#135,11/07/2016,915.50,73374-SUPPORTED & OTHER ACCOMMODATION,LD COMMISSIONING,Third Party Payments,,Revenue
Walsall Council,http://opendatacommunities.org/id/metropolitan-district-council/walsall,WC70-72,31/07/2016,Social Care & Inclusion,ACCORD HOUSING ASSOCIATION LTD#135,12/07/2016,953.88,73373-RESIDENTIAL & NURSING CARE PLACEMENTS,OP COMMISSIONING,Third Party Payments,,Revenue
Walsall Council,http://opendatacommunities.org/id/metropolitan-district-council/walsall,WC70-73,31/07/2016,Social Care & Inclusion,ACCORD HOUSING ASSOCIATION LTD#135,12/07/2016,"4,591.84",73373-RESIDENTIAL & NURSING CARE PLACEMENTS,LD COMMISSIONING,Third Party Payments,,Revenue
Walsall Council,http://opendatacommunities.org/id/metropolitan-district-council/walsall,WC70-74,31/07/2016,Social Care & Inclusion,ACCORD HOUSING ASSOCIATION LTD#135,12/07/2016,"4,591.84",73373-RESIDENTIAL & NURSING CARE PLACEMENTS,LD COMMISSIONING,Third Party Payments,,Revenue
Walsall Council,http://opendatacommunities.org/id/metropolitan-district-council/walsall,WC70-75,31/07/2016,Social Care & Inclusion,ACCORD HOUSING ASSOCIATION LTD#135,12/07/2016,"4,591.84",73373-RESIDENTIAL & NURSING CARE PLACEMENTS,LD COMMISSIONING,Third Party Payments,,Revenue
Walsall Council,http://opendatacommunities.org/id/metropolitan-district-council/walsall,WC70-76,31/07/2016,Social Care & Inclusion,ACCORD HOUSING ASSOCIATION LTD#135,12/07/2016,"6,408.73",73373-RESIDENTIAL & NURSING CARE PLACEMENTS,LD COMMISSIONING,Third Party Payments,,Revenue
Walsall Council,http://opendatacommunities.org/id/metropolitan-district-council/walsall,WC70-77,31/07/2016,Social Care & Inclusion,ACCORD HOUSING ASSOCIATION LTD#135,12/07/2016,"6,408.73",73373-RESIDENTIAL & NURSING CARE PLACEMENTS,LD COMMISSIONING,Third Party Payments,,Revenue
Walsall Council,http://opendatacommunities.org/id/metropolitan-district-council/walsall,WC70-78,31/07/2016,Social Care & Inclusion,ACCORD HOUSING ASSOCIATION LTD#135,12/07/2016,"6,408.73",73373-RESIDENTIAL & NURSING CARE PLACEMENTS,LD COMMISSIONING,Third Party Payments,,Revenue
Walsall Council,http://opendatacommunities.org/id/metropolitan-district-council/walsall,WC70-79,31/07/2016,Social Care & Inclusion,ACCORD HOUSING ASSOCIATION LTD#135,20/07/2016,"8,975.37",73372-DOMICILIARY CARE,OP COMMISSIONING,Third Party Payments,,Revenue
Walsall Council,http://opendatacommunities.org/id/metropolitan-district-council/walsall,WC70-80,31/07/2016,Social Care & Inclusion,ACCORD HOUSING ASSOCIATION LTD#135,15/07/2016,"11,164.00",73365-BLOCK GROSS-SUPPORTING PEOPLE,EXTERNAL SP,Third Party Payments,,Revenue
Walsall Council,http://opendatacommunities.org/id/metropolitan-district-council/walsall,WC70-81,31/07/2016,Social Care & Inclusion,ACCORD HOUSING ASSOCIATION LTD#135,20/07/2016,"24,238.33",73372-DOMICILIARY CARE,OP COMMISSIONING,Third Party Payments,,Revenue
Walsall Council,http://opendatacommunities.org/id/metropolitan-district-council/walsall,WC70-82,31/07/2016,Social Care & Inclusion,ACCORD HOUSING ASSOCIATION LTD#135,18/07/2016,"29,330.75",73365-BLOCK GROSS-SUPPORTING PEOPLE,EXTERNAL SP,Third Party Payments,,Revenue
Walsall Council,http://opendatacommunities.org/id/metropolitan-district-council/walsall,WC70-83,31/07/2016,Social Care & Inclusion,ACE CARE AGENCY,01/07/2016,607.05,73372-DOMICILIARY CARE,MH COMMISSIONING,Third Party Payments,,Revenue
Walsall Council,http://opendatacommunities.org/id/metropolitan-district-council/walsall,WC70-84,31/07/2016,Childrens,ACE RADIO CARS,06/07/2016,"1,854.78",52000-WITH DRIVER-HIRE OF VEHICLES,SCHOOL TRANSPORT,Transport,,Revenue
Walsall Council,http://opendatacommunities.org/id/metropolitan-district-council/walsall,WC70-85,31/07/2016,Social Care & Inclusion,ACEPAY LTD (COTTAGE NUR HOME),26/07/2016,279.31,73373-RESIDENTIAL & NURSING CARE PLACEMENTS,OP COMMISSIONING,Third Party Payments,,Revenue
Walsall Council,http://opendatacommunities.org/id/metropolitan-district-council/walsall,WC70-86,31/07/2016,Social Care & Inclusion,ACEPAY LTD (COTTAGE NUR HOME),26/07/2016,279.31,73373-RESIDENTIAL & NURSING CARE PLACEMENTS,OP COMMISSIONING,Third Party Payments,,Revenue
Walsall Council,http://opendatacommunities.org/id/metropolitan-district-council/walsall,WC70-87,31/07/2016,Social Care & Inclusion,ACEPAY LTD (COTTAGE NUR HOME),26/07/2016,279.31,73373-RESIDENTIAL & NURSING CARE PLACEMENTS,OP COMMISSIONING,Third Party Payments,,Revenue
Walsall Council,http://opendatacommunities.org/id/metropolitan-district-council/walsall,WC70-88,31/07/2016,Social Care & Inclusion,ACEPAY LTD (COTTAGE NUR HOME),26/07/2016,286.40,73373-RESIDENTIAL & NURSING CARE PLACEMENTS,OP COMMISSIONING,Third Party Payments,,Revenue
Walsall Council,http://opendatacommunities.org/id/metropolitan-district-council/walsall,WC70-89,31/07/2016,Social Care & Inclusion,ACEPAY LTD (COTTAGE NUR HOME),26/07/2016,287.09,73373-RESIDENTIAL & NURSING CARE PLACEMENTS,OP COMMISSIONING,Third Party Payments,,Revenue
Walsall Council,http://opendatacommunities.org/id/metropolitan-district-council/walsall,WC70-90,31/07/2016,Social Care & Inclusion,ACEPAY LTD (COTTAGE NUR HOME),26/07/2016,304.32,73373-RESIDENTIAL & NURSING CARE PLACEMENTS,OP COMMISSIONING,Third Party Payments,,Revenue
Walsall Council,http://opendatacommunities.org/id/metropolitan-district-council/walsall,WC70-91,31/07/2016,Social Care & Inclusion,ACEPAY LTD (COTTAGE NUR HOME),26/07/2016,"2,018.20",73373-RESIDENTIAL & NURSING CARE PLACEMENTS,OP COMMISSIONING,Third Party Payments,,Revenue
Walsall Council,http://opendatacommunities.org/id/metropolitan-district-council/walsall,WC70-92,31/07/2016,Social Care & Inclusion,ACEPAY LTD (COTTAGE NUR HOME),12/07/2016,"2,097.80",73373-RESIDENTIAL & NURSING CARE PLACEMENTS,OP COMMISSIONING,Third Party Payments,,Revenue
Walsall Council,http://opendatacommunities.org/id/metropolitan-district-council/walsall,WC70-93,31/07/2016,Social Care & Inclusion,ACEPAY LTD (COTTAGE NUR HOME),12/07/2016,"2,097.80",73373-RESIDENTIAL & NURSING CARE PLACEMENTS,OP COMMISSIONING,Third Party Payments,,Revenue
Walsall Council,http://opendatacommunities.org/id/metropolitan-district-council/walsall,WC70-94,31/07/2016,Social Care & Inclusion,ACEPAY LTD (COTTAGE NUR HOME),12/07/2016,"2,097.80",73373-RESIDENTIAL & NURSING CARE PLACEMENTS,OP COMMISSIONING,Third Party Payments,,Revenue
Walsall Council,http://opendatacommunities.org/id/metropolitan-district-council/walsall,WC70-95,31/07/2016,Social Care & Inclusion,ACEPAY LTD (COTTAGE NUR HOME),12/07/2016,"2,143.80",73373-RESIDENTIAL & NURSING CARE PLACEMENTS,OP COMMISSIONING,Third Party Payments,,Revenue
Walsall Council,http://opendatacommunities.org/id/metropolitan-district-council/walsall,WC70-96,31/07/2016,Social Care & Inclusion,ACEPAY LTD (COTTAGE NUR HOME),12/07/2016,"2,143.80",73373-RESIDENTIAL & NURSING CARE PLACEMENTS,OP COMMISSIONING,Third Party Payments,,Revenue
Walsall Council,http://opendatacommunities.org/id/metropolitan-district-council/walsall,WC70-97,31/07/2016,Social Care & Inclusion,ACEPAY LTD (COTTAGE NUR HOME),12/07/2016,"2,143.80",73373-RESIDENTIAL & NURSING CARE PLACEMENTS,OP COMMISSIONING,Third Party Payments,,Revenue
Walsall Council,http://opendatacommunities.org/id/metropolitan-district-council/walsall,WC70-98,31/07/2016,Social Care & Inclusion,ACORN CARE LTD,20/07/2016,"15,174.19",73373-RESIDENTIAL & NURSING CARE PLACEMENTS,LD COMMISSIONING,Third Party Payments,,Revenue
Walsall Council,http://opendatacommunities.org/id/metropolitan-district-council/walsall,WC70-99,31/07/2016,Social Care & Inclusion,ACORN REST HOME,20/07/2016,"1,620.00",73373-RESIDENTIAL & NURSING CARE PLACEMENTS,OP COMMISSIONING,Third Party Payments,,Revenue
Walsall Council,http://opendatacommunities.org/id/metropolitan-district-council/walsall,WC70-100,31/07/2016,Social Care & Inclusion,ACORN REST HOME,26/07/2016,"1,620.00",73373-RESIDENTIAL & NURSING CARE PLACEMENTS,OP COMMISSIONING,Third Party Payments,,Revenue
Walsall Council,http://opendatacommunities.org/id/metropolitan-district-council/walsall,WC70-101,31/07/2016,Social Care & Inclusion,ACTION ON HEARING LOSS,26/07/2016,511.50,73374-SUPPORTED & OTHER ACCOMMODATION,MH COMMISSIONING,Third Party Payments,,Revenue
Walsall Council,http://opendatacommunities.org/id/metropolitan-district-council/walsall,WC70-102,31/07/2016,Social Care & Inclusion,ACTION ON HEARING LOSS,15/07/2016,"1,241.20",60013-DISABLED-EQUIPMENT,SENSORY/DEAF SERVICES,Supplies & Services,,Revenue
Walsall Council,http://opendatacommunities.org/id/metropolitan-district-council/walsall,WC70-103,31/07/2016,Childrens,REDACTED,12/07/2016,487.60,76422-DIRECT PAYMENTS TO SOCIAL SERVICES CLIENTS,FAMILY SUPPORT - DIRECT PAYMENTS,Transfer Payments,,Revenue
Walsall Council,http://opendatacommunities.org/id/metropolitan-district-council/walsall,WC70-104,31/07/2016,Social Care & Inclusion,REDACTED,12/07/2016,417.48,76422-DIRECT PAYMENTS TO SOCIAL SERVICES CLIENTS,LD COMMISSIONING,Transfer Payments,,Revenue
Walsall Council,http://opendatacommunities.org/id/metropolitan-district-council/walsall,WC70-105,31/07/2016,Social Care & Inclusion,REDACTED,12/07/2016,860.00,76422-DIRECT PAYMENTS TO SOCIAL SERVICES CLIENTS,OP COMMISSIONING,Transfer Payments,,Revenue
Walsall Council,http://opendatacommunities.org/id/metropolitan-district-council/walsall,WC70-106,31/07/2016,Social Care & Inclusion,ADMIRAL SELF STORAGE LTD,01/07/2016,228.78,60514-MATERIALS TO STORES,SC & I REVIEWING TEAM,Supplies & Services,,Revenue
Walsall Council,http://opendatacommunities.org/id/metropolitan-district-council/walsall,WC70-107,31/07/2016,Change and Governance,ADMIRAL SELF STORAGE LTD,22/07/2016,419.32,63000-PROFESSIONAL FEES AND SERVICES,FINANCE ADMIN,Supplies & Services,,Revenue
Walsall Council,http://opendatacommunities.org/id/metropolitan-district-council/walsall,WC70-108,31/07/2016,Childrens,ADOPTION UK,11/07/2016,"-7,713.50",63000-PROFESSIONAL FEES AND SERVICES,ADOPTION TEAM,Supplies & Services,,Revenue
Walsall Council,http://opendatacommunities.org/id/metropolitan-district-council/walsall,WC70-109,31/07/2016,Childrens,ADOPTION UK,08/07/2016,"7,713.50",63000-PROFESSIONAL FEES AND SERVICES,ADOPTION TEAM,Supplies & Services,,Revenue
Walsall Council,http://opendatacommunities.org/id/metropolitan-district-council/walsall,WC70-110,31/07/2016,Childrens,ADOPTION UK,11/07/2016,"7,713.50",63000-PROFESSIONAL FEES AND SERVICES,ADOPTION TEAM,Supplies & Services,,Revenue
Walsall Council,http://opendatacommunities.org/id/metropolitan-district-council/walsall,WC70-111,31/07/2016,Childrens,REDACTED,04/07/2016,694.24,74006-HOLIDAY/CHRISTMAS ALLOWANCE-FOSTER CARERS-OTH AGENCY PROVISION,INTERNAL FOSTER CARE PROVISION,Third Party Payments,,Revenue
Walsall Council,http://opendatacommunities.org/id/metropolitan-district-council/walsall,WC70-112,31/07/2016,Social Care & Inclusion,ADVANCE HEALTH CARE (UK) LTD,01/07/2016,390.00,73025-PROFESSIONAL SERVICES-PRIV CONTRACTOR & OTHER AGENCIES,COMMUNITY INTERMEDIATE CARE,Third Party Payments,,Revenue
Walsall Council,http://opendatacommunities.org/id/metropolitan-district-council/walsall,WC70-113,31/07/2016,Social Care & Inclusion,ADVANCE HEALTH CARE (UK) LTD,19/07/2016,562.90,73025-PROFESSIONAL SERVICES-PRIV CONTRACTOR & OTHER AGENCIES,COMMUNITY INTERMEDIATE CARE,Third Party Payments,,Revenue
Walsall Council,http://opendatacommunities.org/id/metropolitan-district-council/walsall,WC70-114,31/07/2016,Social Care & Inclusion,ADVANCE HEALTH CARE (UK) LTD,01/07/2016,637.20,73025-PROFESSIONAL SERVICES-PRIV CONTRACTOR & OTHER AGENCIES,COMMUNITY INTERMEDIATE CARE,Third Party Payments,,Revenue
Walsall Council,http://opendatacommunities.org/id/metropolitan-district-council/walsall,WC70-115,31/07/2016,Social Care & Inclusion,ADVANCE HEALTH CARE (UK) LTD,14/07/2016,"2,983.55",73025-PROFESSIONAL SERVICES-PRIV CONTRACTOR & OTHER AGENCIES,COMMUNITY INTERMEDIATE CARE,Third Party Payments,,Revenue
Walsall Council,http://opendatacommunities.org/id/metropolitan-district-council/walsall,WC70-116,31/07/2016,Social Care & Inclusion,ADVANCE HEALTH CARE (UK) LTD,27/07/2016,"3,353.60",73025-PROFESSIONAL SERVICES-PRIV CONTRACTOR & OTHER AGENCIES,COMMUNITY INTERMEDIATE CARE,Third Party Payments,,Revenue
Walsall Council,http://opendatacommunities.org/id/metropolitan-district-council/walsall,WC70-117,31/07/2016,Social Care & Inclusion,ADVANCE HEALTH CARE (UK) LTD,19/07/2016,"3,370.00",73025-PROFESSIONAL SERVICES-PRIV CONTRACTOR & OTHER AGENCIES,COMMUNITY INTERMEDIATE CARE,Third Party Payments,,Revenue
Walsall Council,http://opendatacommunities.org/id/metropolitan-district-council/walsall,WC70-118,31/07/2016,Social Care & Inclusion,ADVANCE HEALTH CARE (UK) LTD,07/07/2016,"3,930.00",73025-PROFESSIONAL SERVICES-PRIV CONTRACTOR & OTHER AGENCIES,COMMUNITY INTERMEDIATE CARE,Third Party Payments,,Revenue
Walsall Council,http://opendatacommunities.org/id/metropolitan-district-council/walsall,WC70-119,31/07/2016,Social Care & Inclusion,ADVANCE HEALTH CARE (UK) LTD,19/07/2016,"3,930.00",73025-PROFESSIONAL SERVICES-PRIV CONTRACTOR & OTHER AGENCIES,COMMUNITY INTERMEDIATE CARE,Third Party Payments,,Revenue
Walsall Council,http://opendatacommunities.org/id/metropolitan-district-council/walsall,WC70-120,31/07/2016,Social Care & Inclusion,ADVANCE HEALTH CARE (UK) LTD,14/07/2016,"4,041.35",73025-PROFESSIONAL SERVICES-PRIV CONTRACTOR & OTHER AGENCIES,COMMUNITY INTERMEDIATE CARE,Third Party Payments,,Revenue
Walsall Council,http://opendatacommunities.org/id/metropolitan-district-council/walsall,WC70-121,31/07/2016,Social Care & Inclusion,ADVANCE HEALTH CARE (UK) LTD,20/07/2016,"41,206.23",73372-DOMICILIARY CARE,OP COMMISSIONING,Third Party Payments,,Revenue
Walsall Council,http://opendatacommunities.org/id/metropolitan-district-council/walsall,WC70-122,31/07/2016,Economy & Environment,ADVANCE PHARMA LTD T/A PLECK PHARMACY,20/07/2016,282.19,71007-CONTRIBUTION TO PCT,PUBLIC HEALTH BUSINESS SUPPORT,Third Party Payments,,Revenue
Walsall Council,http://opendatacommunities.org/id/metropolitan-district-council/walsall,WC70-123,31/07/2016,Economy & Environment,ADVANCE PHARMA LTD T/A PLECK PHARMACY,21/07/2016,298.78,71007-CONTRIBUTION TO PCT,PUBLIC HEALTH BUSINESS SUPPORT,Third Party Payments,,Revenue
Walsall Council,http://opendatacommunities.org/id/metropolitan-district-council/walsall,WC70-124,31/07/2016,Economy & Environment,ADVANCED CONTRACTS (MIDLANDS) LTD,22/07/2016,490.00,01006-SITE WORKS MAIN CONTRACTORS,CFR 1037 ACTIVE LIVING OAK PARK (PRUDENTIAL),Capital,,Capital
Walsall Council,http://opendatacommunities.org/id/metropolitan-district-council/walsall,WC70-125,31/07/2016,Economy & Environment,ADVANCED CONTRACTS (MIDLANDS) LTD,22/07/2016,490.00,01006-SITE WORKS MAIN CONTRACTORS,CFR 1037 ACTIVE LIVING BLOXWICH (PRUDENTIAL),Capital,,Capital
Walsall Council,http://opendatacommunities.org/id/metropolitan-district-council/walsall,WC70-126,31/07/2016,Childrens,ADVENTURELAND DAY NURSERY,18/07/2016,630.00,63120-CRECHE FACILITIES-SERVICES-FEES,BUDDY COSTS 0-5,Supplies & Services,,Revenue
Walsall Council,http://opendatacommunities.org/id/metropolitan-district-council/walsall,WC70-127,31/07/2016,Childrens,ADVENTURELAND DAY NURSERY,15/07/2016,"12,106.30",66505-OTHER-GRANTS TO OTHER ORGS,EARLY YEARS - 3 YR OLDS,Third Party Payments,,Revenue
Walsall Council,http://opendatacommunities.org/id/metropolitan-district-council/walsall,WC70-128,31/07/2016,Social Care & Inclusion,ADVOCACY MATTERS LIMITED,01/07/2016,"13,429.00",70000-SOCIAL SERVICES-FEES TO VOLUNTARY BODIES,COMPLEX NEEDS CONTRACTS/SLA's,Third Party Payments,,Revenue
Walsall Council,http://opendatacommunities.org/id/metropolitan-district-council/walsall,WC70-129,31/07/2016,Social Care & Inclusion,ADVOCACY MATTERS LIMITED,01/07/2016,"20,120.00",70000-SOCIAL SERVICES-FEES TO VOLUNTARY BODIES,COMPLEX NEEDS CONTRACTS/SLA's,Third Party Payments,,Revenue
Walsall Council,http://opendatacommunities.org/id/metropolitan-district-council/walsall,WC70-130,31/07/2016,Social Care & Inclusion,ADVOCACY MATTERS LIMITED,01/07/2016,"22,560.75",70000-SOCIAL SERVICES-FEES TO VOLUNTARY BODIES,EXTERNAL SP,Third Party Payments,,Revenue
Walsall Council,http://opendatacommunities.org/id/metropolitan-district-council/walsall,WC70-131,31/07/2016,Social Care & Inclusion,AGE UK WALSALL,19/07/2016,"6,900.00",76423-DIRECT PAYMENTS SUPPORT,INDIVIDUAL BUDGET - SUPPORT,Transfer Payments,,Revenue
Walsall Council,http://opendatacommunities.org/id/metropolitan-district-council/walsall,WC70-132,31/07/2016,Economy & Environment,AGE UK WALSALL,22/07/2016,"11,250.00",63000-PROFESSIONAL FEES AND SERVICES,FALLS PREVENTION,Supplies & Services,,Revenue
Walsall Council,http://opendatacommunities.org/id/metropolitan-district-council/walsall,WC70-133,31/07/2016,Social Care & Inclusion,REDACTED,12/07/2016,"1,882.00",76422-DIRECT PAYMENTS TO SOCIAL SERVICES CLIENTS,LD COMMISSIONING,Transfer Payments,,Revenue
Walsall Council,http://opendatacommunities.org/id/metropolitan-district-council/walsall,WC70-134,31/07/2016,Change and Governance,AJ PRODUCTS (UK) LTD,07/07/2016,"1,199.00",60000-FURNITURE & EQUIPMENT,RECRUITABILITY,Supplies & Services,,Revenue
Walsall Council,http://opendatacommunities.org/id/metropolitan-district-council/walsall,WC70-135,31/07/2016,Social Care & Inclusion,REDACTED,12/07/2016,914.20,76422-DIRECT PAYMENTS TO SOCIAL SERVICES CLIENTS,OP COMMISSIONING,Transfer Payments,,Revenue
Walsall Council,http://opendatacommunities.org/id/metropolitan-district-council/walsall,WC70-136,31/07/2016,Childrens,AJK TRAVEL,26/07/2016,"10,902.36",52000-WITH DRIVER-HIRE OF VEHICLES,SCHOOL TRANSPORT,Transport,,Revenue
Walsall Council,http://opendatacommunities.org/id/metropolitan-district-council/walsall,WC70-137,31/07/2016,Childrens,AJK TRAVEL,04/07/2016,"14,796.06",52000-WITH DRIVER-HIRE OF VEHICLES,SCHOOL TRANSPORT,Transport,,Revenue
Walsall Council,http://opendatacommunities.org/id/metropolitan-district-council/walsall,WC70-138,31/07/2016,Childrens,ALAN CRITCHLEY ASSOCIATES,06/07/2016,"3,600.00",63102-CONSULTANTS FEES - CORPORATE,SAFEGUARDING BOARD,Supplies & Services,,Revenue
Walsall Council,http://opendatacommunities.org/id/metropolitan-district-council/walsall,WC70-139,31/07/2016,Economy & Environment,ALDERBROOK HEALTHCARE LTD,28/07/2016,580.80,63000-PROFESSIONAL FEES AND SERVICES,CORONERS SERVICE,Supplies & Services,,Revenue
Walsall Council,http://opendatacommunities.org/id/metropolitan-district-council/walsall,WC70-140,31/07/2016,Economy & Environment,ALDERBROOK HEALTHCARE LTD,28/07/2016,"1,086.90",63000-PROFESSIONAL FEES AND SERVICES,CORONERS SERVICE,Supplies & Services,,Revenue
Walsall Council,http://opendatacommunities.org/id/metropolitan-district-council/walsall,WC70-141,31/07/2016,Economy & Environment,ALDERBROOK HEALTHCARE LTD,28/07/2016,"1,496.20",63000-PROFESSIONAL FEES AND SERVICES,CORONERS SERVICE,Supplies & Services,,Revenue
Walsall Council,http://opendatacommunities.org/id/metropolitan-district-council/walsall,WC70-142,31/07/2016,Economy & Environment,ALDERBROOK HEALTHCARE LTD,28/07/2016,"2,727.60",63000-PROFESSIONAL FEES AND SERVICES,CORONERS SERVICE,Supplies & Services,,Revenue
Walsall Council,http://opendatacommunities.org/id/metropolitan-district-council/walsall,WC70-143,31/07/2016,Childrens,ALDRIDGE & BARONS LIMITED,26/07/2016,"2,828.40",52000-WITH DRIVER-HIRE OF VEHICLES,SCHOOL TRANSPORT,Transport,,Revenue
Walsall Council,http://opendatacommunities.org/id/metropolitan-district-council/walsall,WC70-144,31/07/2016,Childrens,ALDRIDGE & BARONS LIMITED,26/07/2016,"16,621.15",52000-WITH DRIVER-HIRE OF VEHICLES,SCHOOL TRANSPORT,Transport,,Revenue
Walsall Council,http://opendatacommunities.org/id/metropolitan-district-council/walsall,WC70-145,31/07/2016,Childrens,ALDRIDGE & BARONS LIMITED,26/07/2016,"18,524.70",52000-WITH DRIVER-HIRE OF VEHICLES,SCHOOL TRANSPORT,Transport,,Revenue
Walsall Council,http://opendatacommunities.org/id/metropolitan-district-council/walsall,WC70-146,31/07/2016,Change and Governance,ALDRIDGE METHODIST CHURCH 001,20/07/2016,290.00,63128-HIRE OF ROOM-SERVICES-FEES,ELECTORAL ADMINISTRATION,Supplies & Services,,Revenue
Walsall Council,http://opendatacommunities.org/id/metropolitan-district-council/walsall,WC70-147,31/07/2016,Childrens,ALDRIDGE SCHOOL A SCIENCE COLLEGE.,04/07/2016,"1,600.00",77300-ISB-FORMULA ALLOCATION,ALDRIDGE SCHOOL SCIENCE COLLEGE (ACADEMY),Transfer Payments,,Revenue
Walsall Council,http://opendatacommunities.org/id/metropolitan-district-council/walsall,WC70-148,31/07/2016,Social Care & Inclusion,REDACTED,12/07/2016,"1,204.00",76422-DIRECT PAYMENTS TO SOCIAL SERVICES CLIENTS,YADS COMMISSIONING,Transfer Payments,,Revenue
Walsall Council,http://opendatacommunities.org/id/metropolitan-district-council/walsall,WC70-149,31/07/2016,Social Care & Inclusion,ALEXANDRA HOUSE CARE SERVICES LTD T/A STONEBRIDGE NURSING HOME,12/07/2016,"7,117.44",73373-RESIDENTIAL & NURSING CARE PLACEMENTS,OP COMMISSIONING,Third Party Payments,,Revenue
Walsall Council,http://opendatacommunities.org/id/metropolitan-district-council/walsall,WC70-150,31/07/2016,Childrens,REDACTED,12/07/2016,582.66,76422-DIRECT PAYMENTS TO SOCIAL SERVICES CLIENTS,FAMILY SUPPORT - DIRECT PAYMENTS,Transfer Payments,,Revenue
Walsall Council,http://opendatacommunities.org/id/metropolitan-district-council/walsall,WC70-151,31/07/2016,Childrens,ALFORD PRIMARY SCHOOL,04/07/2016,930.00,77300-ISB-FORMULA ALLOCATION,OUT OF BOROUGH SCHOOLS,Transfer Payments,,Revenue
Walsall Council,http://opendatacommunities.org/id/metropolitan-district-council/walsall,WC70-152,31/07/2016,Social Care & Inclusion,REDACTED,12/07/2016,854.00,76422-DIRECT PAYMENTS TO SOCIAL SERVICES CLIENTS,YADS COMMISSIONING,Transfer Payments,,Revenue
Walsall Council,http://opendatacommunities.org/id/metropolitan-district-council/walsall,WC70-153,31/07/2016,Social Care & Inclusion,REDACTED,12/07/2016,578.00,76422-DIRECT PAYMENTS TO SOCIAL SERVICES CLIENTS,OP COMMISSIONING,Transfer Payments,,Revenue
Walsall Council,http://opendatacommunities.org/id/metropolitan-district-council/walsall,WC70-154,31/07/2016,Childrens,REDACTED,18/07/2016,506.76,62515-MISCELLANEOUS SUPPLIES,INTERNAL FOSTER CARE PROVISION,Supplies & Services,,Revenue
Walsall Council,http://opendatacommunities.org/id/metropolitan-district-council/walsall,WC70-155,31/07/2016,Childrens,REDACTED,18/07/2016,985.76,74006-HOLIDAY/CHRISTMAS ALLOWANCE-FOSTER CARERS-OTH AGENCY PROVISION,INTERNAL FOSTER CARE PROVISION,Third Party Payments,,Revenue
Walsall Council,http://opendatacommunities.org/id/metropolitan-district-council/walsall,WC70-156,31/07/2016,Childrens,REDACTED,14/07/2016,776.10,66505-OTHER-GRANTS TO OTHER ORGS,EARLY YEARS - 3 YR OLDS,Third Party Payments,,Revenue
Walsall Council,http://opendatacommunities.org/id/metropolitan-district-council/walsall,WC70-157,31/07/2016,Childrens,REDACTED,04/07/2016,552.96,74006-HOLIDAY/CHRISTMAS ALLOWANCE-FOSTER CARERS-OTH AGENCY PROVISION,INTERNAL FOSTER CARE PROVISION,Third Party Payments,,Revenue
Walsall Council,http://opendatacommunities.org/id/metropolitan-district-council/walsall,WC70-158,31/07/2016,Childrens,ALL SAINTS NATIONAL ACADEMY #1,04/07/2016,550.00,77300-ISB-FORMULA ALLOCATION,OUT OF BOROUGH SCHOOLS,Transfer Payments,,Revenue
Walsall Council,http://opendatacommunities.org/id/metropolitan-district-council/walsall,WC70-159,31/07/2016,Childrens,ALMOZENE NURSERY & CHILDRENS CENTRE,13/07/2016,"2,288.52",66505-OTHER-GRANTS TO OTHER ORGS,EARLY YEARS - 2 YR OLDS,Third Party Payments,,Revenue
Walsall Council,http://opendatacommunities.org/id/metropolitan-district-council/walsall,WC70-160,31/07/2016,Childrens,ALMOZENE NURSERY & CHILDRENS CENTRE,14/07/2016,"4,813.30",66505-OTHER-GRANTS TO OTHER ORGS,EARLY YEARS - 3 YR OLDS,Third Party Payments,,Revenue
Walsall Council,http://opendatacommunities.org/id/metropolitan-district-council/walsall,WC70-161,31/07/2016,Social Care & Inclusion,ALPHA HEALTH CARE LTD,07/07/2016,752.14,73373-RESIDENTIAL & NURSING CARE PLACEMENTS,OP COMMISSIONING,Third Party Payments,,Revenue
Walsall Council,http://opendatacommunities.org/id/metropolitan-district-council/walsall,WC70-162,31/07/2016,Social Care & Inclusion,ALPHA HEALTH CARE LTD,12/07/2016,"1,620.00",73373-RESIDENTIAL & NURSING CARE PLACEMENTS,OP COMMISSIONING,Third Party Payments,,Revenue
Walsall Council,http://opendatacommunities.org/id/metropolitan-district-council/walsall,WC70-163,31/07/2016,Social Care & Inclusion,ALPHA HEALTH CARE LTD,12/07/2016,"1,620.00",73373-RESIDENTIAL & NURSING CARE PLACEMENTS,OP COMMISSIONING,Third Party Payments,,Revenue
Walsall Council,http://opendatacommunities.org/id/metropolitan-district-council/walsall,WC70-164,31/07/2016,Social Care & Inclusion,ALPHA HEALTH CARE LTD,12/07/2016,"1,620.00",73373-RESIDENTIAL & NURSING CARE PLACEMENTS,OP COMMISSIONING,Third Party Payments,,Revenue
Walsall Council,http://opendatacommunities.org/id/metropolitan-district-council/walsall,WC70-165,31/07/2016,Social Care & Inclusion,ALPHA HEALTH CARE LTD,12/07/2016,"1,620.00",73373-RESIDENTIAL & NURSING CARE PLACEMENTS,OP COMMISSIONING,Third Party Payments,,Revenue
Walsall Council,http://opendatacommunities.org/id/metropolitan-district-council/walsall,WC70-166,31/07/2016,Social Care & Inclusion,ALPHA HEALTH CARE LTD,20/07/2016,"1,620.00",73373-RESIDENTIAL & NURSING CARE PLACEMENTS,OP COMMISSIONING,Third Party Payments,,Revenue
Walsall Council,http://opendatacommunities.org/id/metropolitan-district-council/walsall,WC70-167,31/07/2016,Social Care & Inclusion,ALPHA HEALTH CARE LTD,12/07/2016,"1,649.80",73373-RESIDENTIAL & NURSING CARE PLACEMENTS,OP COMMISSIONING,Third Party Payments,,Revenue
Walsall Council,http://opendatacommunities.org/id/metropolitan-district-council/walsall,WC70-168,31/07/2016,Social Care & Inclusion,ALPHA HEALTH CARE LTD,12/07/2016,"1,649.80",73373-RESIDENTIAL & NURSING CARE PLACEMENTS,OP COMMISSIONING,Third Party Payments,,Revenue
Walsall Council,http://opendatacommunities.org/id/metropolitan-district-council/walsall,WC70-169,31/07/2016,Social Care & Inclusion,ALPHA HEALTH CARE LTD,12/07/2016,"1,649.80",73373-RESIDENTIAL & NURSING CARE PLACEMENTS,OP COMMISSIONING,Third Party Payments,,Revenue
Walsall Council,http://opendatacommunities.org/id/metropolitan-district-council/walsall,WC70-170,31/07/2016,Social Care & Inclusion,ALPHA HEALTH CARE LTD,12/07/2016,"1,649.80",73373-RESIDENTIAL & NURSING CARE PLACEMENTS,OP COMMISSIONING,Third Party Payments,,Revenue
Walsall Council,http://opendatacommunities.org/id/metropolitan-district-council/walsall,WC70-171,31/07/2016,Social Care & Inclusion,ALPHA HEALTH CARE LTD,12/07/2016,"1,649.80",73373-RESIDENTIAL & NURSING CARE PLACEMENTS,OP COMMISSIONING,Third Party Payments,,Revenue
Walsall Council,http://opendatacommunities.org/id/metropolitan-district-council/walsall,WC70-172,31/07/2016,Social Care & Inclusion,ALPHA HEALTH CARE LTD,12/07/2016,"1,649.80",73373-RESIDENTIAL & NURSING CARE PLACEMENTS,OP COMMISSIONING,Third Party Payments,,Revenue
Walsall Council,http://opendatacommunities.org/id/metropolitan-district-council/walsall,WC70-173,31/07/2016,Social Care & Inclusion,ALPHA HEALTH CARE LTD,12/07/2016,"1,649.80",73373-RESIDENTIAL & NURSING CARE PLACEMENTS,OP COMMISSIONING,Third Party Payments,,Revenue
Walsall Council,http://opendatacommunities.org/id/metropolitan-district-council/walsall,WC70-174,31/07/2016,Social Care & Inclusion,ALPHA HEALTH CARE LTD,12/07/2016,"1,649.80",73373-RESIDENTIAL & NURSING CARE PLACEMENTS,OP COMMISSIONING,Third Party Payments,,Revenue
Walsall Council,http://opendatacommunities.org/id/metropolitan-district-council/walsall,WC70-175,31/07/2016,Social Care & Inclusion,ALPHA HEALTH CARE LTD,12/07/2016,"1,649.80",73373-RESIDENTIAL & NURSING CARE PLACEMENTS,MH COMMISSIONING,Third Party Payments,,Revenue
Walsall Council,http://opendatacommunities.org/id/metropolitan-district-council/walsall,WC70-176,31/07/2016,Social Care & Inclusion,ALPHA HEALTH CARE LTD,12/07/2016,"1,649.80",73373-RESIDENTIAL & NURSING CARE PLACEMENTS,OP COMMISSIONING,Third Party Payments,,Revenue
Walsall Council,http://opendatacommunities.org/id/metropolitan-district-council/walsall,WC70-177,31/07/2016,Social Care & Inclusion,ALPHA HEALTH CARE LTD,12/07/2016,"1,649.80",73373-RESIDENTIAL & NURSING CARE PLACEMENTS,OP COMMISSIONING,Third Party Payments,,Revenue
Walsall Council,http://opendatacommunities.org/id/metropolitan-district-council/walsall,WC70-178,31/07/2016,Social Care & Inclusion,ALPHA HEALTH CARE LTD,12/07/2016,"1,649.80",73373-RESIDENTIAL & NURSING CARE PLACEMENTS,OP COMMISSIONING,Third Party Payments,,Revenue
Walsall Council,http://opendatacommunities.org/id/metropolitan-district-council/walsall,WC70-179,31/07/2016,Social Care & Inclusion,ALPHA HEALTH CARE LTD,12/07/2016,"1,649.80",73373-RESIDENTIAL & NURSING CARE PLACEMENTS,MH COMMISSIONING,Third Party Payments,,Revenue
Walsall Council,http://opendatacommunities.org/id/metropolitan-district-council/walsall,WC70-180,31/07/2016,Social Care & Inclusion,ALPHA HEALTH CARE LTD,20/07/2016,"1,649.80",73373-RESIDENTIAL & NURSING CARE PLACEMENTS,OP COMMISSIONING,Third Party Payments,,Revenue
Walsall Council,http://opendatacommunities.org/id/metropolitan-district-council/walsall,WC70-181,31/07/2016,Social Care & Inclusion,ALPHA HEALTH CARE LTD,20/07/2016,"1,649.80",73373-RESIDENTIAL & NURSING CARE PLACEMENTS,OP COMMISSIONING,Third Party Payments,,Revenue
Walsall Council,http://opendatacommunities.org/id/metropolitan-district-council/walsall,WC70-182,31/07/2016,Social Care & Inclusion,ALPHA HEALTH CARE LTD,20/07/2016,"1,649.80",73373-RESIDENTIAL & NURSING CARE PLACEMENTS,OP COMMISSIONING,Third Party Payments,,Revenue
Walsall Council,http://opendatacommunities.org/id/metropolitan-district-council/walsall,WC70-183,31/07/2016,Social Care & Inclusion,ALPHA HEALTH CARE LTD,20/07/2016,"1,649.80",73373-RESIDENTIAL & NURSING CARE PLACEMENTS,OP COMMISSIONING,Third Party Payments,,Revenue
Walsall Council,http://opendatacommunities.org/id/metropolitan-district-council/walsall,WC70-184,31/07/2016,Social Care & Inclusion,ALPHA HEALTH CARE LTD,12/07/2016,"1,800.00",73373-RESIDENTIAL & NURSING CARE PLACEMENTS,OP COMMISSIONING,Third Party Payments,,Revenue
Walsall Council,http://opendatacommunities.org/id/metropolitan-district-council/walsall,WC70-185,31/07/2016,Social Care & Inclusion,ALPHA HEALTH CARE LTD,12/07/2016,"1,800.00",73373-RESIDENTIAL & NURSING CARE PLACEMENTS,OP COMMISSIONING,Third Party Payments,,Revenue
Walsall Council,http://opendatacommunities.org/id/metropolitan-district-council/walsall,WC70-186,31/07/2016,Social Care & Inclusion,ALPHA HEALTH CARE LTD,12/07/2016,"1,800.00",73373-RESIDENTIAL & NURSING CARE PLACEMENTS,OP COMMISSIONING,Third Party Payments,,Revenue
Walsall Council,http://opendatacommunities.org/id/metropolitan-district-council/walsall,WC70-187,31/07/2016,Social Care & Inclusion,ALPHA HEALTH CARE LTD,12/07/2016,"5,846.80",73373-RESIDENTIAL & NURSING CARE PLACEMENTS,MH COMMISSIONING,Third Party Payments,,Revenue
Walsall Council,http://opendatacommunities.org/id/metropolitan-district-council/walsall,WC70-188,31/07/2016,Social Care & Inclusion,ALPHA HEALTH CARE LTD,12/07/2016,"5,997.60",73373-RESIDENTIAL & NURSING CARE PLACEMENTS,MH COMMISSIONING,Third Party Payments,,Revenue
Walsall Council,http://opendatacommunities.org/id/metropolitan-district-council/walsall,WC70-189,31/07/2016,Childrens,ALPHABIOLABS,27/07/2016,457.50,63000-PROFESSIONAL FEES AND SERVICES,SAFEGUARDING & FAMILY SUPPORT,Supplies & Services,,Revenue
Walsall Council,http://opendatacommunities.org/id/metropolitan-district-council/walsall,WC70-190,31/07/2016,Change and Governance,ALTODIGITAL NETWORKS LTD,18/07/2016,242.19,60009-LEASING/HIRE/RENTAL-EQUIPMENT,PHOTOCOPIERS - CENTRAL BUDGET,Supplies & Services,,Revenue
Walsall Council,http://opendatacommunities.org/id/metropolitan-district-council/walsall,WC70-191,31/07/2016,Childrens,ALUMWELLIES NURSERY,20/07/2016,"1,653.60",63120-CRECHE FACILITIES-SERVICES-FEES,PARENTING TEAM,Supplies & Services,,Revenue
Walsall Council,http://opendatacommunities.org/id/metropolitan-district-council/walsall,WC70-192,31/07/2016,Childrens,ALUMWELLIES NURSERY,15/07/2016,"16,190.70",66505-OTHER-GRANTS TO OTHER ORGS,EARLY YEARS - 3 YR OLDS,Third Party Payments,,Revenue
Walsall Council,http://opendatacommunities.org/id/metropolitan-district-council/walsall,WC70-193,31/07/2016,Childrens,REDACTED,04/07/2016,"1,245.32",74006-HOLIDAY/CHRISTMAS ALLOWANCE-FOSTER CARERS-OTH AGENCY PROVISION,INTERNAL FOSTER CARE PROVISION,Third Party Payments,,Revenue
Walsall Council,http://opendatacommunities.org/id/metropolitan-district-council/walsall,WC70-194,31/07/2016,Childrens,REDACTED,18/07/2016,540.20,62515-MISCELLANEOUS SUPPLIES,INTERNAL FOSTER CARE PROVISION,Supplies & Services,,Revenue
Walsall Council,http://opendatacommunities.org/id/metropolitan-district-council/walsall,WC70-195,31/07/2016,Childrens,REDACTED,18/07/2016,976.38,74006-HOLIDAY/CHRISTMAS ALLOWANCE-FOSTER CARERS-OTH AGENCY PROVISION,INTERNAL FOSTER CARE PROVISION,Third Party Payments,,Revenue
Walsall Council,http://opendatacommunities.org/id/metropolitan-district-council/walsall,WC70-196,31/07/2016,Childrens,REDACTED,12/07/2016,312.92,76422-DIRECT PAYMENTS TO SOCIAL SERVICES CLIENTS,FAMILY SUPPORT - DIRECT PAYMENTS,Transfer Payments,,Revenue
Walsall Council,http://opendatacommunities.org/id/metropolitan-district-council/walsall,WC70-197,31/07/2016,Change and Governance,AMEY LG LIMITED,06/07/2016,382.86,60008-MAINTENANCE-FURNITURE & EQUIPMENT,AREA 3 - NORTH WALSALL,Supplies & Services,,Revenue
Walsall Council,http://opendatacommunities.org/id/metropolitan-district-council/walsall,WC70-198,31/07/2016,Economy & Environment,AMEY LG LIMITED,07/07/2016,"2,235.41",73025-PROFESSIONAL SERVICES-PRIV CONTRACTOR & OTHER AGENCIES,TRAFFIC MANAGEMENT,Third Party Payments,,Revenue
Walsall Council,http://opendatacommunities.org/id/metropolitan-district-council/walsall,WC70-199,31/07/2016,Economy & Environment,AMEY LG LIMITED,01/07/2016,"2,293.68",60500-GENERAL MATERIALS,WASTE COLLECTIONS,Supplies & Services,,Revenue
Walsall Council,http://opendatacommunities.org/id/metropolitan-district-council/walsall,WC70-200,31/07/2016,Childrens,AMG NURSING CARE SERVICES,13/07/2016,"1,518.04",63000-PROFESSIONAL FEES AND SERVICES,DIRECTLY COMMISSIONED NURSING SERVICES,Supplies & Services,,Revenue
Walsall Council,http://opendatacommunities.org/id/metropolitan-district-council/walsall,WC70-201,31/07/2016,Social Care & Inclusion,REDACTED,12/07/2016,"1,133.44",76422-DIRECT PAYMENTS TO SOCIAL SERVICES CLIENTS,OP COMMISSIONING,Transfer Payments,,Revenue
Walsall Council,http://opendatacommunities.org/id/metropolitan-district-council/walsall,WC70-202,31/07/2016,Economy & Environment,AMX SOLUTIONS LIMITED,21/07/2016,999.80,63800-COMPUTER EQUIPMENT AND SUPPLIES,ENGINEERING MANAGEMENT,Supplies & Services,,Revenue
Walsall Council,http://opendatacommunities.org/id/metropolitan-district-council/walsall,WC70-203,31/07/2016,Childrens,REDACTED,04/07/2016,425.08,74006-HOLIDAY/CHRISTMAS ALLOWANCE-FOSTER CARERS-OTH AGENCY PROVISION,INTERNAL FOSTER CARE PROVISION,Third Party Payments,,Revenue
Walsall Council,http://opendatacommunities.org/id/metropolitan-district-council/walsall,WC70-204,31/07/2016,Social Care & Inclusion,REDACTED,12/07/2016,544.00,76422-DIRECT PAYMENTS TO SOCIAL SERVICES CLIENTS,OP COMMISSIONING,Transfer Payments,,Revenue
Walsall Council,http://opendatacommunities.org/id/metropolitan-district-council/walsall,WC70-205,31/07/2016,Social Care & Inclusion,REDACTED,12/07/2016,714.00,76422-DIRECT PAYMENTS TO SOCIAL SERVICES CLIENTS,OP COMMISSIONING,Transfer Payments,,Revenue
Walsall Council,http://opendatacommunities.org/id/metropolitan-district-council/walsall,WC70-206,31/07/2016,Social Care & Inclusion,ANCHOR,26/07/2016,728.30,73373-RESIDENTIAL & NURSING CARE PLACEMENTS,OP COMMISSIONING,Third Party Payments,,Revenue
Walsall Council,http://opendatacommunities.org/id/metropolitan-district-council/walsall,WC70-207,31/07/2016,Social Care & Inclusion,ANCHOR,07/07/2016,"1,157.14",73373-RESIDENTIAL & NURSING CARE PLACEMENTS,OP COMMISSIONING,Third Party Payments,,Revenue
Walsall Council,http://opendatacommunities.org/id/metropolitan-district-council/walsall,WC70-208,31/07/2016,Social Care & Inclusion,ANCHOR,07/07/2016,"1,493.24",73373-RESIDENTIAL & NURSING CARE PLACEMENTS,OP COMMISSIONING,Third Party Payments,,Revenue
Walsall Council,http://opendatacommunities.org/id/metropolitan-district-council/walsall,WC70-209,31/07/2016,Social Care & Inclusion,ANCHOR,12/07/2016,"1,493.24",73373-RESIDENTIAL & NURSING CARE PLACEMENTS,OP COMMISSIONING,Third Party Payments,,Revenue
Walsall Council,http://opendatacommunities.org/id/metropolitan-district-council/walsall,WC70-210,31/07/2016,Social Care & Inclusion,ANCHOR,12/07/2016,"1,568.60",73373-RESIDENTIAL & NURSING CARE PLACEMENTS,OP COMMISSIONING,Third Party Payments,,Revenue
Walsall Council,http://opendatacommunities.org/id/metropolitan-district-council/walsall,WC70-211,31/07/2016,Social Care & Inclusion,ANCHOR,07/07/2016,"1,568.64",73373-RESIDENTIAL & NURSING CARE PLACEMENTS,OP COMMISSIONING,Third Party Payments,,Revenue
Walsall Council,http://opendatacommunities.org/id/metropolitan-district-council/walsall,WC70-212,31/07/2016,Social Care & Inclusion,ANCHOR,07/07/2016,"1,568.64",73373-RESIDENTIAL & NURSING CARE PLACEMENTS,OP COMMISSIONING,Third Party Payments,,Revenue
Walsall Council,http://opendatacommunities.org/id/metropolitan-district-council/walsall,WC70-213,31/07/2016,Social Care & Inclusion,ANCHOR,07/07/2016,"1,568.64",73373-RESIDENTIAL & NURSING CARE PLACEMENTS,OP COMMISSIONING,Third Party Payments,,Revenue
Walsall Council,http://opendatacommunities.org/id/metropolitan-district-council/walsall,WC70-214,31/07/2016,Social Care & Inclusion,ANCHOR,07/07/2016,"1,568.64",73373-RESIDENTIAL & NURSING CARE PLACEMENTS,OP COMMISSIONING,Third Party Payments,,Revenue
Walsall Council,http://opendatacommunities.org/id/metropolitan-district-council/walsall,WC70-215,31/07/2016,Social Care & Inclusion,ANCHOR,07/07/2016,"1,568.64",73373-RESIDENTIAL & NURSING CARE PLACEMENTS,OP COMMISSIONING,Third Party Payments,,Revenue
Walsall Council,http://opendatacommunities.org/id/metropolitan-district-council/walsall,WC70-216,31/07/2016,Social Care & Inclusion,ANCHOR,07/07/2016,"1,568.64",73373-RESIDENTIAL & NURSING CARE PLACEMENTS,OP COMMISSIONING,Third Party Payments,,Revenue
Walsall Council,http://opendatacommunities.org/id/metropolitan-district-council/walsall,WC70-217,31/07/2016,Social Care & Inclusion,ANCHOR,07/07/2016,"1,568.64",73373-RESIDENTIAL & NURSING CARE PLACEMENTS,OP COMMISSIONING,Third Party Payments,,Revenue
Walsall Council,http://opendatacommunities.org/id/metropolitan-district-council/walsall,WC70-218,31/07/2016,Social Care & Inclusion,ANCHOR,07/07/2016,"1,568.64",73373-RESIDENTIAL & NURSING CARE PLACEMENTS,OP COMMISSIONING,Third Party Payments,,Revenue
Walsall Council,http://opendatacommunities.org/id/metropolitan-district-council/walsall,WC70-219,31/07/2016,Social Care & Inclusion,ANCHOR,07/07/2016,"1,568.64",73373-RESIDENTIAL & NURSING CARE PLACEMENTS,OP COMMISSIONING,Third Party Payments,,Revenue
Walsall Council,http://opendatacommunities.org/id/metropolitan-district-council/walsall,WC70-220,31/07/2016,Social Care & Inclusion,ANCHOR,07/07/2016,"1,568.64",73373-RESIDENTIAL & NURSING CARE PLACEMENTS,OP COMMISSIONING,Third Party Payments,,Revenue
Walsall Council,http://opendatacommunities.org/id/metropolitan-district-council/walsall,WC70-221,31/07/2016,Social Care & Inclusion,ANCHOR,07/07/2016,"1,568.64",73373-RESIDENTIAL & NURSING CARE PLACEMENTS,OP COMMISSIONING,Third Party Payments,,Revenue
Walsall Council,http://opendatacommunities.org/id/metropolitan-district-council/walsall,WC70-222,31/07/2016,Social Care & Inclusion,ANCHOR,07/07/2016,"1,568.64",73373-RESIDENTIAL & NURSING CARE PLACEMENTS,OP COMMISSIONING,Third Party Payments,,Revenue
Walsall Council,http://opendatacommunities.org/id/metropolitan-district-council/walsall,WC70-223,31/07/2016,Social Care & Inclusion,ANCHOR,12/07/2016,"1,568.64",73373-RESIDENTIAL & NURSING CARE PLACEMENTS,OP COMMISSIONING,Third Party Payments,,Revenue
Walsall Council,http://opendatacommunities.org/id/metropolitan-district-council/walsall,WC70-224,31/07/2016,Social Care & Inclusion,ANCHOR,26/07/2016,"1,568.64",73373-RESIDENTIAL & NURSING CARE PLACEMENTS,OP COMMISSIONING,Third Party Payments,,Revenue
Walsall Council,http://opendatacommunities.org/id/metropolitan-district-council/walsall,WC70-225,31/07/2016,Social Care & Inclusion,ANCHOR,26/07/2016,"1,568.64",73373-RESIDENTIAL & NURSING CARE PLACEMENTS,OP COMMISSIONING,Third Party Payments,,Revenue
Walsall Council,http://opendatacommunities.org/id/metropolitan-district-council/walsall,WC70-226,31/07/2016,Social Care & Inclusion,ANCHOR,26/07/2016,"1,568.64",73373-RESIDENTIAL & NURSING CARE PLACEMENTS,OP COMMISSIONING,Third Party Payments,,Revenue
Walsall Council,http://opendatacommunities.org/id/metropolitan-district-council/walsall,WC70-227,31/07/2016,Social Care & Inclusion,ANCHOR,07/07/2016,"1,568.68",73373-RESIDENTIAL & NURSING CARE PLACEMENTS,OP COMMISSIONING,Third Party Payments,,Revenue
Walsall Council,http://opendatacommunities.org/id/metropolitan-district-council/walsall,WC70-228,31/07/2016,Childrens,REDACTED,18/07/2016,650.92,74006-HOLIDAY/CHRISTMAS ALLOWANCE-FOSTER CARERS-OTH AGENCY PROVISION,INTERNAL FOSTER CARE PROVISION,Third Party Payments,,Revenue
Walsall Council,http://opendatacommunities.org/id/metropolitan-district-council/walsall,WC70-229,31/07/2016,Childrens,REDACTED,18/07/2016,906.76,62515-MISCELLANEOUS SUPPLIES,INTERNAL FOSTER CARE PROVISION,Supplies & Services,,Revenue
Walsall Council,http://opendatacommunities.org/id/metropolitan-district-council/walsall,WC70-230,31/07/2016,Social Care & Inclusion,REDACTED,12/07/2016,378.00,76422-DIRECT PAYMENTS TO SOCIAL SERVICES CLIENTS,YADS COMMISSIONING,Transfer Payments,,Revenue
Walsall Council,http://opendatacommunities.org/id/metropolitan-district-council/walsall,WC70-231,31/07/2016,Social Care & Inclusion,ANGEL COURT RESIDENTIAL CARE HOME,20/07/2016,810.00,73373-RESIDENTIAL & NURSING CARE PLACEMENTS,OP COMMISSIONING,Third Party Payments,,Revenue
Walsall Council,http://opendatacommunities.org/id/metropolitan-district-council/walsall,WC70-232,31/07/2016,Social Care & Inclusion,ANGEL COURT RESIDENTIAL CARE HOME,20/07/2016,"1,335.71",73373-RESIDENTIAL & NURSING CARE PLACEMENTS,OP COMMISSIONING,Third Party Payments,,Revenue
Walsall Council,http://opendatacommunities.org/id/metropolitan-district-council/walsall,WC70-233,31/07/2016,Social Care & Inclusion,ANGEL COURT RESIDENTIAL CARE HOME,20/07/2016,"1,446.43",73373-RESIDENTIAL & NURSING CARE PLACEMENTS,OP COMMISSIONING,Third Party Payments,,Revenue
Walsall Council,http://opendatacommunities.org/id/metropolitan-district-council/walsall,WC70-234,31/07/2016,Social Care & Inclusion,ANGEL COURT RESIDENTIAL CARE HOME,20/07/2016,"3,703.57",73373-RESIDENTIAL & NURSING CARE PLACEMENTS,OP COMMISSIONING,Third Party Payments,,Revenue
Walsall Council,http://opendatacommunities.org/id/metropolitan-district-council/walsall,WC70-235,31/07/2016,Social Care & Inclusion,ANGEL COURT RESIDENTIAL CARE HOME,26/07/2016,"3,921.43",73373-RESIDENTIAL & NURSING CARE PLACEMENTS,OP COMMISSIONING,Third Party Payments,,Revenue
Walsall Council,http://opendatacommunities.org/id/metropolitan-district-council/walsall,WC70-236,31/07/2016,Social Care & Inclusion,ANGEL COURT RESIDENTIAL CARE HOME,26/07/2016,"4,080.82",73373-RESIDENTIAL & NURSING CARE PLACEMENTS,OP COMMISSIONING,Third Party Payments,,Revenue
Walsall Council,http://opendatacommunities.org/id/metropolitan-district-council/walsall,WC70-237,31/07/2016,Childrens,REDACTED,04/07/2016,"2,287.16",74006-HOLIDAY/CHRISTMAS ALLOWANCE-FOSTER CARERS-OTH AGENCY PROVISION,INTERNAL FOSTER CARE PROVISION,Third Party Payments,,Revenue
Walsall Council,http://opendatacommunities.org/id/metropolitan-district-council/walsall,WC70-238,31/07/2016,Childrens,REDACTED,04/07/2016,269.68,74006-HOLIDAY/CHRISTMAS ALLOWANCE-FOSTER CARERS-OTH AGENCY PROVISION,INTERNAL FOSTER CARE PROVISION,Third Party Payments,,Revenue
Walsall Council,http://opendatacommunities.org/id/metropolitan-district-council/walsall,WC70-239,31/07/2016,Change and Governance,ANGLIA STAIRLIFTS LTD,15/07/2016,250.00,01045-PRIVATE GRANTS,CFR 826 DISABLED FACILITIES GRANTS (SOCIAL SERVICES),Capital,,Capital
Walsall Council,http://opendatacommunities.org/id/metropolitan-district-council/walsall,WC70-240,31/07/2016,Change and Governance,ANGLIA STAIRLIFTS LTD,25/07/2016,"3,965.00",01045-PRIVATE GRANTS,CFR 826 DISABLED FACILITIES GRANTS (SOCIAL SERVICES),Capital,,Capital
Walsall Council,http://opendatacommunities.org/id/metropolitan-district-council/walsall,WC70-241,31/07/2016,Change and Governance,ANGLIA STAIRLIFTS LTD,15/07/2016,"4,065.00",01045-PRIVATE GRANTS,CFR 826 DISABLED FACILITIES GRANTS (SOCIAL SERVICES),Capital,,Capital
Walsall Council,http://opendatacommunities.org/id/metropolitan-district-council/walsall,WC70-242,31/07/2016,Change and Governance,ANGLIA STAIRLIFTS LTD,06/07/2016,"4,715.00",01045-PRIVATE GRANTS,CFR 826 DISABLED FACILITIES GRANTS (SOCIAL SERVICES),Capital,,Capital
Walsall Council,http://opendatacommunities.org/id/metropolitan-district-council/walsall,WC70-243,31/07/2016,Change and Governance,ANGLIA STAIRLIFTS LTD,01/07/2016,"4,832.50",01045-PRIVATE GRANTS,CFR 826 DISABLED FACILITIES GRANTS (SOCIAL SERVICES),Capital,,Capital
Walsall Council,http://opendatacommunities.org/id/metropolitan-district-council/walsall,WC70-244,31/07/2016,Change and Governance,ANGLIA STAIRLIFTS LTD,07/07/2016,"4,845.00",01045-PRIVATE GRANTS,CFR 826 DISABLED FACILITIES GRANTS (SOCIAL SERVICES),Capital,,Capital
Walsall Council,http://opendatacommunities.org/id/metropolitan-district-council/walsall,WC70-245,31/07/2016,Change and Governance,ANGLIA STAIRLIFTS LTD,19/07/2016,"4,846.00",01045-PRIVATE GRANTS,CFR 826 DISABLED FACILITIES GRANTS (SOCIAL SERVICES),Capital,,Capital
Walsall Council,http://opendatacommunities.org/id/metropolitan-district-council/walsall,WC70-246,31/07/2016,Childrens,ANIMAL ANTICS,07/07/2016,290.00,62523-EVENTS,BLAKENALL CHILDCARE SERVICE,Supplies & Services,,Revenue
Walsall Council,http://opendatacommunities.org/id/metropolitan-district-council/walsall,WC70-247,31/07/2016,Social Care & Inclusion,REDACTED,12/07/2016,344.00,76422-DIRECT PAYMENTS TO SOCIAL SERVICES CLIENTS,LD COMMISSIONING,Transfer Payments,,Revenue
Walsall Council,http://opendatacommunities.org/id/metropolitan-district-council/walsall,WC70-248,31/07/2016,Childrens,REDACTED,18/07/2016,925.00,62515-MISCELLANEOUS SUPPLIES,INTERNAL FOSTER CARE PROVISION,Supplies & Services,,Revenue
Walsall Council,http://opendatacommunities.org/id/metropolitan-district-council/walsall,WC70-249,31/07/2016,Social Care & Inclusion,REDACTED,14/07/2016,325.41,73374-SUPPORTED & OTHER ACCOMMODATION,LD COMMISSIONING,Third Party Payments,,Revenue
Walsall Council,http://opendatacommunities.org/id/metropolitan-district-council/walsall,WC70-250,31/07/2016,Social Care & Inclusion,ANSON COURT RESIDENTIAL HOME,12/07/2016,672.27,73373-RESIDENTIAL & NURSING CARE PLACEMENTS,OP COMMISSIONING,Third Party Payments,,Revenue
Walsall Council,http://opendatacommunities.org/id/metropolitan-district-council/walsall,WC70-251,31/07/2016,Social Care & Inclusion,ANSON COURT RESIDENTIAL HOME,20/07/2016,728.30,73373-RESIDENTIAL & NURSING CARE PLACEMENTS,OP COMMISSIONING,Third Party Payments,,Revenue
Walsall Council,http://opendatacommunities.org/id/metropolitan-district-council/walsall,WC70-252,31/07/2016,Social Care & Inclusion,ANSON COURT RESIDENTIAL HOME,07/07/2016,"1,800.00",73373-RESIDENTIAL & NURSING CARE PLACEMENTS,OP COMMISSIONING,Third Party Payments,,Revenue
Walsall Council,http://opendatacommunities.org/id/metropolitan-district-council/walsall,WC70-253,31/07/2016,Social Care & Inclusion,ANSON COURT RESIDENTIAL HOME,07/07/2016,"1,800.00",73373-RESIDENTIAL & NURSING CARE PLACEMENTS,OP COMMISSIONING,Third Party Payments,,Revenue
Walsall Council,http://opendatacommunities.org/id/metropolitan-district-council/walsall,WC70-254,31/07/2016,Social Care & Inclusion,ANSON COURT RESIDENTIAL HOME,07/07/2016,"1,800.00",73373-RESIDENTIAL & NURSING CARE PLACEMENTS,OP COMMISSIONING,Third Party Payments,,Revenue
Walsall Council,http://opendatacommunities.org/id/metropolitan-district-council/walsall,WC70-255,31/07/2016,Social Care & Inclusion,ANSON COURT RESIDENTIAL HOME,07/07/2016,"1,800.00",73373-RESIDENTIAL & NURSING CARE PLACEMENTS,OP COMMISSIONING,Third Party Payments,,Revenue
Walsall Council,http://opendatacommunities.org/id/metropolitan-district-council/walsall,WC70-256,31/07/2016,Social Care & Inclusion,ANSON COURT RESIDENTIAL HOME,07/07/2016,"1,800.00",73373-RESIDENTIAL & NURSING CARE PLACEMENTS,OP COMMISSIONING,Third Party Payments,,Revenue
Walsall Council,http://opendatacommunities.org/id/metropolitan-district-council/walsall,WC70-257,31/07/2016,Social Care & Inclusion,ANSON COURT RESIDENTIAL HOME,07/07/2016,"1,800.00",73373-RESIDENTIAL & NURSING CARE PLACEMENTS,MH COMMISSIONING,Third Party Payments,,Revenue
Walsall Council,http://opendatacommunities.org/id/metropolitan-district-council/walsall,WC70-258,31/07/2016,Social Care & Inclusion,ANSON COURT RESIDENTIAL HOME,07/07/2016,"1,800.00",73373-RESIDENTIAL & NURSING CARE PLACEMENTS,OP COMMISSIONING,Third Party Payments,,Revenue
Walsall Council,http://opendatacommunities.org/id/metropolitan-district-council/walsall,WC70-259,31/07/2016,Social Care & Inclusion,ANSON COURT RESIDENTIAL HOME,07/07/2016,"1,800.00",73373-RESIDENTIAL & NURSING CARE PLACEMENTS,MH COMMISSIONING,Third Party Payments,,Revenue
Walsall Council,http://opendatacommunities.org/id/metropolitan-district-council/walsall,WC70-260,31/07/2016,Social Care & Inclusion,ANSON COURT RESIDENTIAL HOME,07/07/2016,"1,800.00",73373-RESIDENTIAL & NURSING CARE PLACEMENTS,OP COMMISSIONING,Third Party Payments,,Revenue
Walsall Council,http://opendatacommunities.org/id/metropolitan-district-council/walsall,WC70-261,31/07/2016,Social Care & Inclusion,ANSON COURT RESIDENTIAL HOME,07/07/2016,"1,800.00",73373-RESIDENTIAL & NURSING CARE PLACEMENTS,MH COMMISSIONING,Third Party Payments,,Revenue
Walsall Council,http://opendatacommunities.org/id/metropolitan-district-council/walsall,WC70-262,31/07/2016,Social Care & Inclusion,ANSON COURT RESIDENTIAL HOME,07/07/2016,"1,800.00",73373-RESIDENTIAL & NURSING CARE PLACEMENTS,OP COMMISSIONING,Third Party Payments,,Revenue
Walsall Council,http://opendatacommunities.org/id/metropolitan-district-council/walsall,WC70-263,31/07/2016,Social Care & Inclusion,ANSON COURT RESIDENTIAL HOME,07/07/2016,"1,800.00",73373-RESIDENTIAL & NURSING CARE PLACEMENTS,OP COMMISSIONING,Third Party Payments,,Revenue
Walsall Council,http://opendatacommunities.org/id/metropolitan-district-council/walsall,WC70-264,31/07/2016,Social Care & Inclusion,ANSON COURT RESIDENTIAL HOME,07/07/2016,"1,800.00",73373-RESIDENTIAL & NURSING CARE PLACEMENTS,MH COMMISSIONING,Third Party Payments,,Revenue
Walsall Council,http://opendatacommunities.org/id/metropolitan-district-council/walsall,WC70-265,31/07/2016,Social Care & Inclusion,ANSON COURT RESIDENTIAL HOME,07/07/2016,"1,800.00",73373-RESIDENTIAL & NURSING CARE PLACEMENTS,OP COMMISSIONING,Third Party Payments,,Revenue
Walsall Council,http://opendatacommunities.org/id/metropolitan-district-council/walsall,WC70-266,31/07/2016,Social Care & Inclusion,ANSON COURT RESIDENTIAL HOME,07/07/2016,"1,800.00",73373-RESIDENTIAL & NURSING CARE PLACEMENTS,OP COMMISSIONING,Third Party Payments,,Revenue
Walsall Council,http://opendatacommunities.org/id/metropolitan-district-council/walsall,WC70-267,31/07/2016,Social Care & Inclusion,ANSON COURT RESIDENTIAL HOME,07/07/2016,"1,800.00",73373-RESIDENTIAL & NURSING CARE PLACEMENTS,OP COMMISSIONING,Third Party Payments,,Revenue
Walsall Council,http://opendatacommunities.org/id/metropolitan-district-council/walsall,WC70-268,31/07/2016,Social Care & Inclusion,ANSON COURT RESIDENTIAL HOME,07/07/2016,"1,800.00",73373-RESIDENTIAL & NURSING CARE PLACEMENTS,OP COMMISSIONING,Third Party Payments,,Revenue
Walsall Council,http://opendatacommunities.org/id/metropolitan-district-council/walsall,WC70-269,31/07/2016,Social Care & Inclusion,ANSON COURT RESIDENTIAL HOME,20/07/2016,"1,800.00",73373-RESIDENTIAL & NURSING CARE PLACEMENTS,OP COMMISSIONING,Third Party Payments,,Revenue
Walsall Council,http://opendatacommunities.org/id/metropolitan-district-council/walsall,WC70-270,31/07/2016,Social Care & Inclusion,ANSON COURT RESIDENTIAL HOME,07/07/2016,"4,880.00",73373-RESIDENTIAL & NURSING CARE PLACEMENTS,MH COMMISSIONING,Third Party Payments,,Revenue
Walsall Council,http://opendatacommunities.org/id/metropolitan-district-council/walsall,WC70-271,31/07/2016,Social Care & Inclusion,ANSON COURT RESIDENTIAL HOME,07/07/2016,"5,284.88",73373-RESIDENTIAL & NURSING CARE PLACEMENTS,MH COMMISSIONING,Third Party Payments,,Revenue
Walsall Council,http://opendatacommunities.org/id/metropolitan-district-council/walsall,WC70-272,31/07/2016,Childrens,REDACTED,04/07/2016,"1,310.64",74006-HOLIDAY/CHRISTMAS ALLOWANCE-FOSTER CARERS-OTH AGENCY PROVISION,INTERNAL FOSTER CARE PROVISION,Third Party Payments,,Revenue
Walsall Council,http://opendatacommunities.org/id/metropolitan-district-council/walsall,WC70-273,31/07/2016,Change and Governance,APCOA PARKING SERVICES (UK) LTD,04/07/2016,"2,320.00",73025-PROFESSIONAL SERVICES-PRIV CONTRACTOR & OTHER AGENCIES,ELECTORAL ADMINISTRATION,Third Party Payments,,Revenue
Walsall Council,http://opendatacommunities.org/id/metropolitan-district-council/walsall,WC70-274,31/07/2016,Economy & Environment,APCOA PARKING SERVICES (UK) LTD,14/07/2016,"49,547.05",73025-PROFESSIONAL SERVICES-PRIV CONTRACTOR & OTHER AGENCIES,PARKING SERVICES,Third Party Payments,,Revenue
Walsall Council,http://opendatacommunities.org/id/metropolitan-district-council/walsall,WC70-275,31/07/2016,Childrens,APPLIED GEOLOGY LTD,07/07/2016,"2,244.65",01002-PROJECT FEES,CFR 929 FIBBERSLEY PRIMARY SIGNIFICANT ENLARGEMENT,Capital,,Capital
Walsall Council,http://opendatacommunities.org/id/metropolitan-district-council/walsall,WC70-276,31/07/2016,Economy & Environment,AQUAMO LTD,12/07/2016,214.81,60007-REPAIR OF EQUIPMENT-EQUIPMENT,WALSALL GALA CENTRE,Supplies & Services,,Revenue
Walsall Council,http://opendatacommunities.org/id/metropolitan-district-council/walsall,WC70-277,31/07/2016,Economy & Environment,AQUAMO LTD,01/07/2016,247.50,60007-REPAIR OF EQUIPMENT-EQUIPMENT,WALSALL GALA CENTRE,Supplies & Services,,Revenue
Walsall Council,http://opendatacommunities.org/id/metropolitan-district-council/walsall,WC70-278,31/07/2016,Social Care & Inclusion,ARBORETUM NURSING HOME.,07/07/2016,987.80,73373-RESIDENTIAL & NURSING CARE PLACEMENTS,OP COMMISSIONING,Third Party Payments,,Revenue
Walsall Council,http://opendatacommunities.org/id/metropolitan-district-council/walsall,WC70-279,31/07/2016,Social Care & Inclusion,ARBORETUM NURSING HOME.,07/07/2016,"1,481.70",73373-RESIDENTIAL & NURSING CARE PLACEMENTS,OP COMMISSIONING,Third Party Payments,,Revenue
Walsall Council,http://opendatacommunities.org/id/metropolitan-district-council/walsall,WC70-280,31/07/2016,Social Care & Inclusion,ARBORETUM NURSING HOME.,07/07/2016,"1,648.27",73373-RESIDENTIAL & NURSING CARE PLACEMENTS,OP COMMISSIONING,Third Party Payments,,Revenue
Walsall Council,http://opendatacommunities.org/id/metropolitan-district-council/walsall,WC70-281,31/07/2016,Social Care & Inclusion,ARBORETUM NURSING HOME.,07/07/2016,"1,975.60",73373-RESIDENTIAL & NURSING CARE PLACEMENTS,OP COMMISSIONING,Third Party Payments,,Revenue
Walsall Council,http://opendatacommunities.org/id/metropolitan-district-council/walsall,WC70-282,31/07/2016,Social Care & Inclusion,ARBORETUM NURSING HOME.,07/07/2016,"1,975.60",73373-RESIDENTIAL & NURSING CARE PLACEMENTS,OP COMMISSIONING,Third Party Payments,,Revenue
Walsall Council,http://opendatacommunities.org/id/metropolitan-district-council/walsall,WC70-283,31/07/2016,Social Care & Inclusion,ARBORETUM NURSING HOME.,07/07/2016,"1,975.60",73373-RESIDENTIAL & NURSING CARE PLACEMENTS,OP COMMISSIONING,Third Party Payments,,Revenue
Walsall Council,http://opendatacommunities.org/id/metropolitan-district-council/walsall,WC70-284,31/07/2016,Social Care & Inclusion,ARBORETUM NURSING HOME.,12/07/2016,"1,975.60",73373-RESIDENTIAL & NURSING CARE PLACEMENTS,OP COMMISSIONING,Third Party Payments,,Revenue
Walsall Council,http://opendatacommunities.org/id/metropolitan-district-council/walsall,WC70-285,31/07/2016,Social Care & Inclusion,ARBORETUM NURSING HOME.,12/07/2016,"1,975.60",73373-RESIDENTIAL & NURSING CARE PLACEMENTS,OP COMMISSIONING,Third Party Payments,,Revenue
Walsall Council,http://opendatacommunities.org/id/metropolitan-district-council/walsall,WC70-286,31/07/2016,Social Care & Inclusion,ARBORETUM NURSING HOME.,12/07/2016,"1,975.60",73373-RESIDENTIAL & NURSING CARE PLACEMENTS,OP COMMISSIONING,Third Party Payments,,Revenue
Walsall Council,http://opendatacommunities.org/id/metropolitan-district-council/walsall,WC70-287,31/07/2016,Social Care & Inclusion,ARBORETUM NURSING HOME.,12/07/2016,"1,975.60",73373-RESIDENTIAL & NURSING CARE PLACEMENTS,OP COMMISSIONING,Third Party Payments,,Revenue
Walsall Council,http://opendatacommunities.org/id/metropolitan-district-council/walsall,WC70-288,31/07/2016,Social Care & Inclusion,ARBORETUM NURSING HOME.,12/07/2016,"1,975.60",73373-RESIDENTIAL & NURSING CARE PLACEMENTS,OP COMMISSIONING,Third Party Payments,,Revenue
Walsall Council,http://opendatacommunities.org/id/metropolitan-district-council/walsall,WC70-289,31/07/2016,Social Care & Inclusion,ARBORETUM NURSING HOME.,07/07/2016,"2,017.16",73373-RESIDENTIAL & NURSING CARE PLACEMENTS,OP COMMISSIONING,Third Party Payments,,Revenue
Walsall Council,http://opendatacommunities.org/id/metropolitan-district-council/walsall,WC70-290,31/07/2016,Social Care & Inclusion,ARBORETUM NURSING HOME.,12/07/2016,"2,017.16",73373-RESIDENTIAL & NURSING CARE PLACEMENTS,OP COMMISSIONING,Third Party Payments,,Revenue
Walsall Council,http://opendatacommunities.org/id/metropolitan-district-council/walsall,WC70-291,31/07/2016,Social Care & Inclusion,ARBORETUM NURSING HOME.,12/07/2016,"2,019.88",73373-RESIDENTIAL & NURSING CARE PLACEMENTS,OP COMMISSIONING,Third Party Payments,,Revenue
Walsall Council,http://opendatacommunities.org/id/metropolitan-district-council/walsall,WC70-292,31/07/2016,Social Care & Inclusion,ARBORETUM NURSING HOME.,12/07/2016,"2,030.00",73373-RESIDENTIAL & NURSING CARE PLACEMENTS,OP COMMISSIONING,Third Party Payments,,Revenue
Walsall Council,http://opendatacommunities.org/id/metropolitan-district-council/walsall,WC70-293,31/07/2016,Social Care & Inclusion,ARBORETUM NURSING HOME.,12/07/2016,"2,030.00",73373-RESIDENTIAL & NURSING CARE PLACEMENTS,OP COMMISSIONING,Third Party Payments,,Revenue
Walsall Council,http://opendatacommunities.org/id/metropolitan-district-council/walsall,WC70-294,31/07/2016,Social Care & Inclusion,ARBORETUM NURSING HOME.,12/07/2016,"2,142.08",73373-RESIDENTIAL & NURSING CARE PLACEMENTS,OP COMMISSIONING,Third Party Payments,,Revenue
Walsall Council,http://opendatacommunities.org/id/metropolitan-district-council/walsall,WC70-295,31/07/2016,Social Care & Inclusion,ARBORETUM NURSING HOME.,07/07/2016,"2,469.50",73373-RESIDENTIAL & NURSING CARE PLACEMENTS,OP COMMISSIONING,Third Party Payments,,Revenue
Walsall Council,http://opendatacommunities.org/id/metropolitan-district-council/walsall,WC70-296,31/07/2016,Social Care & Inclusion,ARBORETUM NURSING HOME.,07/07/2016,"2,469.50",73373-RESIDENTIAL & NURSING CARE PLACEMENTS,OP COMMISSIONING,Third Party Payments,,Revenue
Walsall Council,http://opendatacommunities.org/id/metropolitan-district-council/walsall,WC70-297,31/07/2016,Social Care & Inclusion,ARBORETUM NURSING HOME.,07/07/2016,"2,469.50",73373-RESIDENTIAL & NURSING CARE PLACEMENTS,OP COMMISSIONING,Third Party Payments,,Revenue
Walsall Council,http://opendatacommunities.org/id/metropolitan-district-council/walsall,WC70-298,31/07/2016,Social Care & Inclusion,ARBORETUM NURSING HOME.,07/07/2016,"2,469.50",73373-RESIDENTIAL & NURSING CARE PLACEMENTS,OP COMMISSIONING,Third Party Payments,,Revenue
Walsall Council,http://opendatacommunities.org/id/metropolitan-district-council/walsall,WC70-299,31/07/2016,Social Care & Inclusion,ARBORETUM NURSING HOME.,12/07/2016,"2,469.50",73373-RESIDENTIAL & NURSING CARE PLACEMENTS,OP COMMISSIONING,Third Party Payments,,Revenue
Walsall Council,http://opendatacommunities.org/id/metropolitan-district-council/walsall,WC70-300,31/07/2016,Social Care & Inclusion,ARBORETUM NURSING HOME.,07/07/2016,"2,521.45",73373-RESIDENTIAL & NURSING CARE PLACEMENTS,OP COMMISSIONING,Third Party Payments,,Revenue
Walsall Council,http://opendatacommunities.org/id/metropolitan-district-council/walsall,WC70-301,31/07/2016,Social Care & Inclusion,ARBORETUM NURSING HOME.,12/07/2016,"2,537.50",73373-RESIDENTIAL & NURSING CARE PLACEMENTS,OP COMMISSIONING,Third Party Payments,,Revenue
Walsall Council,http://opendatacommunities.org/id/metropolitan-district-council/walsall,WC70-302,31/07/2016,Childrens,ARNFIELD CARE LIMITED,14/07/2016,"4,489.14",74036-EXTERNAL RESIDENTIAL CARE-OTH AGENCY PROVISION,INDEPENDENT RESIDENTIAL HOMES,Third Party Payments,,Revenue
Walsall Council,http://opendatacommunities.org/id/metropolitan-district-council/walsall,WC70-303,31/07/2016,Childrens,ARNFIELD CARE LIMITED,14/07/2016,"16,731.30",74036-EXTERNAL RESIDENTIAL CARE-OTH AGENCY PROVISION,INDEPENDENT RESIDENTIAL HOMES,Third Party Payments,,Revenue
Walsall Council,http://opendatacommunities.org/id/metropolitan-district-council/walsall,WC70-304,31/07/2016,Childrens,ARNFIELD CARE LIMITED,14/07/2016,"17,289.01",74036-EXTERNAL RESIDENTIAL CARE-OTH AGENCY PROVISION,INDEPENDENT RESIDENTIAL HOMES,Third Party Payments,,Revenue
Walsall Council,http://opendatacommunities.org/id/metropolitan-district-council/walsall,WC70-305,31/07/2016,Childrens,ARNFIELD CARE LIMITED,14/07/2016,"17,289.14",74036-EXTERNAL RESIDENTIAL CARE-OTH AGENCY PROVISION,INDEPENDENT RESIDENTIAL HOMES,Third Party Payments,,Revenue
Walsall Council,http://opendatacommunities.org/id/metropolitan-district-council/walsall,WC70-306,31/07/2016,Childrens,ARTHUR M GRIFFITHS & SON LTD,27/07/2016,"264,750.51",01006-SITE WORKS MAIN CONTRACTORS,CFR 929 KING CHARLES PRIMARY SIGNIFICANT ENLARGEMENT,Capital,,Capital
Walsall Council,http://opendatacommunities.org/id/metropolitan-district-council/walsall,WC70-307,31/07/2016,Economy & Environment,ASA AWARDS,07/07/2016,424.25,60500-GENERAL MATERIALS,DARLASTON LEISURE CENTRE,Supplies & Services,,Revenue
Walsall Council,http://opendatacommunities.org/id/metropolitan-district-council/walsall,WC70-308,31/07/2016,Economy & Environment,ASDA PHARMACY,21/07/2016,247.80,63000-PROFESSIONAL FEES AND SERVICES,SEXUAL HEALTH,Supplies & Services,,Revenue
Walsall Council,http://opendatacommunities.org/id/metropolitan-district-council/walsall,WC70-309,31/07/2016,Economy & Environment,ASDA PHARMACY,20/07/2016,265.50,63000-PROFESSIONAL FEES AND SERVICES,SEXUAL HEALTH,Supplies & Services,,Revenue
Walsall Council,http://opendatacommunities.org/id/metropolitan-district-council/walsall,WC70-310,31/07/2016,Economy & Environment,ASDA PHARMACY,20/07/2016,290.23,71007-CONTRIBUTION TO PCT,PUBLIC HEALTH BUSINESS SUPPORT,Third Party Payments,,Revenue
Walsall Council,http://opendatacommunities.org/id/metropolitan-district-council/walsall,WC70-311,31/07/2016,Economy & Environment,ASDA PHARMACY,21/07/2016,325.50,71007-CONTRIBUTION TO PCT,PUBLIC HEALTH BUSINESS SUPPORT,Third Party Payments,,Revenue
Walsall Council,http://opendatacommunities.org/id/metropolitan-district-council/walsall,WC70-312,31/07/2016,Social Care & Inclusion,ASH GRANGE CARE HOME,20/07/2016,"1,988.20",73373-RESIDENTIAL & NURSING CARE PLACEMENTS,MH COMMISSIONING,Third Party Payments,,Revenue
Walsall Council,http://opendatacommunities.org/id/metropolitan-district-council/walsall,WC70-313,31/07/2016,Social Care & Inclusion,ASH GRANGE CARE HOME,20/07/2016,"2,065.64",73373-RESIDENTIAL & NURSING CARE PLACEMENTS,OP COMMISSIONING,Third Party Payments,,Revenue
Walsall Council,http://opendatacommunities.org/id/metropolitan-district-council/walsall,WC70-314,31/07/2016,Social Care & Inclusion,ASH GRANGE CARE HOME,20/07/2016,"2,111.40",73373-RESIDENTIAL & NURSING CARE PLACEMENTS,OP COMMISSIONING,Third Party Payments,,Revenue
Walsall Council,http://opendatacommunities.org/id/metropolitan-district-council/walsall,WC70-315,31/07/2016,Social Care & Inclusion,ASH GRANGE CARE HOME,26/07/2016,"2,111.40",73373-RESIDENTIAL & NURSING CARE PLACEMENTS,MH COMMISSIONING,Third Party Payments,,Revenue
Walsall Council,http://opendatacommunities.org/id/metropolitan-district-council/walsall,WC70-316,31/07/2016,Social Care & Inclusion,ASH GRANGE CARE HOME,20/07/2016,"2,546.88",73373-RESIDENTIAL & NURSING CARE PLACEMENTS,OP COMMISSIONING,Third Party Payments,,Revenue
Walsall Council,http://opendatacommunities.org/id/metropolitan-district-council/walsall,WC70-317,31/07/2016,Social Care & Inclusion,ASH GRANGE CARE HOME,20/07/2016,"2,564.60",73373-RESIDENTIAL & NURSING CARE PLACEMENTS,OP COMMISSIONING,Third Party Payments,,Revenue
Walsall Council,http://opendatacommunities.org/id/metropolitan-district-council/walsall,WC70-318,31/07/2016,Social Care & Inclusion,ASH GRANGE CARE HOME,20/07/2016,"2,564.60",73373-RESIDENTIAL & NURSING CARE PLACEMENTS,OP COMMISSIONING,Third Party Payments,,Revenue
Walsall Council,http://opendatacommunities.org/id/metropolitan-district-council/walsall,WC70-319,31/07/2016,Social Care & Inclusion,ASH GRANGE CARE HOME,20/07/2016,"2,564.60",73373-RESIDENTIAL & NURSING CARE PLACEMENTS,OP COMMISSIONING,Third Party Payments,,Revenue
Walsall Council,http://opendatacommunities.org/id/metropolitan-district-council/walsall,WC70-320,31/07/2016,Social Care & Inclusion,ASH GRANGE CARE HOME,20/07/2016,"2,564.60",73373-RESIDENTIAL & NURSING CARE PLACEMENTS,OP COMMISSIONING,Third Party Payments,,Revenue
Walsall Council,http://opendatacommunities.org/id/metropolitan-district-council/walsall,WC70-321,31/07/2016,Social Care & Inclusion,ASH GRANGE CARE HOME,20/07/2016,"2,564.60",73373-RESIDENTIAL & NURSING CARE PLACEMENTS,OP COMMISSIONING,Third Party Payments,,Revenue
Walsall Council,http://opendatacommunities.org/id/metropolitan-district-council/walsall,WC70-322,31/07/2016,Social Care & Inclusion,ASH GRANGE CARE HOME,20/07/2016,"2,564.60",73373-RESIDENTIAL & NURSING CARE PLACEMENTS,OP COMMISSIONING,Third Party Payments,,Revenue
Walsall Council,http://opendatacommunities.org/id/metropolitan-district-council/walsall,WC70-323,31/07/2016,Social Care & Inclusion,ASH GRANGE CARE HOME,20/07/2016,"2,564.60",73373-RESIDENTIAL & NURSING CARE PLACEMENTS,OP COMMISSIONING,Third Party Payments,,Revenue
Walsall Council,http://opendatacommunities.org/id/metropolitan-district-council/walsall,WC70-324,31/07/2016,Social Care & Inclusion,ASH GRANGE CARE HOME,20/07/2016,"2,564.61",73373-RESIDENTIAL & NURSING CARE PLACEMENTS,OP COMMISSIONING,Third Party Payments,,Revenue
Walsall Council,http://opendatacommunities.org/id/metropolitan-district-council/walsall,WC70-325,31/07/2016,Social Care & Inclusion,ASH GRANGE CARE HOME,12/07/2016,"14,700.00",73019-PSE'S-PRIV CONTRACTOR FEES,TRANSITIONAL CARE SUPPORT TEAM,Third Party Payments,,Revenue
Walsall Council,http://opendatacommunities.org/id/metropolitan-district-council/walsall,WC70-326,31/07/2016,Social Care & Inclusion,ASHBOURNE LODGE,12/07/2016,"2,173.99",73373-RESIDENTIAL & NURSING CARE PLACEMENTS,OP COMMISSIONING,Third Party Payments,,Revenue
Walsall Council,http://opendatacommunities.org/id/metropolitan-district-council/walsall,WC70-327,31/07/2016,Economy & Environment,ASKEWS AND HOLTS LIBRARY SERVICES LTD,08/07/2016,223.50,60501-LIBRARY BOOKS,LIBRARY STOCK AND PERFORMANCE,Supplies & Services,,Revenue
Walsall Council,http://opendatacommunities.org/id/metropolitan-district-council/walsall,WC70-328,31/07/2016,Economy & Environment,ASKEWS AND HOLTS LIBRARY SERVICES LTD,01/07/2016,262.44,60501-LIBRARY BOOKS,LIBRARY STOCK AND PERFORMANCE,Supplies & Services,,Revenue
Walsall Council,http://opendatacommunities.org/id/metropolitan-district-council/walsall,WC70-329,31/07/2016,Economy & Environment,ASKEWS AND HOLTS LIBRARY SERVICES LTD,13/07/2016,263.97,60501-LIBRARY BOOKS,LIBRARY STOCK AND PERFORMANCE,Supplies & Services,,Revenue
Walsall Council,http://opendatacommunities.org/id/metropolitan-district-council/walsall,WC70-330,31/07/2016,Economy & Environment,ASKEWS AND HOLTS LIBRARY SERVICES LTD,20/07/2016,323.25,60501-LIBRARY BOOKS,LIBRARY STOCK AND PERFORMANCE,Supplies & Services,,Revenue
Walsall Council,http://opendatacommunities.org/id/metropolitan-district-council/walsall,WC70-331,31/07/2016,Economy & Environment,ASKEWS AND HOLTS LIBRARY SERVICES LTD,04/07/2016,713.58,60501-LIBRARY BOOKS,LIBRARY STOCK AND PERFORMANCE,Supplies & Services,,Revenue
Walsall Council,http://opendatacommunities.org/id/metropolitan-district-council/walsall,WC70-332,31/07/2016,Holding Accounts,ASKEYS FENCING AND GARDENING SUPPLIES,07/07/2016,"1,600.00",67001-MISC INSURANCES - PAYMENT OF CLAIMS,PUBLIC LIABILITY,Supplies & Services,,Revenue
Walsall Council,http://opendatacommunities.org/id/metropolitan-district-council/walsall,WC70-333,31/07/2016,Social Care & Inclusion,REDACTED,12/07/2016,493.00,76422-DIRECT PAYMENTS TO SOCIAL SERVICES CLIENTS,OP COMMISSIONING,Transfer Payments,,Revenue
Walsall Council,http://opendatacommunities.org/id/metropolitan-district-council/walsall,WC70-334,31/07/2016,Childrens,ASSOCIATION FOR REHABILITATION OF COMMUNICATION AND ORAL SKILLS (ARCOS),01/07/2016,354.99,63000-PROFESSIONAL FEES AND SERVICES,INDEPENDENT PROVIDERS - SPECIAL & AP,Supplies & Services,,Revenue
Walsall Council,http://opendatacommunities.org/id/metropolitan-district-council/walsall,WC70-335,31/07/2016,Childrens,ASSOCIATION FOR REHABILITATION OF COMMUNICATION AND ORAL SKILLS (ARCOS),27/07/2016,900.00,63000-PROFESSIONAL FEES AND SERVICES,SEN ASSESSMENT,Supplies & Services,,Revenue
Walsall Council,http://opendatacommunities.org/id/metropolitan-district-council/walsall,WC70-336,31/07/2016,Childrens,ASTON CHILDRENS CARE,14/07/2016,"11,071.34",74036-EXTERNAL RESIDENTIAL CARE-OTH AGENCY PROVISION,INDEPENDENT RESIDENTIAL HOMES,Third Party Payments,,Revenue
Walsall Council,http://opendatacommunities.org/id/metropolitan-district-council/walsall,WC70-337,31/07/2016,Economy & Environment,ATHWAL NEWS LTD,13/07/2016,521.29,60501-LIBRARY BOOKS,LIBRARY STOCK AND PERFORMANCE,Supplies & Services,,Revenue
Walsall Council,http://opendatacommunities.org/id/metropolitan-district-council/walsall,WC70-338,31/07/2016,Change and Governance,ATKINS LIMITED,11/07/2016,"9,419.00",01006-SITE WORKS MAIN CONTRACTORS,CFR 840 WALSALL COUNCIL HOUSE REPAIR WORKS & IMPROVEMENT,Capital,,Capital
Walsall Council,http://opendatacommunities.org/id/metropolitan-district-council/walsall,WC70-339,31/07/2016,Change and Governance,AURORA GRAPHICS & DISPLAYS LTD,07/07/2016,466.62,62008-OUTWORK-PRINT ROOM,PRINTING SERVICES,Supplies & Services,,Revenue
Walsall Council,http://opendatacommunities.org/id/metropolitan-district-council/walsall,WC70-340,31/07/2016,Change and Governance,AURORA GRAPHICS & DISPLAYS LTD,07/07/2016,621.88,62008-OUTWORK-PRINT ROOM,PRINTING SERVICES,Supplies & Services,,Revenue
Walsall Council,http://opendatacommunities.org/id/metropolitan-district-council/walsall,WC70-341,31/07/2016,Social Care & Inclusion,AUTISM WEST MIDLANDS,07/07/2016,"7,237.75",73373-RESIDENTIAL & NURSING CARE PLACEMENTS,LD COMMISSIONING,Third Party Payments,,Revenue
Walsall Council,http://opendatacommunities.org/id/metropolitan-district-council/walsall,WC70-342,31/07/2016,Social Care & Inclusion,AUTISM WEST MIDLANDS,01/07/2016,"21,666.50",70000-SOCIAL SERVICES-FEES TO VOLUNTARY BODIES,COMPLEX NEEDS CONTRACTS/SLA's,Third Party Payments,,Revenue
Walsall Council,http://opendatacommunities.org/id/metropolitan-district-council/walsall,WC70-343,31/07/2016,Social Care & Inclusion,AUTISM WEST MIDLANDS 001,07/07/2016,"4,838.06",73373-RESIDENTIAL & NURSING CARE PLACEMENTS,LD COMMISSIONING,Third Party Payments,,Revenue
Walsall Council,http://opendatacommunities.org/id/metropolitan-district-council/walsall,WC70-344,31/07/2016,Economy & Environment,AVANTGARDE PHARMA LTD T/A AL-SHAFA PHARMACY,20/07/2016,284.94,71007-CONTRIBUTION TO PCT,PUBLIC HEALTH BUSINESS SUPPORT,Third Party Payments,,Revenue
Walsall Council,http://opendatacommunities.org/id/metropolitan-district-council/walsall,WC70-345,31/07/2016,Social Care & Inclusion,REDACTED,12/07/2016,777.00,76422-DIRECT PAYMENTS TO SOCIAL SERVICES CLIENTS,OP COMMISSIONING,Transfer Payments,,Revenue
Walsall Council,http://opendatacommunities.org/id/metropolitan-district-council/walsall,WC70-346,31/07/2016,Economy & Environment,AXIELL LIMITED,25/07/2016,536.90,63000-PROFESSIONAL FEES AND SERVICES,LIBRARY DEVELOPMENT 1,Supplies & Services,,Revenue
Walsall Council,http://opendatacommunities.org/id/metropolitan-district-council/walsall,WC70-347,31/07/2016,Economy & Environment,AXIELL LIMITED,01/07/2016,"3,661.06",63800-COMPUTER EQUIPMENT AND SUPPLIES,LOCAL HISTORY CENTRE,Supplies & Services,,Revenue
Walsall Council,http://opendatacommunities.org/id/metropolitan-district-council/walsall,WC70-348,31/07/2016,Childrens,REDACTED,12/07/2016,"1,284.00",76422-DIRECT PAYMENTS TO SOCIAL SERVICES CLIENTS,FAMILY SUPPORT - DIRECT PAYMENTS,Transfer Payments,,Revenue
Walsall Council,http://opendatacommunities.org/id/metropolitan-district-council/walsall,WC70-349,31/07/2016,Social Care & Inclusion,REDACTED,12/07/2016,"2,652.00",76422-DIRECT PAYMENTS TO SOCIAL SERVICES CLIENTS,LD COMMISSIONING,Transfer Payments,,Revenue
Walsall Council,http://opendatacommunities.org/id/metropolitan-district-council/walsall,WC70-350,31/07/2016,Economy & Environment,B & S CHAINS LTD,11/07/2016,690.30,60500-GENERAL MATERIALS,INFRASTRUCTURE MAINTENANCE,Supplies & Services,,Revenue
Walsall Council,http://opendatacommunities.org/id/metropolitan-district-council/walsall,WC70-351,31/07/2016,Childrens,REDACTED,18/07/2016,906.76,62515-MISCELLANEOUS SUPPLIES,INTERNAL FOSTER CARE PROVISION,Supplies & Services,,Revenue
Walsall Council,http://opendatacommunities.org/id/metropolitan-district-council/walsall,WC70-352,31/07/2016,Childrens,REDACTED,18/07/2016,985.76,74006-HOLIDAY/CHRISTMAS ALLOWANCE-FOSTER CARERS-OTH AGENCY PROVISION,INTERNAL FOSTER CARE PROVISION,Third Party Payments,,Revenue
Walsall Council,http://opendatacommunities.org/id/metropolitan-district-council/walsall,WC70-353,31/07/2016,Childrens,REDACTED,05/07/2016,464.00,76000-TRANSFER PAYMENTS - SOCIAL SERVICES CLIENTS,TRANSITION AND LEAVING CARE,Transfer Payments,,Revenue
Walsall Council,http://opendatacommunities.org/id/metropolitan-district-council/walsall,WC70-354,31/07/2016,Childrens,REDACTED,19/07/2016,464.00,76000-TRANSFER PAYMENTS - SOCIAL SERVICES CLIENTS,TRANSITION AND LEAVING CARE,Transfer Payments,,Revenue
Walsall Council,http://opendatacommunities.org/id/metropolitan-district-council/walsall,WC70-355,31/07/2016,Childrens,REDACTED,18/07/2016,906.76,62515-MISCELLANEOUS SUPPLIES,INTERNAL FOSTER CARE PROVISION,Supplies & Services,,Revenue
Walsall Council,http://opendatacommunities.org/id/metropolitan-district-council/walsall,WC70-356,31/07/2016,Childrens,REDACTED,18/07/2016,985.76,74006-HOLIDAY/CHRISTMAS ALLOWANCE-FOSTER CARERS-OTH AGENCY PROVISION,INTERNAL FOSTER CARE PROVISION,Third Party Payments,,Revenue
Walsall Council,http://opendatacommunities.org/id/metropolitan-district-council/walsall,WC70-357,31/07/2016,Childrens,BABCOCK TRAINING LTD,20/07/2016,282.12,63000-PROFESSIONAL FEES AND SERVICES,VIRTUAL SCHOOL CENTRAL PUPIL PREMIUM,Supplies & Services,,Revenue
Walsall Council,http://opendatacommunities.org/id/metropolitan-district-council/walsall,WC70-358,31/07/2016,Childrens,BACK CARE SOLUTIONS LTD,21/07/2016,450.95,60500-GENERAL MATERIALS,ADOPTION TEAM,Supplies & Services,,Revenue
Walsall Council,http://opendatacommunities.org/id/metropolitan-district-council/walsall,WC70-359,31/07/2016,Economy & Environment,BAKER HALL PARTNERSHIP,01/07/2016,653.00,63000-PROFESSIONAL FEES AND SERVICES,BUILDING CONTROL REVENUE FUNDED,Supplies & Services,,Revenue
Walsall Council,http://opendatacommunities.org/id/metropolitan-district-council/walsall,WC70-360,31/07/2016,Economy & Environment,BAKER HALL PARTNERSHIP,07/07/2016,774.00,63000-PROFESSIONAL FEES AND SERVICES,BUILDING CONTROL REVENUE FUNDED,Supplies & Services,,Revenue
Walsall Council,http://opendatacommunities.org/id/metropolitan-district-council/walsall,WC70-361,31/07/2016,Economy & Environment,BAKER HALL PARTNERSHIP,05/07/2016,977.00,63000-PROFESSIONAL FEES AND SERVICES,BUILDING CONTROL REVENUE FUNDED,Supplies & Services,,Revenue
Walsall Council,http://opendatacommunities.org/id/metropolitan-district-council/walsall,WC70-362,31/07/2016,Social Care & Inclusion,REDACTED,12/07/2016,480.00,76422-DIRECT PAYMENTS TO SOCIAL SERVICES CLIENTS,MH COMMISSIONING,Transfer Payments,,Revenue
Walsall Council,http://opendatacommunities.org/id/metropolitan-district-council/walsall,WC70-363,31/07/2016,Social Care & Inclusion,REDACTED,12/07/2016,"2,849.92",76422-DIRECT PAYMENTS TO SOCIAL SERVICES CLIENTS,LD COMMISSIONING,Transfer Payments,,Revenue
Walsall Council,http://opendatacommunities.org/id/metropolitan-district-council/walsall,WC70-364,31/07/2016,Leasing,BALMERS GM LTD,25/07/2016,"18,900.00",01018-VEHICLES LEASING,VEHICLE MAINTENANCE VEHICLES,Capital,,Capital
Walsall Council,http://opendatacommunities.org/id/metropolitan-district-council/walsall,WC70-365,31/07/2016,Social Care & Inclusion,REDACTED,12/07/2016,800.00,76422-DIRECT PAYMENTS TO SOCIAL SERVICES CLIENTS,OP COMMISSIONING,Transfer Payments,,Revenue
Walsall Council,http://opendatacommunities.org/id/metropolitan-district-council/walsall,WC70-366,31/07/2016,Social Care & Inclusion,REDACTED,12/07/2016,"1,046.50",76422-DIRECT PAYMENTS TO SOCIAL SERVICES CLIENTS,OP COMMISSIONING,Transfer Payments,,Revenue
Walsall Council,http://opendatacommunities.org/id/metropolitan-district-council/walsall,WC70-367,31/07/2016,Social Care & Inclusion,REDACTED,12/07/2016,"1,582.86",76422-DIRECT PAYMENTS TO SOCIAL SERVICES CLIENTS,OP COMMISSIONING,Transfer Payments,,Revenue
Walsall Council,http://opendatacommunities.org/id/metropolitan-district-council/walsall,WC70-368,31/07/2016,Social Care & Inclusion,REDACTED,12/07/2016,"1,536.08",76422-DIRECT PAYMENTS TO SOCIAL SERVICES CLIENTS,YADS COMMISSIONING,Transfer Payments,,Revenue
Walsall Council,http://opendatacommunities.org/id/metropolitan-district-council/walsall,WC70-369,31/07/2016,Social Care & Inclusion,REDACTED,12/07/2016,632.52,76422-DIRECT PAYMENTS TO SOCIAL SERVICES CLIENTS,OP COMMISSIONING,Transfer Payments,,Revenue
Walsall Council,http://opendatacommunities.org/id/metropolitan-district-council/walsall,WC70-370,31/07/2016,Economy & Environment,BARBOUR LOGIC LIMITED,12/07/2016,"7,837.50",73025-PROFESSIONAL SERVICES-PRIV CONTRACTOR & OTHER AGENCIES,BUS LANE ENFORCEMENT,Third Party Payments,,Revenue
Walsall Council,http://opendatacommunities.org/id/metropolitan-district-council/walsall,WC70-371,31/07/2016,Childrens,BARNARDOS SERVICES LTD,06/07/2016,"14,333.00",63000-PROFESSIONAL FEES AND SERVICES,LOOKED AFTER CHILDRENS SOCIAL WORK TEAM,Supplies & Services,,Revenue
Walsall Council,http://opendatacommunities.org/id/metropolitan-district-council/walsall,WC70-372,31/07/2016,Economy & Environment,BAT FABRICATIONS LTD,12/07/2016,"8,320.00",63239-EXTERNAL WORKS-PAYMENT TO CONTRACTOR,COMMUNITY LIAISON,Third Party Payments,,Revenue
Walsall Council,http://opendatacommunities.org/id/metropolitan-district-council/walsall,WC70-373,31/07/2016,Economy & Environment,BEACON PHARMACY,21/07/2016,17.70,63000-PROFESSIONAL FEES AND SERVICES,SEXUAL HEALTH,Supplies & Services,,Revenue
Walsall Council,http://opendatacommunities.org/id/metropolitan-district-council/walsall,WC70-374,31/07/2016,Economy & Environment,BEACON PHARMACY,21/07/2016,278.61,71007-CONTRIBUTION TO PCT,PUBLIC HEALTH BUSINESS SUPPORT,Third Party Payments,,Revenue
Walsall Council,http://opendatacommunities.org/id/metropolitan-district-council/walsall,WC70-375,31/07/2016,Childrens,REDACTED,18/07/2016,925.00,62515-MISCELLANEOUS SUPPLIES,INTERNAL FOSTER CARE PROVISION,Supplies & Services,,Revenue
Walsall Council,http://opendatacommunities.org/id/metropolitan-district-council/walsall,WC70-376,31/07/2016,Childrens,REDACTED,18/07/2016,"1,952.76",74006-HOLIDAY/CHRISTMAS ALLOWANCE-FOSTER CARERS-OTH AGENCY PROVISION,INTERNAL FOSTER CARE PROVISION,Third Party Payments,,Revenue
Walsall Council,http://opendatacommunities.org/id/metropolitan-district-council/walsall,WC70-377,31/07/2016,Economy & Environment,BEARING SALES AND SERVICES LTD,26/07/2016,380.00,60514-MATERIALS TO STORES,FLEET PARTS STOCK ACCOUNT,Supplies & Services,,Revenue
Walsall Council,http://opendatacommunities.org/id/metropolitan-district-council/walsall,WC70-378,31/07/2016,Social Care & Inclusion,BEARWOOD NURSING HOME LTD,26/07/2016,"1,527.60",73373-RESIDENTIAL & NURSING CARE PLACEMENTS,OP COMMISSIONING,Third Party Payments,,Revenue
Walsall Council,http://opendatacommunities.org/id/metropolitan-district-council/walsall,WC70-379,31/07/2016,Social Care & Inclusion,REDACTED,12/07/2016,978.49,76422-DIRECT PAYMENTS TO SOCIAL SERVICES CLIENTS,OP COMMISSIONING,Transfer Payments,,Revenue
Walsall Council,http://opendatacommunities.org/id/metropolitan-district-council/walsall,WC70-380,31/07/2016,Childrens,REDACTED,14/07/2016,620.88,66505-OTHER-GRANTS TO OTHER ORGS,EARLY YEARS - 3 YR OLDS,Third Party Payments,,Revenue
Walsall Council,http://opendatacommunities.org/id/metropolitan-district-council/walsall,WC70-381,31/07/2016,Childrens,REDACTED,13/07/2016,762.84,66505-OTHER-GRANTS TO OTHER ORGS,EARLY YEARS - 2 YR OLDS,Third Party Payments,,Revenue
Walsall Council,http://opendatacommunities.org/id/metropolitan-district-council/walsall,WC70-382,31/07/2016,Economy & Environment,BEE TEE ALARMS LTD,18/07/2016,667.05,"40000-REPAIRS,ALTERATIONS & MAINTENANCE-PREM",COMMUNITY LIAISON,Premises,,Revenue
Walsall Council,http://opendatacommunities.org/id/metropolitan-district-council/walsall,WC70-383,31/07/2016,Change and Governance,BEECHDALE RESIDENTS COMMUNITY GROUP,20/07/2016,750.00,66500-GRANTS TO OTHER ORGS,COHESION,Third Party Payments,,Revenue
Walsall Council,http://opendatacommunities.org/id/metropolitan-district-council/walsall,WC70-384,31/07/2016,Childrens,REDACTED,18/07/2016,571.44,74006-HOLIDAY/CHRISTMAS ALLOWANCE-FOSTER CARERS-OTH AGENCY PROVISION,INTERNAL FOSTER CARE PROVISION,Third Party Payments,,Revenue
Walsall Council,http://opendatacommunities.org/id/metropolitan-district-council/walsall,WC70-385,31/07/2016,Childrens,REDACTED,18/07/2016,803.36,62515-MISCELLANEOUS SUPPLIES,INTERNAL FOSTER CARE PROVISION,Supplies & Services,,Revenue
Walsall Council,http://opendatacommunities.org/id/metropolitan-district-council/walsall,WC70-386,31/07/2016,Social Care & Inclusion,REDACTED,12/07/2016,"2,205.00",76422-DIRECT PAYMENTS TO SOCIAL SERVICES CLIENTS,LD COMMISSIONING,Transfer Payments,,Revenue
Walsall Council,http://opendatacommunities.org/id/metropolitan-district-council/walsall,WC70-387,31/07/2016,Social Care & Inclusion,BENTLEY COURT PRIORY,20/07/2016,"1,119.51",73373-RESIDENTIAL & NURSING CARE PLACEMENTS,OP COMMISSIONING,Third Party Payments,,Revenue
Walsall Council,http://opendatacommunities.org/id/metropolitan-district-council/walsall,WC70-388,31/07/2016,Social Care & Inclusion,BENTLEY COURT PRIORY,12/07/2016,"1,573.35",73373-RESIDENTIAL & NURSING CARE PLACEMENTS,OP COMMISSIONING,Third Party Payments,,Revenue
Walsall Council,http://opendatacommunities.org/id/metropolitan-district-council/walsall,WC70-389,31/07/2016,Social Care & Inclusion,BENTLEY COURT PRIORY,20/07/2016,"1,853.36",73373-RESIDENTIAL & NURSING CARE PLACEMENTS,OP COMMISSIONING,Third Party Payments,,Revenue
Walsall Council,http://opendatacommunities.org/id/metropolitan-district-council/walsall,WC70-390,31/07/2016,Social Care & Inclusion,BENTLEY COURT PRIORY,20/07/2016,"2,121.17",73373-RESIDENTIAL & NURSING CARE PLACEMENTS,OP COMMISSIONING,Third Party Payments,,Revenue
Walsall Council,http://opendatacommunities.org/id/metropolitan-district-council/walsall,WC70-391,31/07/2016,Social Care & Inclusion,BENTLEY COURT PRIORY,12/07/2016,"2,247.64",73373-RESIDENTIAL & NURSING CARE PLACEMENTS,OP COMMISSIONING,Third Party Payments,,Revenue
Walsall Council,http://opendatacommunities.org/id/metropolitan-district-council/walsall,WC70-392,31/07/2016,Holding Accounts,BERRYMANS LACE MAWER LLP,18/07/2016,"7,684.40",67001-MISC INSURANCES - PAYMENT OF CLAIMS,PUBLIC LIABILITY,Supplies & Services,,Revenue
Walsall Council,http://opendatacommunities.org/id/metropolitan-district-council/walsall,WC70-393,31/07/2016,Social Care & Inclusion,REDACTED,12/07/2016,912.00,76422-DIRECT PAYMENTS TO SOCIAL SERVICES CLIENTS,OP COMMISSIONING,Transfer Payments,,Revenue
Walsall Council,http://opendatacommunities.org/id/metropolitan-district-council/walsall,WC70-394,31/07/2016,Childrens,REDACTED,18/07/2016,857.16,74006-HOLIDAY/CHRISTMAS ALLOWANCE-FOSTER CARERS-OTH AGENCY PROVISION,INTERNAL FOSTER CARE PROVISION,Third Party Payments,,Revenue
Walsall Council,http://opendatacommunities.org/id/metropolitan-district-council/walsall,WC70-395,31/07/2016,Childrens,REDACTED,18/07/2016,"1,445.32",62515-MISCELLANEOUS SUPPLIES,INTERNAL FOSTER CARE PROVISION,Supplies & Services,,Revenue
Walsall Council,http://opendatacommunities.org/id/metropolitan-district-council/walsall,WC70-396,31/07/2016,Social Care & Inclusion,REDACTED,12/07/2016,968.00,76422-DIRECT PAYMENTS TO SOCIAL SERVICES CLIENTS,OP COMMISSIONING,Transfer Payments,,Revenue
Walsall Council,http://opendatacommunities.org/id/metropolitan-district-council/walsall,WC70-397,31/07/2016,Social Care & Inclusion,BESCOT LODGE RESIDENTIAL CARE HOME,07/07/2016,"1,092.85",73373-RESIDENTIAL & NURSING CARE PLACEMENTS,OP COMMISSIONING,Third Party Payments,,Revenue
Walsall Council,http://opendatacommunities.org/id/metropolitan-district-council/walsall,WC70-398,31/07/2016,Social Care & Inclusion,BESCOT LODGE RESIDENTIAL CARE HOME,12/07/2016,"1,119.93",73373-RESIDENTIAL & NURSING CARE PLACEMENTS,OP COMMISSIONING,Third Party Payments,,Revenue
Walsall Council,http://opendatacommunities.org/id/metropolitan-district-council/walsall,WC70-399,31/07/2016,Social Care & Inclusion,BESCOT LODGE RESIDENTIAL CARE HOME,07/07/2016,"1,735.71",73373-RESIDENTIAL & NURSING CARE PLACEMENTS,OP COMMISSIONING,Third Party Payments,,Revenue
Walsall Council,http://opendatacommunities.org/id/metropolitan-district-council/walsall,WC70-400,31/07/2016,Social Care & Inclusion,BESCOT LODGE RESIDENTIAL CARE HOME,07/07/2016,"1,735.71",73373-RESIDENTIAL & NURSING CARE PLACEMENTS,OP COMMISSIONING,Third Party Payments,,Revenue
Walsall Council,http://opendatacommunities.org/id/metropolitan-district-council/walsall,WC70-401,31/07/2016,Social Care & Inclusion,BESCOT LODGE RESIDENTIAL CARE HOME,07/07/2016,"1,735.72",73373-RESIDENTIAL & NURSING CARE PLACEMENTS,OP COMMISSIONING,Third Party Payments,,Revenue
Walsall Council,http://opendatacommunities.org/id/metropolitan-district-council/walsall,WC70-402,31/07/2016,Social Care & Inclusion,BESCOT LODGE RESIDENTIAL CARE HOME,07/07/2016,"1,928.57",73373-RESIDENTIAL & NURSING CARE PLACEMENTS,OP COMMISSIONING,Third Party Payments,,Revenue
Walsall Council,http://opendatacommunities.org/id/metropolitan-district-council/walsall,WC70-403,31/07/2016,Social Care & Inclusion,BESCOT LODGE RESIDENTIAL CARE HOME,07/07/2016,"1,928.58",73373-RESIDENTIAL & NURSING CARE PLACEMENTS,OP COMMISSIONING,Third Party Payments,,Revenue
Walsall Council,http://opendatacommunities.org/id/metropolitan-district-council/walsall,WC70-404,31/07/2016,Economy & Environment,BESCOT STADIUM SUNDAY MARKET LTD,06/07/2016,"3,500.00",73025-PROFESSIONAL SERVICES-PRIV CONTRACTOR & OTHER AGENCIES,WILLENHALL MARKET,Third Party Payments,,Revenue
Walsall Council,http://opendatacommunities.org/id/metropolitan-district-council/walsall,WC70-405,31/07/2016,Social Care & Inclusion,BETHPHAGE.,01/07/2016,650.00,73374-SUPPORTED & OTHER ACCOMMODATION,LD COMMISSIONING,Third Party Payments,,Revenue
Walsall Council,http://opendatacommunities.org/id/metropolitan-district-council/walsall,WC70-406,31/07/2016,Social Care & Inclusion,BETHPHAGE.,01/07/2016,812.50,73374-SUPPORTED & OTHER ACCOMMODATION,LD COMMISSIONING,Third Party Payments,,Revenue
Walsall Council,http://opendatacommunities.org/id/metropolitan-district-council/walsall,WC70-407,31/07/2016,Social Care & Inclusion,BETHPHAGE.,01/07/2016,"1,439.24",73374-SUPPORTED & OTHER ACCOMMODATION,LD COMMISSIONING,Third Party Payments,,Revenue
Walsall Council,http://opendatacommunities.org/id/metropolitan-district-council/walsall,WC70-408,31/07/2016,Social Care & Inclusion,BETHPHAGE.,01/07/2016,"1,657.94",73374-SUPPORTED & OTHER ACCOMMODATION,LD COMMISSIONING,Third Party Payments,,Revenue
Walsall Council,http://opendatacommunities.org/id/metropolitan-district-council/walsall,WC70-409,31/07/2016,Social Care & Inclusion,BETHPHAGE.,01/07/2016,"1,799.05",73374-SUPPORTED & OTHER ACCOMMODATION,LD COMMISSIONING,Third Party Payments,,Revenue
Walsall Council,http://opendatacommunities.org/id/metropolitan-district-council/walsall,WC70-410,31/07/2016,Social Care & Inclusion,BETHPHAGE.,01/07/2016,"2,095.36",73374-SUPPORTED & OTHER ACCOMMODATION,LD COMMISSIONING,Third Party Payments,,Revenue
Walsall Council,http://opendatacommunities.org/id/metropolitan-district-council/walsall,WC70-411,31/07/2016,Social Care & Inclusion,BETHPHAGE.,01/07/2016,"2,210.00",73374-SUPPORTED & OTHER ACCOMMODATION,LD COMMISSIONING,Third Party Payments,,Revenue
Walsall Council,http://opendatacommunities.org/id/metropolitan-district-council/walsall,WC70-412,31/07/2016,Social Care & Inclusion,BETHPHAGE.,01/07/2016,"4,789.90",73374-SUPPORTED & OTHER ACCOMMODATION,LD COMMISSIONING,Third Party Payments,,Revenue
Walsall Council,http://opendatacommunities.org/id/metropolitan-district-council/walsall,WC70-413,31/07/2016,Social Care & Inclusion,REDACTED,12/07/2016,949.52,76422-DIRECT PAYMENTS TO SOCIAL SERVICES CLIENTS,MH COMMISSIONING,Transfer Payments,,Revenue
Walsall Council,http://opendatacommunities.org/id/metropolitan-district-council/walsall,WC70-414,31/07/2016,Social Care & Inclusion,REDACTED,12/07/2016,"2,767.84",76422-DIRECT PAYMENTS TO SOCIAL SERVICES CLIENTS,OP COMMISSIONING,Transfer Payments,,Revenue
Walsall Council,http://opendatacommunities.org/id/metropolitan-district-council/walsall,WC70-415,31/07/2016,Change and Governance,BFA SAFETY TRAINING,08/07/2016,295.00,30030-EXTERNAL TRAINING,HEALTH & SAFETY (TRADED),Employees,,Revenue
Walsall Council,http://opendatacommunities.org/id/metropolitan-district-council/walsall,WC70-416,31/07/2016,Change and Governance,BFA SAFETY TRAINING,08/07/2016,495.00,30030-EXTERNAL TRAINING,HEALTH & SAFETY (TRADED),Employees,,Revenue
Walsall Council,http://opendatacommunities.org/id/metropolitan-district-council/walsall,WC70-417,31/07/2016,Change and Governance,BFA SAFETY TRAINING,08/07/2016,595.00,30030-EXTERNAL TRAINING,HEALTH & SAFETY (TRADED),Employees,,Revenue
Walsall Council,http://opendatacommunities.org/id/metropolitan-district-council/walsall,WC70-418,31/07/2016,Childrens,BID CENTRE FOR DEAF PEOPLE,21/07/2016,279.45,73025-PROFESSIONAL SERVICES-PRIV CONTRACTOR & OTHER AGENCIES,SAFEGUARDING & FAMILY SUPPORT,Third Party Payments,,Revenue
Walsall Council,http://opendatacommunities.org/id/metropolitan-district-council/walsall,WC70-419,31/07/2016,Childrens,REDACTED,12/07/2016,487.72,76422-DIRECT PAYMENTS TO SOCIAL SERVICES CLIENTS,FAMILY SUPPORT - DIRECT PAYMENTS,Transfer Payments,,Revenue
Walsall Council,http://opendatacommunities.org/id/metropolitan-district-council/walsall,WC70-420,31/07/2016,Childrens,REDACTED,12/07/2016,537.20,76422-DIRECT PAYMENTS TO SOCIAL SERVICES CLIENTS,FAMILY SUPPORT - DIRECT PAYMENTS,Transfer Payments,,Revenue
Walsall Council,http://opendatacommunities.org/id/metropolitan-district-council/walsall,WC70-421,31/07/2016,Economy & Environment,BIRMINGHAM WOMENS NHS FOUNDATION TRUST,18/07/2016,"1,080.00",74000-OTHER AGENCY FEES,CORONERS SERVICE,Third Party Payments,,Revenue
Walsall Council,http://opendatacommunities.org/id/metropolitan-district-council/walsall,WC70-422,31/07/2016,Economy & Environment,BLACK COUNTRY CONSORTIUM LIMITED,21/07/2016,"263,049.48",01045-PRIVATE GRANTS,CFR 1072 CAPITALISATION OF PROJECT OFFICER COSTS,Capital,,Capital
Walsall Council,http://opendatacommunities.org/id/metropolitan-district-council/walsall,WC70-423,31/07/2016,Social Care & Inclusion,BLACK COUNTRY PARTNERSHIP NHS,25/07/2016,"-11,160.00",73375-IN PATIENT BEDS,LD COMMISSIONING,Third Party Payments,,Revenue
Walsall Council,http://opendatacommunities.org/id/metropolitan-district-council/walsall,WC70-424,31/07/2016,Social Care & Inclusion,BLACK COUNTRY PARTNERSHIP NHS,25/07/2016,"-11,160.00",73375-IN PATIENT BEDS,LD COMMISSIONING,Third Party Payments,,Revenue
Walsall Council,http://opendatacommunities.org/id/metropolitan-district-council/walsall,WC70-425,31/07/2016,Social Care & Inclusion,BLACK COUNTRY PARTNERSHIP NHS,25/07/2016,"-10,620.00",73375-IN PATIENT BEDS,LD COMMISSIONING,Third Party Payments,,Revenue
Walsall Council,http://opendatacommunities.org/id/metropolitan-district-council/walsall,WC70-426,31/07/2016,Social Care & Inclusion,BLACK COUNTRY PARTNERSHIP NHS,25/07/2016,"-10,080.00",73375-IN PATIENT BEDS,LD COMMISSIONING,Third Party Payments,,Revenue
Walsall Council,http://opendatacommunities.org/id/metropolitan-district-council/walsall,WC70-427,31/07/2016,Social Care & Inclusion,BLACK COUNTRY PARTNERSHIP NHS,25/07/2016,"-10,080.00",73375-IN PATIENT BEDS,LD COMMISSIONING,Third Party Payments,,Revenue
Walsall Council,http://opendatacommunities.org/id/metropolitan-district-council/walsall,WC70-428,31/07/2016,Social Care & Inclusion,BLACK COUNTRY PARTNERSHIP NHS,25/07/2016,"-8,700.00",73375-IN PATIENT BEDS,LD COMMISSIONING,Third Party Payments,,Revenue
Walsall Council,http://opendatacommunities.org/id/metropolitan-district-council/walsall,WC70-429,31/07/2016,Social Care & Inclusion,BLACK COUNTRY PARTNERSHIP NHS,25/07/2016,"-7,290.00",73375-IN PATIENT BEDS,LD COMMISSIONING,Third Party Payments,,Revenue
Walsall Council,http://opendatacommunities.org/id/metropolitan-district-council/walsall,WC70-430,31/07/2016,Social Care & Inclusion,BLACK COUNTRY PARTNERSHIP NHS,25/07/2016,"-7,020.00",73375-IN PATIENT BEDS,LD COMMISSIONING,Third Party Payments,,Revenue
Walsall Council,http://opendatacommunities.org/id/metropolitan-district-council/walsall,WC70-431,31/07/2016,Social Care & Inclusion,BLACK COUNTRY PARTNERSHIP NHS,25/07/2016,"-6,660.00",73375-IN PATIENT BEDS,LD COMMISSIONING,Third Party Payments,,Revenue
Walsall Council,http://opendatacommunities.org/id/metropolitan-district-council/walsall,WC70-432,31/07/2016,Social Care & Inclusion,BLACK COUNTRY PARTNERSHIP NHS,25/07/2016,"-6,300.00",73375-IN PATIENT BEDS,LD COMMISSIONING,Third Party Payments,,Revenue
Walsall Council,http://opendatacommunities.org/id/metropolitan-district-council/walsall,WC70-433,31/07/2016,Social Care & Inclusion,BLACK COUNTRY PARTNERSHIP NHS,25/07/2016,"-5,580.00",73375-IN PATIENT BEDS,LD COMMISSIONING,Third Party Payments,,Revenue
Walsall Council,http://opendatacommunities.org/id/metropolitan-district-council/walsall,WC70-434,31/07/2016,Social Care & Inclusion,BLACK COUNTRY PARTNERSHIP NHS,25/07/2016,"-5,580.00",73375-IN PATIENT BEDS,LD COMMISSIONING,Third Party Payments,,Revenue
Walsall Council,http://opendatacommunities.org/id/metropolitan-district-council/walsall,WC70-435,31/07/2016,Social Care & Inclusion,BLACK COUNTRY PARTNERSHIP NHS,25/07/2016,"-5,580.00",73375-IN PATIENT BEDS,LD COMMISSIONING,Third Party Payments,,Revenue
Walsall Council,http://opendatacommunities.org/id/metropolitan-district-council/walsall,WC70-436,31/07/2016,Social Care & Inclusion,BLACK COUNTRY PARTNERSHIP NHS,25/07/2016,"-5,400.00",73375-IN PATIENT BEDS,LD COMMISSIONING,Third Party Payments,,Revenue
Walsall Council,http://opendatacommunities.org/id/metropolitan-district-council/walsall,WC70-437,31/07/2016,Social Care & Inclusion,BLACK COUNTRY PARTNERSHIP NHS,25/07/2016,"-5,220.00",73375-IN PATIENT BEDS,LD COMMISSIONING,Third Party Payments,,Revenue
Walsall Council,http://opendatacommunities.org/id/metropolitan-district-council/walsall,WC70-438,31/07/2016,Social Care & Inclusion,BLACK COUNTRY PARTNERSHIP NHS,25/07/2016,"-4,140.00",73375-IN PATIENT BEDS,LD COMMISSIONING,Third Party Payments,,Revenue
Walsall Council,http://opendatacommunities.org/id/metropolitan-district-council/walsall,WC70-439,31/07/2016,Social Care & Inclusion,BLACK COUNTRY PARTNERSHIP NHS,27/07/2016,"4,320.00",73375-IN PATIENT BEDS,LD COMMISSIONING,Third Party Payments,,Revenue
Walsall Council,http://opendatacommunities.org/id/metropolitan-district-council/walsall,WC70-440,31/07/2016,Social Care & Inclusion,BLACK COUNTRY PARTNERSHIP NHS,25/07/2016,"8,280.00",73375-IN PATIENT BEDS,LD COMMISSIONING,Third Party Payments,,Revenue
Walsall Council,http://opendatacommunities.org/id/metropolitan-district-council/walsall,WC70-441,31/07/2016,Social Care & Inclusion,BLACK COUNTRY PARTNERSHIP NHS,27/07/2016,"9,000.00",73375-IN PATIENT BEDS,LD COMMISSIONING,Third Party Payments,,Revenue
Walsall Council,http://opendatacommunities.org/id/metropolitan-district-council/walsall,WC70-442,31/07/2016,Social Care & Inclusion,BLACK COUNTRY PARTNERSHIP NHS,25/07/2016,"10,440.00",73375-IN PATIENT BEDS,LD COMMISSIONING,Third Party Payments,,Revenue
Walsall Council,http://opendatacommunities.org/id/metropolitan-district-council/walsall,WC70-443,31/07/2016,Social Care & Inclusion,BLACK COUNTRY PARTNERSHIP NHS,25/07/2016,"10,800.00",73375-IN PATIENT BEDS,LD COMMISSIONING,Third Party Payments,,Revenue
Walsall Council,http://opendatacommunities.org/id/metropolitan-district-council/walsall,WC70-444,31/07/2016,Social Care & Inclusion,BLACK COUNTRY PARTNERSHIP NHS,25/07/2016,"11,160.00",73375-IN PATIENT BEDS,LD COMMISSIONING,Third Party Payments,,Revenue
Walsall Council,http://opendatacommunities.org/id/metropolitan-district-council/walsall,WC70-445,31/07/2016,Social Care & Inclusion,BLACK COUNTRY PARTNERSHIP NHS,25/07/2016,"11,160.00",73375-IN PATIENT BEDS,LD COMMISSIONING,Third Party Payments,,Revenue
Walsall Council,http://opendatacommunities.org/id/metropolitan-district-council/walsall,WC70-446,31/07/2016,Social Care & Inclusion,BLACK COUNTRY PARTNERSHIP NHS,25/07/2016,"11,160.00",73375-IN PATIENT BEDS,LD COMMISSIONING,Third Party Payments,,Revenue
Walsall Council,http://opendatacommunities.org/id/metropolitan-district-council/walsall,WC70-447,31/07/2016,Social Care & Inclusion,BLACK COUNTRY PARTNERSHIP NHS,25/07/2016,"12,600.00",73375-IN PATIENT BEDS,LD COMMISSIONING,Third Party Payments,,Revenue
Walsall Council,http://opendatacommunities.org/id/metropolitan-district-council/walsall,WC70-448,31/07/2016,Social Care & Inclusion,BLACK COUNTRY PARTNERSHIP NHS,25/07/2016,"13,320.00",73375-IN PATIENT BEDS,LD COMMISSIONING,Third Party Payments,,Revenue
Walsall Council,http://opendatacommunities.org/id/metropolitan-district-council/walsall,WC70-449,31/07/2016,Social Care & Inclusion,BLACK COUNTRY PARTNERSHIP NHS,25/07/2016,"14,040.00",73375-IN PATIENT BEDS,LD COMMISSIONING,Third Party Payments,,Revenue
Walsall Council,http://opendatacommunities.org/id/metropolitan-district-council/walsall,WC70-450,31/07/2016,Social Care & Inclusion,BLACK COUNTRY PARTNERSHIP NHS,25/07/2016,"14,580.00",73375-IN PATIENT BEDS,LD COMMISSIONING,Third Party Payments,,Revenue
Walsall Council,http://opendatacommunities.org/id/metropolitan-district-council/walsall,WC70-451,31/07/2016,Social Care & Inclusion,BLACK COUNTRY PARTNERSHIP NHS,27/07/2016,"14,976.00",73375-IN PATIENT BEDS,LD COMMISSIONING,Third Party Payments,,Revenue
Walsall Council,http://opendatacommunities.org/id/metropolitan-district-council/walsall,WC70-452,31/07/2016,Social Care & Inclusion,BLACK COUNTRY PARTNERSHIP NHS,27/07/2016,"16,128.00",73375-IN PATIENT BEDS,LD COMMISSIONING,Third Party Payments,,Revenue
Walsall Council,http://opendatacommunities.org/id/metropolitan-district-council/walsall,WC70-453,31/07/2016,Social Care & Inclusion,BLACK COUNTRY PARTNERSHIP NHS,27/07/2016,"17,280.00",73375-IN PATIENT BEDS,LD COMMISSIONING,Third Party Payments,,Revenue
Walsall Council,http://opendatacommunities.org/id/metropolitan-district-council/walsall,WC70-454,31/07/2016,Social Care & Inclusion,BLACK COUNTRY PARTNERSHIP NHS,25/07/2016,"17,400.00",73375-IN PATIENT BEDS,LD COMMISSIONING,Third Party Payments,,Revenue
Walsall Council,http://opendatacommunities.org/id/metropolitan-district-council/walsall,WC70-455,31/07/2016,Social Care & Inclusion,BLACK COUNTRY PARTNERSHIP NHS,25/07/2016,"20,160.00",73375-IN PATIENT BEDS,LD COMMISSIONING,Third Party Payments,,Revenue
Walsall Council,http://opendatacommunities.org/id/metropolitan-district-council/walsall,WC70-456,31/07/2016,Social Care & Inclusion,BLACK COUNTRY PARTNERSHIP NHS,25/07/2016,"20,160.00",73375-IN PATIENT BEDS,LD COMMISSIONING,Third Party Payments,,Revenue
Walsall Council,http://opendatacommunities.org/id/metropolitan-district-council/walsall,WC70-457,31/07/2016,Social Care & Inclusion,BLACK COUNTRY PARTNERSHIP NHS,25/07/2016,"21,240.00",73375-IN PATIENT BEDS,LD COMMISSIONING,Third Party Payments,,Revenue
Walsall Council,http://opendatacommunities.org/id/metropolitan-district-council/walsall,WC70-458,31/07/2016,Social Care & Inclusion,BLACK COUNTRY PARTNERSHIP NHS,28/07/2016,"21,600.00",73375-IN PATIENT BEDS,LD COMMISSIONING,Third Party Payments,,Revenue
Walsall Council,http://opendatacommunities.org/id/metropolitan-district-council/walsall,WC70-459,31/07/2016,Social Care & Inclusion,BLACK COUNTRY PARTNERSHIP NHS,25/07/2016,"22,320.00",73375-IN PATIENT BEDS,LD COMMISSIONING,Third Party Payments,,Revenue
Walsall Council,http://opendatacommunities.org/id/metropolitan-district-council/walsall,WC70-460,31/07/2016,Social Care & Inclusion,BLACK COUNTRY PARTNERSHIP NHS,25/07/2016,"22,320.00",73375-IN PATIENT BEDS,LD COMMISSIONING,Third Party Payments,,Revenue
Walsall Council,http://opendatacommunities.org/id/metropolitan-district-council/walsall,WC70-461,31/07/2016,Economy & Environment,BLACK KNIGHT HISTORICAL,22/07/2016,"1,600.00",62523-EVENTS,ARBORETUM,Supplies & Services,,Revenue
Walsall Council,http://opendatacommunities.org/id/metropolitan-district-council/walsall,WC70-462,31/07/2016,Holding Accounts,BLAKENALL HEATH JMI SCHOOL,18/07/2016,450.00,67001-MISC INSURANCES - PAYMENT OF CLAIMS,PUBLIC LIABILITY,Supplies & Services,,Revenue
Walsall Council,http://opendatacommunities.org/id/metropolitan-district-council/walsall,WC70-463,31/07/2016,Childrens,BLAKENALL HEATH JMI SCHOOL,04/07/2016,"3,765.00",77200-TRANSFER PAYMENTS-OTHER SCHOOLCHILDREN/STUDENT RELATED ITEMS,BLAKENALL HEATH JUNIOR SCHOOL,Transfer Payments,,Revenue
Walsall Council,http://opendatacommunities.org/id/metropolitan-district-council/walsall,WC70-464,31/07/2016,Childrens,BLAKENALL HEATH JMI SCHOOL,11/07/2016,"55,920.00",77302-ISB-SCHOOL STANDARDS GRANT,BLAKENALL HEATH JUNIOR SCHOOL,Transfer Payments,,Revenue
Walsall Council,http://opendatacommunities.org/id/metropolitan-district-council/walsall,WC70-465,31/07/2016,Childrens,BLAKENALL HEATH JMI SCHOOL,04/07/2016,"91,561.92",77300-ISB-FORMULA ALLOCATION,BLAKENALL HEATH JUNIOR SCHOOL,Transfer Payments,,Revenue
Walsall Council,http://opendatacommunities.org/id/metropolitan-district-council/walsall,WC70-466,31/07/2016,Social Care & Inclusion,BLOXWICH COMMUNITY PARTNERSHIP.,26/07/2016,324.00,73372-DOMICILIARY CARE,MH COMMISSIONING,Third Party Payments,,Revenue
Walsall Council,http://opendatacommunities.org/id/metropolitan-district-council/walsall,WC70-467,31/07/2016,Social Care & Inclusion,BLOXWICH COMMUNITY PARTNERSHIP.,27/07/2016,336.00,73374-SUPPORTED & OTHER ACCOMMODATION,MH COMMISSIONING,Third Party Payments,,Revenue
Walsall Council,http://opendatacommunities.org/id/metropolitan-district-council/walsall,WC70-468,31/07/2016,Social Care & Inclusion,BLOXWICH COMMUNITY PARTNERSHIP.,26/07/2016,351.00,73372-DOMICILIARY CARE,MH COMMISSIONING,Third Party Payments,,Revenue
Walsall Council,http://opendatacommunities.org/id/metropolitan-district-council/walsall,WC70-469,31/07/2016,Social Care & Inclusion,BLOXWICH COMMUNITY PARTNERSHIP.,27/07/2016,351.00,73372-DOMICILIARY CARE,MH COMMISSIONING,Third Party Payments,,Revenue
Walsall Council,http://opendatacommunities.org/id/metropolitan-district-council/walsall,WC70-470,31/07/2016,Social Care & Inclusion,BLOXWICH COMMUNITY PARTNERSHIP.,27/07/2016,434.00,73372-DOMICILIARY CARE,OP COMMISSIONING,Third Party Payments,,Revenue
Walsall Council,http://opendatacommunities.org/id/metropolitan-district-council/walsall,WC70-471,31/07/2016,Childrens,BLOXWICH COMMUNITY PARTNERSHIP.,25/07/2016,"25,911.25",66500-GRANTS TO OTHER ORGS,CENTRAL SUPPORT,Third Party Payments,,Revenue
Walsall Council,http://opendatacommunities.org/id/metropolitan-district-council/walsall,WC70-472,31/07/2016,Childrens,BLOXWICH RADIO TAXIS,19/07/2016,"1,760.00",52000-WITH DRIVER-HIRE OF VEHICLES,SCHOOL TRANSPORT,Transport,,Revenue
Walsall Council,http://opendatacommunities.org/id/metropolitan-district-council/walsall,WC70-473,31/07/2016,Change and Governance,BLOXWICH UNITED AFC,11/07/2016,-500.00,63128-HIRE OF ROOM-SERVICES-FEES,ELECTORAL ADMINISTRATION,Supplies & Services,,Revenue
Walsall Council,http://opendatacommunities.org/id/metropolitan-district-council/walsall,WC70-474,31/07/2016,Childrens,BLUE GIRAFFE CHILDCARE,15/07/2016,762.84,66505-OTHER-GRANTS TO OTHER ORGS,EARLY YEARS - 2 YR OLDS,Third Party Payments,,Revenue
Walsall Council,http://opendatacommunities.org/id/metropolitan-district-council/walsall,WC70-475,31/07/2016,Childrens,BLUE GIRAFFE CHILDCARE,15/07/2016,"6,271.90",66505-OTHER-GRANTS TO OTHER ORGS,EARLY YEARS - 3 YR OLDS,Third Party Payments,,Revenue
Walsall Council,http://opendatacommunities.org/id/metropolitan-district-council/walsall,WC70-476,31/07/2016,Childrens,BLUEBELLS #1,07/07/2016,3.90,63000-PROFESSIONAL FEES AND SERVICES,BLUEBELLS,Supplies & Services,,Revenue
Walsall Council,http://opendatacommunities.org/id/metropolitan-district-council/walsall,WC70-477,31/07/2016,Childrens,BLUEBELLS #1,07/07/2016,22.94,46000-EQUIP NEW-CLEANING,BLUEBELLS,Premises,,Revenue
Walsall Council,http://opendatacommunities.org/id/metropolitan-district-council/walsall,WC70-478,31/07/2016,Childrens,BLUEBELLS #1,07/07/2016,24.98,"40000-REPAIRS,ALTERATIONS & MAINTENANCE-PREM",BLUEBELLS,Premises,,Revenue
Walsall Council,http://opendatacommunities.org/id/metropolitan-district-council/walsall,WC70-479,31/07/2016,Childrens,BLUEBELLS #1,07/07/2016,41.31,60006-NEW-FURNITURE & EQUIPMENT,BLUEBELLS,Supplies & Services,,Revenue
Walsall Council,http://opendatacommunities.org/id/metropolitan-district-council/walsall,WC70-480,31/07/2016,Childrens,BLUEBELLS #1,07/07/2016,105.72,61016-FOOD AND BEVERAGES-PROVISIONS,BLUEBELLS,Supplies & Services,,Revenue
Walsall Council,http://opendatacommunities.org/id/metropolitan-district-council/walsall,WC70-481,31/07/2016,Childrens,BLUEBELLS #1,07/07/2016,181.43,76000-TRANSFER PAYMENTS - SOCIAL SERVICES CLIENTS,BLUEBELLS,Transfer Payments,,Revenue
Walsall Council,http://opendatacommunities.org/id/metropolitan-district-council/walsall,WC70-482,31/07/2016,Economy & Environment,BME UNITED LTD,28/07/2016,"1,138.00",63000-PROFESSIONAL FEES AND SERVICES,SMOKING CESSATION,Supplies & Services,,Revenue
Walsall Council,http://opendatacommunities.org/id/metropolitan-district-council/walsall,WC70-483,31/07/2016,Economy & Environment,BME UNITED LTD,28/07/2016,"2,653.00",63000-PROFESSIONAL FEES AND SERVICES,SMOKING CESSATION,Supplies & Services,,Revenue
Walsall Council,http://opendatacommunities.org/id/metropolitan-district-council/walsall,WC70-484,31/07/2016,Social Care & Inclusion,BOLDMERE COURT CARE HOME,26/07/2016,"1,691.27",73373-RESIDENTIAL & NURSING CARE PLACEMENTS,OP COMMISSIONING,Third Party Payments,,Revenue
Walsall Council,http://opendatacommunities.org/id/metropolitan-district-council/walsall,WC70-485,31/07/2016,Social Care & Inclusion,BOLDMERE COURT CARE HOME,26/07/2016,"6,642.86",73373-RESIDENTIAL & NURSING CARE PLACEMENTS,MH COMMISSIONING,Third Party Payments,,Revenue
Walsall Council,http://opendatacommunities.org/id/metropolitan-district-council/walsall,WC70-486,31/07/2016,Economy & Environment,BOLINDA UK LTD,04/07/2016,335.11,60501-LIBRARY BOOKS,LIBRARY STOCK AND PERFORMANCE,Supplies & Services,,Revenue
Walsall Council,http://opendatacommunities.org/id/metropolitan-district-council/walsall,WC70-487,31/07/2016,Economy & Environment,BOLINDA UK LTD,04/07/2016,555.85,60501-LIBRARY BOOKS,LIBRARY STOCK AND PERFORMANCE,Supplies & Services,,Revenue
Walsall Council,http://opendatacommunities.org/id/metropolitan-district-council/walsall,WC70-488,31/07/2016,Economy & Environment,BONINGALE NURSERIES,07/07/2016,267.11,60500-GENERAL MATERIALS,ARBORETUM,Supplies & Services,,Revenue
Walsall Council,http://opendatacommunities.org/id/metropolitan-district-council/walsall,WC70-489,31/07/2016,Economy & Environment,BONINGALE NURSERIES,07/07/2016,267.50,60500-GENERAL MATERIALS,COUNTRYSIDE MANAGEMENT-OTHER,Supplies & Services,,Revenue
Walsall Council,http://opendatacommunities.org/id/metropolitan-district-council/walsall,WC70-490,31/07/2016,Economy & Environment,BOOTS UK LIMITED,21/07/2016,88.50,63000-PROFESSIONAL FEES AND SERVICES,SEXUAL HEALTH,Supplies & Services,,Revenue
Walsall Council,http://opendatacommunities.org/id/metropolitan-district-council/walsall,WC70-491,31/07/2016,Economy & Environment,BOOTS UK LIMITED,20/07/2016,99.19,71007-CONTRIBUTION TO PCT,PUBLIC HEALTH BUSINESS SUPPORT,Third Party Payments,,Revenue
Walsall Council,http://opendatacommunities.org/id/metropolitan-district-council/walsall,WC70-492,31/07/2016,Economy & Environment,BOOTS UK LIMITED,21/07/2016,176.13,71007-CONTRIBUTION TO PCT,PUBLIC HEALTH BUSINESS SUPPORT,Third Party Payments,,Revenue
Walsall Council,http://opendatacommunities.org/id/metropolitan-district-council/walsall,WC70-493,31/07/2016,Economy & Environment,BOOTS UK LIMITED,20/07/2016,194.70,63000-PROFESSIONAL FEES AND SERVICES,SEXUAL HEALTH,Supplies & Services,,Revenue
Walsall Council,http://opendatacommunities.org/id/metropolitan-district-council/walsall,WC70-494,31/07/2016,Childrens,BOULTON TRAVEL LIMITED,26/07/2016,"1,582.00",52000-WITH DRIVER-HIRE OF VEHICLES,SCHOOL TRANSPORT,Transport,,Revenue
Walsall Council,http://opendatacommunities.org/id/metropolitan-district-council/walsall,WC70-495,31/07/2016,Childrens,BOULTON TRAVEL LIMITED,26/07/2016,"1,708.00",52000-WITH DRIVER-HIRE OF VEHICLES,SCHOOL TRANSPORT,Transport,,Revenue
Walsall Council,http://opendatacommunities.org/id/metropolitan-district-council/walsall,WC70-496,31/07/2016,Childrens,BOULTON TRAVEL LIMITED,06/07/2016,"2,147.00",52000-WITH DRIVER-HIRE OF VEHICLES,SCHOOL TRANSPORT,Transport,,Revenue
Walsall Council,http://opendatacommunities.org/id/metropolitan-district-council/walsall,WC70-497,31/07/2016,Childrens,BOULTON TRAVEL LIMITED,06/07/2016,"2,318.00",52000-WITH DRIVER-HIRE OF VEHICLES,SCHOOL TRANSPORT,Transport,,Revenue
Walsall Council,http://opendatacommunities.org/id/metropolitan-district-council/walsall,WC70-498,31/07/2016,Economy & Environment,BOULTONS NURSERIES,18/07/2016,364.80,60500-GENERAL MATERIALS,COUNTRYSIDE MANAGEMENT-OTHER,Supplies & Services,,Revenue
Walsall Council,http://opendatacommunities.org/id/metropolitan-district-council/walsall,WC70-499,31/07/2016,Social Care & Inclusion,BOWDEN DERRA PARK,20/07/2016,"10,502.76",73373-RESIDENTIAL & NURSING CARE PLACEMENTS,LD COMMISSIONING,Third Party Payments,,Revenue
Walsall Council,http://opendatacommunities.org/id/metropolitan-district-council/walsall,WC70-500,31/07/2016,Social Care & Inclusion,BOWDEN DERRA PARK,20/07/2016,"10,502.76",73373-RESIDENTIAL & NURSING CARE PLACEMENTS,LD COMMISSIONING,Third Party Payments,,Revenue
Walsall Council,http://opendatacommunities.org/id/metropolitan-district-council/walsall,WC70-501,31/07/2016,Social Care & Inclusion,BOWDEN DERRA PARK,20/07/2016,"10,502.76",73373-RESIDENTIAL & NURSING CARE PLACEMENTS,LD COMMISSIONING,Third Party Payments,,Revenue
Walsall Council,http://opendatacommunities.org/id/metropolitan-district-council/walsall,WC70-502,31/07/2016,Economy & Environment,BPH DATA LTD,07/07/2016,700.00,64500-PUBLICATIONS/ORGANISATIONS-SUBSCRIPTIONS,NETWORK SUPPORT,Supplies & Services,,Revenue
Walsall Council,http://opendatacommunities.org/id/metropolitan-district-council/walsall,WC70-503,31/07/2016,Economy & Environment,BRADVALE LTD T/A INSPIRE HEALTHCARE SERVICES,08/07/2016,284.98,60009-LEASING/HIRE/RENTAL-EQUIPMENT,DARLASTON LEISURE CENTRE,Supplies & Services,,Revenue
Walsall Council,http://opendatacommunities.org/id/metropolitan-district-council/walsall,WC70-504,31/07/2016,Economy & Environment,BRADVALE LTD T/A INSPIRE HEALTHCARE SERVICES,20/07/2016,284.98,60009-LEASING/HIRE/RENTAL-EQUIPMENT,DARLASTON LEISURE CENTRE,Supplies & Services,,Revenue
Walsall Council,http://opendatacommunities.org/id/metropolitan-district-council/walsall,WC70-505,31/07/2016,Economy & Environment,BRADVALE LTD T/A INSPIRE HEALTHCARE SERVICES,26/07/2016,555.51,60500-GENERAL MATERIALS,ARBORETUM VISITOR CENTRE,Supplies & Services,,Revenue
Walsall Council,http://opendatacommunities.org/id/metropolitan-district-council/walsall,WC70-506,31/07/2016,Economy & Environment,BRADVALE LTD T/A INSPIRE HEALTHCARE SERVICES,27/07/2016,555.51,60500-GENERAL MATERIALS,ARBORETUM VISITOR CENTRE,Supplies & Services,,Revenue
Walsall Council,http://opendatacommunities.org/id/metropolitan-district-council/walsall,WC70-507,31/07/2016,Social Care & Inclusion,REDACTED,12/07/2016,440.00,76422-DIRECT PAYMENTS TO SOCIAL SERVICES CLIENTS,LD COMMISSIONING,Transfer Payments,,Revenue
Walsall Council,http://opendatacommunities.org/id/metropolitan-district-council/walsall,WC70-508,31/07/2016,Childrens,REDACTED,18/07/2016,"1,510.26",62515-MISCELLANEOUS SUPPLIES,INTERNAL FOSTER CARE PROVISION,Supplies & Services,,Revenue
Walsall Council,http://opendatacommunities.org/id/metropolitan-district-council/walsall,WC70-509,31/07/2016,Childrens,REDACTED,18/07/2016,"2,015.70",74006-HOLIDAY/CHRISTMAS ALLOWANCE-FOSTER CARERS-OTH AGENCY PROVISION,INTERNAL FOSTER CARE PROVISION,Third Party Payments,,Revenue
Walsall Council,http://opendatacommunities.org/id/metropolitan-district-council/walsall,WC70-510,31/07/2016,Economy & Environment,BRENNTAG UK LIMITED,04/07/2016,710.28,50301-FUEL-TRANSPORT RUN COSTS,FUEL STOCK ACCOUNT,Transport,,Revenue
Walsall Council,http://opendatacommunities.org/id/metropolitan-district-council/walsall,WC70-511,31/07/2016,Social Care & Inclusion,REDACTED,01/07/2016,"1,337.64",73374-SUPPORTED & OTHER ACCOMMODATION,LD COMMISSIONING,Third Party Payments,,Revenue
Walsall Council,http://opendatacommunities.org/id/metropolitan-district-council/walsall,WC70-512,31/07/2016,Social Care & Inclusion,REDACTED,01/07/2016,"1,597.60",73374-SUPPORTED & OTHER ACCOMMODATION,LD COMMISSIONING,Third Party Payments,,Revenue
Walsall Council,http://opendatacommunities.org/id/metropolitan-district-council/walsall,WC70-513,31/07/2016,Social Care & Inclusion,REDACTED,12/07/2016,"1,294.80",76422-DIRECT PAYMENTS TO SOCIAL SERVICES CLIENTS,OP COMMISSIONING,Transfer Payments,,Revenue
Walsall Council,http://opendatacommunities.org/id/metropolitan-district-council/walsall,WC70-514,31/07/2016,Social Care & Inclusion,REDACTED,12/07/2016,697.00,76422-DIRECT PAYMENTS TO SOCIAL SERVICES CLIENTS,OP COMMISSIONING,Transfer Payments,,Revenue
Walsall Council,http://opendatacommunities.org/id/metropolitan-district-council/walsall,WC70-515,31/07/2016,Childrens,BRIGHT HORIZONS (WISHING WILLOW),21/07/2016,"1,099.63",63120-CRECHE FACILITIES-SERVICES-FEES,FAMILY PLACEMENTS,Supplies & Services,,Revenue
Walsall Council,http://opendatacommunities.org/id/metropolitan-district-council/walsall,WC70-516,31/07/2016,Change and Governance,BRISTOW & SUTOR,15/07/2016,585.90,73014-LEGAL FEES-PRIV CONTRACTOR FEES,REVENUES,Third Party Payments,,Revenue
Walsall Council,http://opendatacommunities.org/id/metropolitan-district-council/walsall,WC70-517,31/07/2016,Change and Governance,BRITISH GAS BUSINESS,27/07/2016,"-5,536.86",42000-GAS-ENERGY COSTS,CENTRAL OFFICE ACCOMMODATION,Premises,,Revenue
Walsall Council,http://opendatacommunities.org/id/metropolitan-district-council/walsall,WC70-518,31/07/2016,Change and Governance,BRITISH GAS BUSINESS,27/07/2016,"-4,123.43",42000-GAS-ENERGY COSTS,RECHARGEABLE UTILITIES,Premises,,Revenue
Walsall Council,http://opendatacommunities.org/id/metropolitan-district-council/walsall,WC70-519,31/07/2016,Change and Governance,BRITISH GAS BUSINESS,27/07/2016,"-1,707.73",42000-GAS-ENERGY COSTS,RECHARGEABLE UTILITIES,Premises,,Revenue
Walsall Council,http://opendatacommunities.org/id/metropolitan-district-council/walsall,WC70-520,31/07/2016,Change and Governance,BRITISH GAS BUSINESS,27/07/2016,"-1,111.96",42000-GAS-ENERGY COSTS,CENTRALISED ENERGY,Premises,,Revenue
Walsall Council,http://opendatacommunities.org/id/metropolitan-district-council/walsall,WC70-521,31/07/2016,Change and Governance,BRITISH GAS BUSINESS,27/07/2016,"-1,015.33",42000-GAS-ENERGY COSTS,RECHARGEABLE UTILITIES,Premises,,Revenue
Walsall Council,http://opendatacommunities.org/id/metropolitan-district-council/walsall,WC70-522,31/07/2016,Change and Governance,BRITISH GAS BUSINESS,27/07/2016,-898.63,42000-GAS-ENERGY COSTS,DARLASTON TOWN HALL,Premises,,Revenue
Walsall Council,http://opendatacommunities.org/id/metropolitan-district-council/walsall,WC70-523,31/07/2016,Change and Governance,BRITISH GAS BUSINESS,27/07/2016,-861.28,42000-GAS-ENERGY COSTS,RECHARGEABLE UTILITIES,Premises,,Revenue
Walsall Council,http://opendatacommunities.org/id/metropolitan-district-council/walsall,WC70-524,31/07/2016,Change and Governance,BRITISH GAS BUSINESS,27/07/2016,-744.93,42000-GAS-ENERGY COSTS,CENTRAL OFFICE ACCOMMODATION,Premises,,Revenue
Walsall Council,http://opendatacommunities.org/id/metropolitan-district-council/walsall,WC70-525,31/07/2016,Change and Governance,BRITISH GAS BUSINESS,27/07/2016,-570.83,42000-GAS-ENERGY COSTS,CENTRAL OFFICE ACCOMMODATION,Premises,,Revenue
Walsall Council,http://opendatacommunities.org/id/metropolitan-district-council/walsall,WC70-526,31/07/2016,Change and Governance,BRITISH GAS BUSINESS,27/07/2016,-551.52,42000-GAS-ENERGY COSTS,RECHARGEABLE UTILITIES,Premises,,Revenue
Walsall Council,http://opendatacommunities.org/id/metropolitan-district-council/walsall,WC70-527,31/07/2016,Change and Governance,BRITISH GAS BUSINESS,27/07/2016,-533.16,42000-GAS-ENERGY COSTS,CENTRAL OFFICE ACCOMMODATION,Premises,,Revenue
Walsall Council,http://opendatacommunities.org/id/metropolitan-district-council/walsall,WC70-528,31/07/2016,Change and Governance,BRITISH GAS BUSINESS,27/07/2016,-513.36,42000-GAS-ENERGY COSTS,CENTRAL OFFICE ACCOMMODATION,Premises,,Revenue
Walsall Council,http://opendatacommunities.org/id/metropolitan-district-council/walsall,WC70-529,31/07/2016,Change and Governance,BRITISH GAS BUSINESS,27/07/2016,-503.53,42000-GAS-ENERGY COSTS,CENTRAL OFFICE ACCOMMODATION,Premises,,Revenue
Walsall Council,http://opendatacommunities.org/id/metropolitan-district-council/walsall,WC70-530,31/07/2016,Change and Governance,BRITISH GAS BUSINESS,27/07/2016,-454.78,42000-GAS-ENERGY COSTS,CENTRAL OFFICE ACCOMMODATION,Premises,,Revenue
Walsall Council,http://opendatacommunities.org/id/metropolitan-district-council/walsall,WC70-531,31/07/2016,Change and Governance,BRITISH GAS BUSINESS,27/07/2016,-386.96,42000-GAS-ENERGY COSTS,CENTRAL OFFICE ACCOMMODATION,Premises,,Revenue
Walsall Council,http://opendatacommunities.org/id/metropolitan-district-council/walsall,WC70-532,31/07/2016,Change and Governance,BRITISH GAS BUSINESS,27/07/2016,-362.97,42000-GAS-ENERGY COSTS,CENTRAL OFFICE ACCOMMODATION,Premises,,Revenue
Walsall Council,http://opendatacommunities.org/id/metropolitan-district-council/walsall,WC70-533,31/07/2016,Childrens,BRITISH GAS BUSINESS,07/07/2016,-266.30,42000-GAS-ENERGY COSTS,BLAKENALL CHILDCARE SERVICE,Premises,,Revenue
Walsall Council,http://opendatacommunities.org/id/metropolitan-district-council/walsall,WC70-534,31/07/2016,Childrens,BRITISH GAS BUSINESS,07/07/2016,-251.69,42000-GAS-ENERGY COSTS,SOUTH LOCALITY - SCHOOL READY,Premises,,Revenue
Walsall Council,http://opendatacommunities.org/id/metropolitan-district-council/walsall,WC70-535,31/07/2016,Change and Governance,BRITISH GAS BUSINESS,27/07/2016,-240.33,42000-GAS-ENERGY COSTS,CENTRAL OFFICE ACCOMMODATION,Premises,,Revenue
Walsall Council,http://opendatacommunities.org/id/metropolitan-district-council/walsall,WC70-536,31/07/2016,Change and Governance,BRITISH GAS BUSINESS,27/07/2016,211.02,42000-GAS-ENERGY COSTS,CENTRALISED ENERGY,Premises,,Revenue
Walsall Council,http://opendatacommunities.org/id/metropolitan-district-council/walsall,WC70-537,31/07/2016,Change and Governance,BRITISH GAS BUSINESS,27/07/2016,213.96,42000-GAS-ENERGY COSTS,CENTRALISED ENERGY,Premises,,Revenue
Walsall Council,http://opendatacommunities.org/id/metropolitan-district-council/walsall,WC70-538,31/07/2016,Change and Governance,BRITISH GAS BUSINESS,27/07/2016,215.46,42000-GAS-ENERGY COSTS,CENTRALISED ENERGY,Premises,,Revenue
Walsall Council,http://opendatacommunities.org/id/metropolitan-district-council/walsall,WC70-539,31/07/2016,Change and Governance,BRITISH GAS BUSINESS,27/07/2016,221.51,42000-GAS-ENERGY COSTS,CENTRALISED ENERGY,Premises,,Revenue
Walsall Council,http://opendatacommunities.org/id/metropolitan-district-council/walsall,WC70-540,31/07/2016,Change and Governance,BRITISH GAS BUSINESS,27/07/2016,235.08,42000-GAS-ENERGY COSTS,CENTRALISED ENERGY,Premises,,Revenue
Walsall Council,http://opendatacommunities.org/id/metropolitan-district-council/walsall,WC70-541,31/07/2016,Change and Governance,BRITISH GAS BUSINESS,27/07/2016,235.26,42000-GAS-ENERGY COSTS,CENTRALISED ENERGY,Premises,,Revenue
Walsall Council,http://opendatacommunities.org/id/metropolitan-district-council/walsall,WC70-542,31/07/2016,Change and Governance,BRITISH GAS BUSINESS,27/07/2016,246.08,42000-GAS-ENERGY COSTS,CENTRALISED ENERGY,Premises,,Revenue
Walsall Council,http://opendatacommunities.org/id/metropolitan-district-council/walsall,WC70-543,31/07/2016,Change and Governance,BRITISH GAS BUSINESS,27/07/2016,247.93,42000-GAS-ENERGY COSTS,CENTRALISED ENERGY,Premises,,Revenue
Walsall Council,http://opendatacommunities.org/id/metropolitan-district-council/walsall,WC70-544,31/07/2016,Change and Governance,BRITISH GAS BUSINESS,27/07/2016,250.46,42000-GAS-ENERGY COSTS,CENTRALISED ENERGY,Premises,,Revenue
Walsall Council,http://opendatacommunities.org/id/metropolitan-district-council/walsall,WC70-545,31/07/2016,Change and Governance,BRITISH GAS BUSINESS,27/07/2016,258.41,42000-GAS-ENERGY COSTS,CENTRALISED ENERGY,Premises,,Revenue
Walsall Council,http://opendatacommunities.org/id/metropolitan-district-council/walsall,WC70-546,31/07/2016,Change and Governance,BRITISH GAS BUSINESS,27/07/2016,261.21,42000-GAS-ENERGY COSTS,CENTRALISED ENERGY,Premises,,Revenue
Walsall Council,http://opendatacommunities.org/id/metropolitan-district-council/walsall,WC70-547,31/07/2016,Change and Governance,BRITISH GAS BUSINESS,27/07/2016,269.03,42000-GAS-ENERGY COSTS,CENTRALISED ENERGY,Premises,,Revenue
Walsall Council,http://opendatacommunities.org/id/metropolitan-district-council/walsall,WC70-548,31/07/2016,Change and Governance,BRITISH GAS BUSINESS,27/07/2016,276.73,42000-GAS-ENERGY COSTS,CENTRALISED ENERGY,Premises,,Revenue
Walsall Council,http://opendatacommunities.org/id/metropolitan-district-council/walsall,WC70-549,31/07/2016,Change and Governance,BRITISH GAS BUSINESS,27/07/2016,282.75,42000-GAS-ENERGY COSTS,CENTRALISED ENERGY,Premises,,Revenue
Walsall Council,http://opendatacommunities.org/id/metropolitan-district-council/walsall,WC70-550,31/07/2016,Change and Governance,BRITISH GAS BUSINESS,27/07/2016,300.07,42000-GAS-ENERGY COSTS,CENTRALISED ENERGY,Premises,,Revenue
Walsall Council,http://opendatacommunities.org/id/metropolitan-district-council/walsall,WC70-551,31/07/2016,Change and Governance,BRITISH GAS BUSINESS,27/07/2016,303.20,42000-GAS-ENERGY COSTS,CENTRALISED ENERGY,Premises,,Revenue
Walsall Council,http://opendatacommunities.org/id/metropolitan-district-council/walsall,WC70-552,31/07/2016,Change and Governance,BRITISH GAS BUSINESS,27/07/2016,304.11,42000-GAS-ENERGY COSTS,CENTRALISED ENERGY,Premises,,Revenue
Walsall Council,http://opendatacommunities.org/id/metropolitan-district-council/walsall,WC70-553,31/07/2016,Change and Governance,BRITISH GAS BUSINESS,27/07/2016,330.23,42000-GAS-ENERGY COSTS,CENTRALISED ENERGY,Premises,,Revenue
Walsall Council,http://opendatacommunities.org/id/metropolitan-district-council/walsall,WC70-554,31/07/2016,Change and Governance,BRITISH GAS BUSINESS,27/07/2016,350.33,42000-GAS-ENERGY COSTS,CENTRALISED ENERGY,Premises,,Revenue
Walsall Council,http://opendatacommunities.org/id/metropolitan-district-council/walsall,WC70-555,31/07/2016,Change and Governance,BRITISH GAS BUSINESS,27/07/2016,355.61,42000-GAS-ENERGY COSTS,CENTRALISED ENERGY,Premises,,Revenue
Walsall Council,http://opendatacommunities.org/id/metropolitan-district-council/walsall,WC70-556,31/07/2016,Change and Governance,BRITISH GAS BUSINESS,27/07/2016,384.26,42000-GAS-ENERGY COSTS,CENTRALISED ENERGY,Premises,,Revenue
Walsall Council,http://opendatacommunities.org/id/metropolitan-district-council/walsall,WC70-557,31/07/2016,Change and Governance,BRITISH GAS BUSINESS,27/07/2016,395.16,42000-GAS-ENERGY COSTS,CENTRALISED ENERGY,Premises,,Revenue
Walsall Council,http://opendatacommunities.org/id/metropolitan-district-council/walsall,WC70-558,31/07/2016,Change and Governance,BRITISH GAS BUSINESS,27/07/2016,395.95,42000-GAS-ENERGY COSTS,CENTRALISED ENERGY,Premises,,Revenue
Walsall Council,http://opendatacommunities.org/id/metropolitan-district-council/walsall,WC70-559,31/07/2016,Change and Governance,BRITISH GAS BUSINESS,27/07/2016,432.36,42000-GAS-ENERGY COSTS,DARLASTON TOWN HALL,Premises,,Revenue
Walsall Council,http://opendatacommunities.org/id/metropolitan-district-council/walsall,WC70-560,31/07/2016,Change and Governance,BRITISH GAS BUSINESS,27/07/2016,461.30,42000-GAS-ENERGY COSTS,RECHARGEABLE UTILITIES,Premises,,Revenue
Walsall Council,http://opendatacommunities.org/id/metropolitan-district-council/walsall,WC70-561,31/07/2016,Change and Governance,BRITISH GAS BUSINESS,27/07/2016,477.18,42000-GAS-ENERGY COSTS,CENTRALISED ENERGY,Premises,,Revenue
Walsall Council,http://opendatacommunities.org/id/metropolitan-district-council/walsall,WC70-562,31/07/2016,Change and Governance,BRITISH GAS BUSINESS,27/07/2016,512.23,42000-GAS-ENERGY COSTS,RECHARGEABLE UTILITIES,Premises,,Revenue
Walsall Council,http://opendatacommunities.org/id/metropolitan-district-council/walsall,WC70-563,31/07/2016,Change and Governance,BRITISH GAS BUSINESS,27/07/2016,516.82,42000-GAS-ENERGY COSTS,CENTRALISED ENERGY,Premises,,Revenue
Walsall Council,http://opendatacommunities.org/id/metropolitan-district-council/walsall,WC70-564,31/07/2016,Change and Governance,BRITISH GAS BUSINESS,27/07/2016,551.52,42000-GAS-ENERGY COSTS,RECHARGEABLE UTILITIES,Premises,,Revenue
Walsall Council,http://opendatacommunities.org/id/metropolitan-district-council/walsall,WC70-565,31/07/2016,Change and Governance,BRITISH GAS BUSINESS,27/07/2016,567.38,42000-GAS-ENERGY COSTS,CENTRALISED ENERGY,Premises,,Revenue
Walsall Council,http://opendatacommunities.org/id/metropolitan-district-council/walsall,WC70-566,31/07/2016,Change and Governance,BRITISH GAS BUSINESS,27/07/2016,598.92,42000-GAS-ENERGY COSTS,CENTRALISED ENERGY,Premises,,Revenue
Walsall Council,http://opendatacommunities.org/id/metropolitan-district-council/walsall,WC70-567,31/07/2016,Change and Governance,BRITISH GAS BUSINESS,27/07/2016,695.32,42000-GAS-ENERGY COSTS,CENTRALISED ENERGY,Premises,,Revenue
Walsall Council,http://opendatacommunities.org/id/metropolitan-district-council/walsall,WC70-568,31/07/2016,Change and Governance,BRITISH GAS BUSINESS,27/07/2016,727.51,42000-GAS-ENERGY COSTS,CENTRALISED ENERGY,Premises,,Revenue
Walsall Council,http://opendatacommunities.org/id/metropolitan-district-council/walsall,WC70-569,31/07/2016,Change and Governance,BRITISH GAS BUSINESS,27/07/2016,732.30,42000-GAS-ENERGY COSTS,CENTRALISED ENERGY,Premises,,Revenue
Walsall Council,http://opendatacommunities.org/id/metropolitan-district-council/walsall,WC70-570,31/07/2016,Change and Governance,BRITISH GAS BUSINESS,27/07/2016,765.09,42000-GAS-ENERGY COSTS,CENTRALISED ENERGY,Premises,,Revenue
Walsall Council,http://opendatacommunities.org/id/metropolitan-district-council/walsall,WC70-571,31/07/2016,Change and Governance,BRITISH GAS BUSINESS,27/07/2016,772.10,42000-GAS-ENERGY COSTS,CENTRALISED ENERGY,Premises,,Revenue
Walsall Council,http://opendatacommunities.org/id/metropolitan-district-council/walsall,WC70-572,31/07/2016,Change and Governance,BRITISH GAS BUSINESS,27/07/2016,861.28,42000-GAS-ENERGY COSTS,RECHARGEABLE UTILITIES,Premises,,Revenue
Walsall Council,http://opendatacommunities.org/id/metropolitan-district-council/walsall,WC70-573,31/07/2016,Change and Governance,BRITISH GAS BUSINESS,27/07/2016,888.13,42000-GAS-ENERGY COSTS,CENTRALISED ENERGY,Premises,,Revenue
Walsall Council,http://opendatacommunities.org/id/metropolitan-district-council/walsall,WC70-574,31/07/2016,Change and Governance,BRITISH GAS BUSINESS,27/07/2016,898.63,42000-GAS-ENERGY COSTS,DARLASTON TOWN HALL,Premises,,Revenue
Walsall Council,http://opendatacommunities.org/id/metropolitan-district-council/walsall,WC70-575,31/07/2016,Change and Governance,BRITISH GAS BUSINESS,27/07/2016,961.03,42000-GAS-ENERGY COSTS,CENTRALISED ENERGY,Premises,,Revenue
Walsall Council,http://opendatacommunities.org/id/metropolitan-district-council/walsall,WC70-576,31/07/2016,Change and Governance,BRITISH GAS BUSINESS,27/07/2016,962.93,42000-GAS-ENERGY COSTS,CENTRALISED ENERGY,Premises,,Revenue
Walsall Council,http://opendatacommunities.org/id/metropolitan-district-council/walsall,WC70-577,31/07/2016,Change and Governance,BRITISH GAS BUSINESS,27/07/2016,975.68,42000-GAS-ENERGY COSTS,CENTRALISED ENERGY,Premises,,Revenue
Walsall Council,http://opendatacommunities.org/id/metropolitan-district-council/walsall,WC70-578,31/07/2016,Change and Governance,BRITISH GAS BUSINESS,27/07/2016,"1,111.96",42000-GAS-ENERGY COSTS,CENTRALISED ENERGY,Premises,,Revenue
Walsall Council,http://opendatacommunities.org/id/metropolitan-district-council/walsall,WC70-579,31/07/2016,Change and Governance,BRITISH GAS BUSINESS,27/07/2016,"1,163.92",42000-GAS-ENERGY COSTS,CENTRALISED ENERGY,Premises,,Revenue
Walsall Council,http://opendatacommunities.org/id/metropolitan-district-council/walsall,WC70-580,31/07/2016,Change and Governance,BRITISH GAS BUSINESS,27/07/2016,"1,240.95",42000-GAS-ENERGY COSTS,CENTRALISED ENERGY,Premises,,Revenue
Walsall Council,http://opendatacommunities.org/id/metropolitan-district-council/walsall,WC70-581,31/07/2016,Change and Governance,BRITISH GAS BUSINESS,27/07/2016,"2,092.42",42000-GAS-ENERGY COSTS,CENTRALISED ENERGY,Premises,,Revenue
Walsall Council,http://opendatacommunities.org/id/metropolitan-district-council/walsall,WC70-582,31/07/2016,Change and Governance,BRITISH GAS BUSINESS,27/07/2016,"2,339.65",42000-GAS-ENERGY COSTS,CENTRALISED ENERGY,Premises,,Revenue
Walsall Council,http://opendatacommunities.org/id/metropolitan-district-council/walsall,WC70-583,31/07/2016,Change and Governance,BRITISH GAS BUSINESS,27/07/2016,"2,660.42",42000-GAS-ENERGY COSTS,RECHARGEABLE UTILITIES,Premises,,Revenue
Walsall Council,http://opendatacommunities.org/id/metropolitan-district-council/walsall,WC70-584,31/07/2016,Change and Governance,BRITISH GAS BUSINESS,01/07/2016,"2,817.35",42000-GAS-ENERGY COSTS,CENTRALISED ENERGY,Premises,,Revenue
Walsall Council,http://opendatacommunities.org/id/metropolitan-district-council/walsall,WC70-585,31/07/2016,Change and Governance,BRITISH GAS BUSINESS,27/07/2016,"2,988.72",42000-GAS-ENERGY COSTS,CENTRALISED ENERGY,Premises,,Revenue
Walsall Council,http://opendatacommunities.org/id/metropolitan-district-council/walsall,WC70-586,31/07/2016,Change and Governance,BRITISH GAS BUSINESS,27/07/2016,"3,158.71",42000-GAS-ENERGY COSTS,CENTRALISED ENERGY,Premises,,Revenue
Walsall Council,http://opendatacommunities.org/id/metropolitan-district-council/walsall,WC70-587,31/07/2016,Change and Governance,BRITISH GAS BUSINESS,27/07/2016,"3,328.61",42000-GAS-ENERGY COSTS,CENTRAL OFFICE ACCOMMODATION,Premises,,Revenue
Walsall Council,http://opendatacommunities.org/id/metropolitan-district-council/walsall,WC70-588,31/07/2016,Change and Governance,BRITISH GAS BUSINESS,27/07/2016,"3,471.81",42000-GAS-ENERGY COSTS,CENTRALISED ENERGY,Premises,,Revenue
Walsall Council,http://opendatacommunities.org/id/metropolitan-district-council/walsall,WC70-589,31/07/2016,Change and Governance,BRITISH GAS BUSINESS,27/07/2016,"3,779.38",42000-GAS-ENERGY COSTS,CENTRALISED ENERGY,Premises,,Revenue
Walsall Council,http://opendatacommunities.org/id/metropolitan-district-council/walsall,WC70-590,31/07/2016,Change and Governance,BRITISH GAS BUSINESS,27/07/2016,"4,123.43",42000-GAS-ENERGY COSTS,RECHARGEABLE UTILITIES,Premises,,Revenue
Walsall Council,http://opendatacommunities.org/id/metropolitan-district-council/walsall,WC70-591,31/07/2016,Change and Governance,BRITISH GAS BUSINESS,27/07/2016,"4,285.83",42000-GAS-ENERGY COSTS,CENTRALISED ENERGY,Premises,,Revenue
Walsall Council,http://opendatacommunities.org/id/metropolitan-district-council/walsall,WC70-592,31/07/2016,Change and Governance,BRITISH GAS BUSINESS,27/07/2016,"4,360.35",42000-GAS-ENERGY COSTS,CENTRALISED ENERGY,Premises,,Revenue
Walsall Council,http://opendatacommunities.org/id/metropolitan-district-council/walsall,WC70-593,31/07/2016,Change and Governance,BRITISH GAS BUSINESS,27/07/2016,"4,819.03",42000-GAS-ENERGY COSTS,CENTRALISED ENERGY,Premises,,Revenue
Walsall Council,http://opendatacommunities.org/id/metropolitan-district-council/walsall,WC70-594,31/07/2016,Change and Governance,BRITISH GAS BUSINESS,27/07/2016,"5,536.86",42000-GAS-ENERGY COSTS,CENTRAL OFFICE ACCOMMODATION,Premises,,Revenue
Walsall Council,http://opendatacommunities.org/id/metropolitan-district-council/walsall,WC70-595,31/07/2016,Change and Governance,BRITISH GAS BUSINESS,27/07/2016,"8,194.43",42000-GAS-ENERGY COSTS,CENTRALISED ENERGY,Premises,,Revenue
Walsall Council,http://opendatacommunities.org/id/metropolitan-district-council/walsall,WC70-596,31/07/2016,Change and Governance,BRITISH GAS BUSINESS,01/07/2016,"36,540.83",42000-GAS-ENERGY COSTS,CENTRALISED ENERGY,Premises,,Revenue
Walsall Council,http://opendatacommunities.org/id/metropolitan-district-council/walsall,WC70-597,31/07/2016,Change and Governance,BRITISH GAS BUSINESS,01/07/2016,"38,007.51",42000-GAS-ENERGY COSTS,CENTRALISED ENERGY,Premises,,Revenue
Walsall Council,http://opendatacommunities.org/id/metropolitan-district-council/walsall,WC70-598,31/07/2016,Change and Governance,BRITISH GAS BUSINESS,01/07/2016,"45,370.77",42000-GAS-ENERGY COSTS,CENTRALISED ENERGY,Premises,,Revenue
Walsall Council,http://opendatacommunities.org/id/metropolitan-district-council/walsall,WC70-599,31/07/2016,Economy & Environment,BROADWAY PHARMACY,20/07/2016,88.50,63000-PROFESSIONAL FEES AND SERVICES,SEXUAL HEALTH,Supplies & Services,,Revenue
Walsall Council,http://opendatacommunities.org/id/metropolitan-district-council/walsall,WC70-600,31/07/2016,Economy & Environment,BROADWAY PHARMACY,21/07/2016,394.12,71007-CONTRIBUTION TO PCT,PUBLIC HEALTH BUSINESS SUPPORT,Third Party Payments,,Revenue
Walsall Council,http://opendatacommunities.org/id/metropolitan-district-council/walsall,WC70-601,31/07/2016,Economy & Environment,BROADWAY PHARMACY,20/07/2016,570.79,71007-CONTRIBUTION TO PCT,PUBLIC HEALTH BUSINESS SUPPORT,Third Party Payments,,Revenue
Walsall Council,http://opendatacommunities.org/id/metropolitan-district-council/walsall,WC70-602,31/07/2016,Change and Governance,BROADWAY UNITED REFORMED CHURCH,20/07/2016,400.00,63128-HIRE OF ROOM-SERVICES-FEES,ELECTORAL ADMINISTRATION,Supplies & Services,,Revenue
Walsall Council,http://opendatacommunities.org/id/metropolitan-district-council/walsall,WC70-603,31/07/2016,Economy & Environment,BROWNHILLS ASPHALT & TARMAC LIMITED,18/07/2016,255.00,60500-GENERAL MATERIALS,INFRASTRUCTURE MAINTENANCE,Supplies & Services,,Revenue
Walsall Council,http://opendatacommunities.org/id/metropolitan-district-council/walsall,WC70-604,31/07/2016,Economy & Environment,BROWNHILLS ASPHALT & TARMAC LIMITED,18/07/2016,515.00,60500-GENERAL MATERIALS,INFRASTRUCTURE MAINTENANCE,Supplies & Services,,Revenue
Walsall Council,http://opendatacommunities.org/id/metropolitan-district-council/walsall,WC70-605,31/07/2016,Economy & Environment,BROWNHILLS ASPHALT & TARMAC LIMITED,11/07/2016,520.00,60500-GENERAL MATERIALS,CEMETERIES CENTRAL ADMINISTRATION,Supplies & Services,,Revenue
Walsall Council,http://opendatacommunities.org/id/metropolitan-district-council/walsall,WC70-606,31/07/2016,Economy & Environment,BROWNHILLS ASPHALT & TARMAC LIMITED,27/07/2016,"2,312.00",60008-MAINTENANCE-FURNITURE & EQUIPMENT,SECTION 106,Supplies & Services,,Revenue
Walsall Council,http://opendatacommunities.org/id/metropolitan-district-council/walsall,WC70-607,31/07/2016,Childrens,BROWNHILLS COMMUNITY ASSOCIATION,14/07/2016,"1,103.50",63000-PROFESSIONAL FEES AND SERVICES,LOOKED AFTER CHILDRENS SOCIAL WORK TEAM,Supplies & Services,,Revenue
Walsall Council,http://opendatacommunities.org/id/metropolitan-district-council/walsall,WC70-608,31/07/2016,Childrens,BROWNHILLS COMMUNITY ASSOCIATION,15/07/2016,"8,168.00",66505-OTHER-GRANTS TO OTHER ORGS,EARLY YEARS - 3 YR OLDS,Third Party Payments,,Revenue
Walsall Council,http://opendatacommunities.org/id/metropolitan-district-council/walsall,WC70-609,31/07/2016,Change and Governance,BROWNHILLS PARISH CHURCH,20/07/2016,256.00,63128-HIRE OF ROOM-SERVICES-FEES,ELECTORAL ADMINISTRATION,Supplies & Services,,Revenue
Walsall Council,http://opendatacommunities.org/id/metropolitan-district-council/walsall,WC70-610,31/07/2016,Economy & Environment,BROXAP LTD,26/07/2016,620.00,60006-NEW-FURNITURE & EQUIPMENT,ARBORETUM,Supplies & Services,,Revenue
Walsall Council,http://opendatacommunities.org/id/metropolitan-district-council/walsall,WC70-611,31/07/2016,Social Care & Inclusion,REDACTED,12/07/2016,"1,445.00",76422-DIRECT PAYMENTS TO SOCIAL SERVICES CLIENTS,LD COMMISSIONING,Transfer Payments,,Revenue
Walsall Council,http://opendatacommunities.org/id/metropolitan-district-council/walsall,WC70-612,31/07/2016,Change and Governance,REDACTED,08/07/2016,300.00,"40000-REPAIRS,ALTERATIONS & MAINTENANCE-PREM",CENTRALISED MAINTENANCE,Premises,,Revenue
Walsall Council,http://opendatacommunities.org/id/metropolitan-district-council/walsall,WC70-613,31/07/2016,Economy & Environment,REDACTED,15/07/2016,300.00,62523-EVENTS,BARR BEACON RESTORATION,Supplies & Services,,Revenue
Walsall Council,http://opendatacommunities.org/id/metropolitan-district-council/walsall,WC70-614,31/07/2016,Economy & Environment,REDACTED,22/07/2016,300.00,62523-EVENTS,ARBORETUM,Supplies & Services,,Revenue
Walsall Council,http://opendatacommunities.org/id/metropolitan-district-council/walsall,WC70-615,31/07/2016,Economy & Environment,REDACTED,18/07/2016,"2,081.25",63000-PROFESSIONAL FEES AND SERVICES,EXTL FUNDED CREATIVE PROJECT MANAGEMENT,Supplies & Services,,Revenue
Walsall Council,http://opendatacommunities.org/id/metropolitan-district-council/walsall,WC70-616,31/07/2016,Change and Governance,BT,01/07/2016,"1,120.00",63603-COST OF CALLS-TELEPHONES,PROCESSING,Supplies & Services,,Revenue
Walsall Council,http://opendatacommunities.org/id/metropolitan-district-council/walsall,WC70-617,31/07/2016,Change and Governance,BT PLC,12/07/2016,253.10,63601-COSTS (NOT INTERNAL RECHARGES)-TELEPHONES,CENTRAL COMMUNICATIONS RECHARGES,Supplies & Services,,Revenue
Walsall Council,http://opendatacommunities.org/id/metropolitan-district-council/walsall,WC70-618,31/07/2016,Change and Governance,BT PLC,20/07/2016,"14,551.12",63601-COSTS (NOT INTERNAL RECHARGES)-TELEPHONES,CENTRAL COMMUNICATIONS RECHARGES,Supplies & Services,,Revenue
Walsall Council,http://opendatacommunities.org/id/metropolitan-district-council/walsall,WC70-619,31/07/2016,Change and Governance,BUILDING RECRUITMENT COMPANY,01/07/2016,726.50,73025-PROFESSIONAL SERVICES-PRIV CONTRACTOR & OTHER AGENCIES,INTEGRATED FACILITIES MANAGEMENT,Third Party Payments,,Revenue
Walsall Council,http://opendatacommunities.org/id/metropolitan-district-council/walsall,WC70-620,31/07/2016,Change and Governance,BUILDING RECRUITMENT COMPANY,01/07/2016,"1,089.75",73025-PROFESSIONAL SERVICES-PRIV CONTRACTOR & OTHER AGENCIES,INTEGRATED FACILITIES MANAGEMENT,Third Party Payments,,Revenue
Walsall Council,http://opendatacommunities.org/id/metropolitan-district-council/walsall,WC70-621,31/07/2016,Change and Governance,BUILDING RECRUITMENT COMPANY,08/07/2016,"1,095.00",73025-PROFESSIONAL SERVICES-PRIV CONTRACTOR & OTHER AGENCIES,INTEGRATED FACILITIES MANAGEMENT,Third Party Payments,,Revenue
Walsall Council,http://opendatacommunities.org/id/metropolitan-district-council/walsall,WC70-622,31/07/2016,Change and Governance,BUILDING RECRUITMENT COMPANY,01/07/2016,"1,102.75",73025-PROFESSIONAL SERVICES-PRIV CONTRACTOR & OTHER AGENCIES,INTEGRATED FACILITIES MANAGEMENT,Third Party Payments,,Revenue
Walsall Council,http://opendatacommunities.org/id/metropolitan-district-council/walsall,WC70-623,31/07/2016,Change and Governance,BUILDING RECRUITMENT COMPANY,01/07/2016,"1,114.50",73025-PROFESSIONAL SERVICES-PRIV CONTRACTOR & OTHER AGENCIES,INTEGRATED FACILITIES MANAGEMENT,Third Party Payments,,Revenue
Walsall Council,http://opendatacommunities.org/id/metropolitan-district-council/walsall,WC70-624,31/07/2016,Change and Governance,BUILDING RECRUITMENT COMPANY,14/07/2016,"1,117.75",73025-PROFESSIONAL SERVICES-PRIV CONTRACTOR & OTHER AGENCIES,INTEGRATED FACILITIES MANAGEMENT,Third Party Payments,,Revenue
Walsall Council,http://opendatacommunities.org/id/metropolitan-district-council/walsall,WC70-625,31/07/2016,Change and Governance,BUILDING RECRUITMENT COMPANY,13/07/2016,"1,132.75",73025-PROFESSIONAL SERVICES-PRIV CONTRACTOR & OTHER AGENCIES,INTEGRATED FACILITIES MANAGEMENT,Third Party Payments,,Revenue
Walsall Council,http://opendatacommunities.org/id/metropolitan-district-council/walsall,WC70-626,31/07/2016,Childrens,BUMBLE BEEZZZ DAY NURSERY,26/07/2016,400.00,63120-CRECHE FACILITIES-SERVICES-FEES,FOSTERING SUPPORT TEAM,Supplies & Services,,Revenue
Walsall Council,http://opendatacommunities.org/id/metropolitan-district-council/walsall,WC70-627,31/07/2016,Social Care & Inclusion,BUPA CARE HOMES (CFHCARE) LTD,20/07/2016,"1,649.80",73373-RESIDENTIAL & NURSING CARE PLACEMENTS,OP COMMISSIONING,Third Party Payments,,Revenue
Walsall Council,http://opendatacommunities.org/id/metropolitan-district-council/walsall,WC70-628,31/07/2016,Social Care & Inclusion,BUPA CARE HOMES (CFHCARE) LTD,20/07/2016,"1,882.36",73373-RESIDENTIAL & NURSING CARE PLACEMENTS,OP COMMISSIONING,Third Party Payments,,Revenue
Walsall Council,http://opendatacommunities.org/id/metropolitan-district-council/walsall,WC70-629,31/07/2016,Social Care & Inclusion,BUSH HOME LTD,07/07/2016,429.52,73373-RESIDENTIAL & NURSING CARE PLACEMENTS,OP COMMISSIONING,Third Party Payments,,Revenue
Walsall Council,http://opendatacommunities.org/id/metropolitan-district-council/walsall,WC70-630,31/07/2016,Social Care & Inclusion,BUSH HOME LTD,07/07/2016,560.23,73373-RESIDENTIAL & NURSING CARE PLACEMENTS,OP COMMISSIONING,Third Party Payments,,Revenue
Walsall Council,http://opendatacommunities.org/id/metropolitan-district-council/walsall,WC70-631,31/07/2016,Social Care & Inclusion,BUSH HOME LTD,07/07/2016,"1,344.55",73373-RESIDENTIAL & NURSING CARE PLACEMENTS,OP COMMISSIONING,Third Party Payments,,Revenue
Walsall Council,http://opendatacommunities.org/id/metropolitan-district-council/walsall,WC70-632,31/07/2016,Social Care & Inclusion,BUSH HOME LTD,07/07/2016,"1,568.64",73373-RESIDENTIAL & NURSING CARE PLACEMENTS,OP COMMISSIONING,Third Party Payments,,Revenue
Walsall Council,http://opendatacommunities.org/id/metropolitan-district-council/walsall,WC70-633,31/07/2016,Social Care & Inclusion,BUSH HOME LTD,07/07/2016,"1,568.64",73373-RESIDENTIAL & NURSING CARE PLACEMENTS,OP COMMISSIONING,Third Party Payments,,Revenue
Walsall Council,http://opendatacommunities.org/id/metropolitan-district-council/walsall,WC70-634,31/07/2016,Social Care & Inclusion,BUSH HOME LTD,07/07/2016,"1,568.64",73373-RESIDENTIAL & NURSING CARE PLACEMENTS,OP COMMISSIONING,Third Party Payments,,Revenue
Walsall Council,http://opendatacommunities.org/id/metropolitan-district-council/walsall,WC70-635,31/07/2016,Social Care & Inclusion,BUSH HOME LTD,26/07/2016,"1,620.00",73373-RESIDENTIAL & NURSING CARE PLACEMENTS,OP COMMISSIONING,Third Party Payments,,Revenue
Walsall Council,http://opendatacommunities.org/id/metropolitan-district-council/walsall,WC70-636,31/07/2016,Social Care & Inclusion,BUSH HOME LTD,26/07/2016,"1,620.00",73373-RESIDENTIAL & NURSING CARE PLACEMENTS,OP COMMISSIONING,Third Party Payments,,Revenue
Walsall Council,http://opendatacommunities.org/id/metropolitan-district-council/walsall,WC70-637,31/07/2016,Social Care & Inclusion,BUSH HOME LTD,26/07/2016,"1,620.00",73373-RESIDENTIAL & NURSING CARE PLACEMENTS,OP COMMISSIONING,Third Party Payments,,Revenue
Walsall Council,http://opendatacommunities.org/id/metropolitan-district-council/walsall,WC70-638,31/07/2016,Social Care & Inclusion,BUSH HOME LTD,26/07/2016,"1,620.00",73373-RESIDENTIAL & NURSING CARE PLACEMENTS,OP COMMISSIONING,Third Party Payments,,Revenue
Walsall Council,http://opendatacommunities.org/id/metropolitan-district-council/walsall,WC70-639,31/07/2016,Social Care & Inclusion,BUSH HOME LTD,07/07/2016,"1,800.00",73373-RESIDENTIAL & NURSING CARE PLACEMENTS,OP COMMISSIONING,Third Party Payments,,Revenue
Walsall Council,http://opendatacommunities.org/id/metropolitan-district-council/walsall,WC70-640,31/07/2016,Social Care & Inclusion,BUSH HOME LTD,26/07/2016,"1,800.00",73373-RESIDENTIAL & NURSING CARE PLACEMENTS,OP COMMISSIONING,Third Party Payments,,Revenue
Walsall Council,http://opendatacommunities.org/id/metropolitan-district-council/walsall,WC70-641,31/07/2016,Social Care & Inclusion,BUSH HOME LTD,26/07/2016,"1,800.00",73373-RESIDENTIAL & NURSING CARE PLACEMENTS,OP COMMISSIONING,Third Party Payments,,Revenue
Walsall Council,http://opendatacommunities.org/id/metropolitan-district-council/walsall,WC70-642,31/07/2016,Social Care & Inclusion,BUSH HOME LTD,26/07/2016,"1,800.00",73373-RESIDENTIAL & NURSING CARE PLACEMENTS,OP COMMISSIONING,Third Party Payments,,Revenue
Walsall Council,http://opendatacommunities.org/id/metropolitan-district-council/walsall,WC70-643,31/07/2016,Social Care & Inclusion,BUSH HOME LTD,26/07/2016,"1,800.00",73373-RESIDENTIAL & NURSING CARE PLACEMENTS,OP COMMISSIONING,Third Party Payments,,Revenue
Walsall Council,http://opendatacommunities.org/id/metropolitan-district-council/walsall,WC70-644,31/07/2016,Social Care & Inclusion,BUSH HOME LTD,26/07/2016,"1,800.00",73373-RESIDENTIAL & NURSING CARE PLACEMENTS,OP COMMISSIONING,Third Party Payments,,Revenue
Walsall Council,http://opendatacommunities.org/id/metropolitan-district-council/walsall,WC70-645,31/07/2016,Social Care & Inclusion,BUSH HOME LTD,26/07/2016,"1,800.00",73373-RESIDENTIAL & NURSING CARE PLACEMENTS,OP COMMISSIONING,Third Party Payments,,Revenue
Walsall Council,http://opendatacommunities.org/id/metropolitan-district-council/walsall,WC70-646,31/07/2016,Social Care & Inclusion,BUSH HOME LTD,26/07/2016,"1,800.00",73373-RESIDENTIAL & NURSING CARE PLACEMENTS,OP COMMISSIONING,Third Party Payments,,Revenue
Walsall Council,http://opendatacommunities.org/id/metropolitan-district-council/walsall,WC70-647,31/07/2016,Social Care & Inclusion,BUSH HOME LTD,26/07/2016,"1,800.00",73373-RESIDENTIAL & NURSING CARE PLACEMENTS,OP COMMISSIONING,Third Party Payments,,Revenue
Walsall Council,http://opendatacommunities.org/id/metropolitan-district-council/walsall,WC70-648,31/07/2016,Social Care & Inclusion,BUSH HOME LTD,26/07/2016,"1,800.00",73373-RESIDENTIAL & NURSING CARE PLACEMENTS,OP COMMISSIONING,Third Party Payments,,Revenue
Walsall Council,http://opendatacommunities.org/id/metropolitan-district-council/walsall,WC70-649,31/07/2016,Social Care & Inclusion,BUSH HOME LTD,26/07/2016,"1,800.00",73373-RESIDENTIAL & NURSING CARE PLACEMENTS,OP COMMISSIONING,Third Party Payments,,Revenue
Walsall Council,http://opendatacommunities.org/id/metropolitan-district-council/walsall,WC70-650,31/07/2016,Social Care & Inclusion,BUSH HOME LTD,26/07/2016,"1,800.00",73373-RESIDENTIAL & NURSING CARE PLACEMENTS,OP COMMISSIONING,Third Party Payments,,Revenue
Walsall Council,http://opendatacommunities.org/id/metropolitan-district-council/walsall,WC70-651,31/07/2016,Social Care & Inclusion,BUSH HOME LTD,26/07/2016,"1,800.00",73373-RESIDENTIAL & NURSING CARE PLACEMENTS,OP COMMISSIONING,Third Party Payments,,Revenue
Walsall Council,http://opendatacommunities.org/id/metropolitan-district-council/walsall,WC70-652,31/07/2016,Social Care & Inclusion,BUSH HOME LTD,26/07/2016,"1,800.00",73373-RESIDENTIAL & NURSING CARE PLACEMENTS,OP COMMISSIONING,Third Party Payments,,Revenue
Walsall Council,http://opendatacommunities.org/id/metropolitan-district-council/walsall,WC70-653,31/07/2016,Social Care & Inclusion,BUSH HOME LTD,12/07/2016,"1,992.85",73373-RESIDENTIAL & NURSING CARE PLACEMENTS,MH COMMISSIONING,Third Party Payments,,Revenue
Walsall Council,http://opendatacommunities.org/id/metropolitan-district-council/walsall,WC70-654,31/07/2016,Childrens,BUSY BEES CHILDCARE LTD,15/07/2016,"1,334.97",66505-OTHER-GRANTS TO OTHER ORGS,EARLY YEARS - 2 YR OLDS,Third Party Payments,,Revenue
Walsall Council,http://opendatacommunities.org/id/metropolitan-district-council/walsall,WC70-655,31/07/2016,Childrens,BUSY BEES CHILDCARE LTD,14/07/2016,"1,750.00",66505-OTHER-GRANTS TO OTHER ORGS,EARLY YEARS - 3 YR OLDS,Third Party Payments,,Revenue
Walsall Council,http://opendatacommunities.org/id/metropolitan-district-council/walsall,WC70-656,31/07/2016,Childrens,BY THE BRIDGE,06/07/2016,"6,121.39",74037-INDEPENDENT FOSTER CARE-OTH AGENCY PROVISION,EXTERNAL FOSTER CARE PROVISION,Third Party Payments,,Revenue
Walsall Council,http://opendatacommunities.org/id/metropolitan-district-council/walsall,WC70-657,31/07/2016,Social Care & Inclusion,C & V ORCHARD MANOR LTD,12/07/2016,448.16,73373-RESIDENTIAL & NURSING CARE PLACEMENTS,OP COMMISSIONING,Third Party Payments,,Revenue
Walsall Council,http://opendatacommunities.org/id/metropolitan-district-council/walsall,WC70-658,31/07/2016,Social Care & Inclusion,C & V ORCHARD MANOR LTD,12/07/2016,"1,607.14",73373-RESIDENTIAL & NURSING CARE PLACEMENTS,MH COMMISSIONING,Third Party Payments,,Revenue
Walsall Council,http://opendatacommunities.org/id/metropolitan-district-council/walsall,WC70-659,31/07/2016,Social Care & Inclusion,C & V ORCHARD MANOR LTD,12/07/2016,"1,607.14",73373-RESIDENTIAL & NURSING CARE PLACEMENTS,OP COMMISSIONING,Third Party Payments,,Revenue
Walsall Council,http://opendatacommunities.org/id/metropolitan-district-council/walsall,WC70-660,31/07/2016,Social Care & Inclusion,C & V ORCHARD MANOR LTD,20/07/2016,"1,607.14",73373-RESIDENTIAL & NURSING CARE PLACEMENTS,OP COMMISSIONING,Third Party Payments,,Revenue
Walsall Council,http://opendatacommunities.org/id/metropolitan-district-council/walsall,WC70-661,31/07/2016,Social Care & Inclusion,C & V ORCHARD MANOR LTD,07/07/2016,"1,620.00",73373-RESIDENTIAL & NURSING CARE PLACEMENTS,OP COMMISSIONING,Third Party Payments,,Revenue
Walsall Council,http://opendatacommunities.org/id/metropolitan-district-council/walsall,WC70-662,31/07/2016,Social Care & Inclusion,C & V ORCHARD MANOR LTD,07/07/2016,"1,620.00",73373-RESIDENTIAL & NURSING CARE PLACEMENTS,LD COMMISSIONING,Third Party Payments,,Revenue
Walsall Council,http://opendatacommunities.org/id/metropolitan-district-council/walsall,WC70-663,31/07/2016,Social Care & Inclusion,C & V ORCHARD MANOR LTD,07/07/2016,"1,620.00",73373-RESIDENTIAL & NURSING CARE PLACEMENTS,OP COMMISSIONING,Third Party Payments,,Revenue
Walsall Council,http://opendatacommunities.org/id/metropolitan-district-council/walsall,WC70-664,31/07/2016,Social Care & Inclusion,C & V ORCHARD MANOR LTD,07/07/2016,"1,620.00",73373-RESIDENTIAL & NURSING CARE PLACEMENTS,OP COMMISSIONING,Third Party Payments,,Revenue
Walsall Council,http://opendatacommunities.org/id/metropolitan-district-council/walsall,WC70-665,31/07/2016,Social Care & Inclusion,C & V ORCHARD MANOR LTD,07/07/2016,"1,620.60",73373-RESIDENTIAL & NURSING CARE PLACEMENTS,OP COMMISSIONING,Third Party Payments,,Revenue
Walsall Council,http://opendatacommunities.org/id/metropolitan-district-council/walsall,WC70-666,31/07/2016,Social Care & Inclusion,C & V ORCHARD MANOR LTD,12/07/2016,"1,624.66",73373-RESIDENTIAL & NURSING CARE PLACEMENTS,OP COMMISSIONING,Third Party Payments,,Revenue
Walsall Council,http://opendatacommunities.org/id/metropolitan-district-council/walsall,WC70-667,31/07/2016,Social Care & Inclusion,C & V ORCHARD MANOR LTD,12/07/2016,"1,729.87",73373-RESIDENTIAL & NURSING CARE PLACEMENTS,MH COMMISSIONING,Third Party Payments,,Revenue
Walsall Council,http://opendatacommunities.org/id/metropolitan-district-council/walsall,WC70-668,31/07/2016,Social Care & Inclusion,C & V ORCHARD MANOR LTD,07/07/2016,"1,800.00",73373-RESIDENTIAL & NURSING CARE PLACEMENTS,OP COMMISSIONING,Third Party Payments,,Revenue
Walsall Council,http://opendatacommunities.org/id/metropolitan-district-council/walsall,WC70-669,31/07/2016,Social Care & Inclusion,C & V ORCHARD MANOR LTD,07/07/2016,"1,800.00",73373-RESIDENTIAL & NURSING CARE PLACEMENTS,OP COMMISSIONING,Third Party Payments,,Revenue
Walsall Council,http://opendatacommunities.org/id/metropolitan-district-council/walsall,WC70-670,31/07/2016,Social Care & Inclusion,C & V ORCHARD MANOR LTD,07/07/2016,"1,800.00",73373-RESIDENTIAL & NURSING CARE PLACEMENTS,MH COMMISSIONING,Third Party Payments,,Revenue
Walsall Council,http://opendatacommunities.org/id/metropolitan-district-council/walsall,WC70-671,31/07/2016,Social Care & Inclusion,C & V ORCHARD MANOR LTD,12/07/2016,"1,800.00",73373-RESIDENTIAL & NURSING CARE PLACEMENTS,OP COMMISSIONING,Third Party Payments,,Revenue
Walsall Council,http://opendatacommunities.org/id/metropolitan-district-council/walsall,WC70-672,31/07/2016,Social Care & Inclusion,C & V ORCHARD MANOR LTD,12/07/2016,"1,800.00",73373-RESIDENTIAL & NURSING CARE PLACEMENTS,OP COMMISSIONING,Third Party Payments,,Revenue
Walsall Council,http://opendatacommunities.org/id/metropolitan-district-council/walsall,WC70-673,31/07/2016,Social Care & Inclusion,C & V ORCHARD MANOR LTD,20/07/2016,"1,800.00",73373-RESIDENTIAL & NURSING CARE PLACEMENTS,OP COMMISSIONING,Third Party Payments,,Revenue
Walsall Council,http://opendatacommunities.org/id/metropolitan-district-council/walsall,WC70-674,31/07/2016,Social Care & Inclusion,C & V ORCHARD MANOR LTD,12/07/2016,"2,006.62",73373-RESIDENTIAL & NURSING CARE PLACEMENTS,OP COMMISSIONING,Third Party Payments,,Revenue
Walsall Council,http://opendatacommunities.org/id/metropolitan-district-council/walsall,WC70-675,31/07/2016,Social Care & Inclusion,C & V ORCHARD MANOR LTD,26/07/2016,"2,140.70",73373-RESIDENTIAL & NURSING CARE PLACEMENTS,MH COMMISSIONING,Third Party Payments,,Revenue
Walsall Council,http://opendatacommunities.org/id/metropolitan-district-council/walsall,WC70-676,31/07/2016,Social Care & Inclusion,C & V ORCHARD MANOR LTD,26/07/2016,"5,612.10",73373-RESIDENTIAL & NURSING CARE PLACEMENTS,MH COMMISSIONING,Third Party Payments,,Revenue
Walsall Council,http://opendatacommunities.org/id/metropolitan-district-council/walsall,WC70-677,31/07/2016,Social Care & Inclusion,C & V ORCHARD MANOR LTD,12/07/2016,"8,692.79",73373-RESIDENTIAL & NURSING CARE PLACEMENTS,OP COMMISSIONING,Third Party Payments,,Revenue
Walsall Council,http://opendatacommunities.org/id/metropolitan-district-council/walsall,WC70-678,31/07/2016,Social Care & Inclusion,C & V ORCHARD RESIDENTIAL LTD,12/07/2016,"1,620.00",73373-RESIDENTIAL & NURSING CARE PLACEMENTS,OP COMMISSIONING,Third Party Payments,,Revenue
Walsall Council,http://opendatacommunities.org/id/metropolitan-district-council/walsall,WC70-679,31/07/2016,Social Care & Inclusion,C & V ORCHARD RESIDENTIAL LTD,12/07/2016,"1,800.00",73373-RESIDENTIAL & NURSING CARE PLACEMENTS,OP COMMISSIONING,Third Party Payments,,Revenue
Walsall Council,http://opendatacommunities.org/id/metropolitan-district-council/walsall,WC70-680,31/07/2016,Social Care & Inclusion,C & V ORCHARD RESIDENTIAL LTD,12/07/2016,"1,800.00",73373-RESIDENTIAL & NURSING CARE PLACEMENTS,OP COMMISSIONING,Third Party Payments,,Revenue
Walsall Council,http://opendatacommunities.org/id/metropolitan-district-council/walsall,WC70-681,31/07/2016,Social Care & Inclusion,C & V ORCHARD RESIDENTIAL LTD,12/07/2016,"1,936.17",73373-RESIDENTIAL & NURSING CARE PLACEMENTS,OP COMMISSIONING,Third Party Payments,,Revenue
Walsall Council,http://opendatacommunities.org/id/metropolitan-district-council/walsall,WC70-682,31/07/2016,Social Care & Inclusion,C & V ORCHARD RESIDENTIAL LTD,12/07/2016,"1,942.28",73373-RESIDENTIAL & NURSING CARE PLACEMENTS,OP COMMISSIONING,Third Party Payments,,Revenue
Walsall Council,http://opendatacommunities.org/id/metropolitan-district-council/walsall,WC70-683,31/07/2016,Social Care & Inclusion,C & V ORCHARD RESIDENTIAL LTD,12/07/2016,"1,998.31",73373-RESIDENTIAL & NURSING CARE PLACEMENTS,OP COMMISSIONING,Third Party Payments,,Revenue
Walsall Council,http://opendatacommunities.org/id/metropolitan-district-council/walsall,WC70-684,31/07/2016,Economy & Environment,C ART ART TRANSPORT LTD,20/07/2016,265.00,73032-TRANSPORTATION-PRIV CONTRACTOR FEES,NAG - GARMAN RYAN/PERMANENT COLLECTION,Third Party Payments,,Revenue
Walsall Council,http://opendatacommunities.org/id/metropolitan-district-council/walsall,WC70-685,31/07/2016,Childrens,REDACTED,18/07/2016,"4,432.03",62515-MISCELLANEOUS SUPPLIES,INTERNAL FOSTER CARE PROVISION,Supplies & Services,,Revenue
Walsall Council,http://opendatacommunities.org/id/metropolitan-district-council/walsall,WC70-686,31/07/2016,Childrens,REDACTED,18/07/2016,"4,877.96",74006-HOLIDAY/CHRISTMAS ALLOWANCE-FOSTER CARERS-OTH AGENCY PROVISION,INTERNAL FOSTER CARE PROVISION,Third Party Payments,,Revenue
Walsall Council,http://opendatacommunities.org/id/metropolitan-district-council/walsall,WC70-687,31/07/2016,Childrens,REDACTED,18/07/2016,"1,445.32",62515-MISCELLANEOUS SUPPLIES,INTERNAL FOSTER CARE PROVISION,Supplies & Services,,Revenue
Walsall Council,http://opendatacommunities.org/id/metropolitan-district-council/walsall,WC70-688,31/07/2016,Childrens,REDACTED,18/07/2016,"2,430.96",74006-HOLIDAY/CHRISTMAS ALLOWANCE-FOSTER CARERS-OTH AGENCY PROVISION,INTERNAL FOSTER CARE PROVISION,Third Party Payments,,Revenue
Walsall Council,http://opendatacommunities.org/id/metropolitan-district-council/walsall,WC70-689,31/07/2016,Economy & Environment,C P DAVIDSON & SONS LTD,04/07/2016,-851.00,60500-GENERAL MATERIALS,FLEET,Supplies & Services,,Revenue
Walsall Council,http://opendatacommunities.org/id/metropolitan-district-council/walsall,WC70-690,31/07/2016,Economy & Environment,C P DAVIDSON & SONS LTD,06/07/2016,211.45,60514-MATERIALS TO STORES,FLEET PARTS STOCK ACCOUNT,Supplies & Services,,Revenue
Walsall Council,http://opendatacommunities.org/id/metropolitan-district-council/walsall,WC70-691,31/07/2016,Economy & Environment,C P DAVIDSON & SONS LTD,04/07/2016,357.50,73025-PROFESSIONAL SERVICES-PRIV CONTRACTOR & OTHER AGENCIES,FLEET,Third Party Payments,,Revenue
Walsall Council,http://opendatacommunities.org/id/metropolitan-district-council/walsall,WC70-692,31/07/2016,Economy & Environment,C P DAVIDSON & SONS LTD,01/07/2016,441.40,60500-GENERAL MATERIALS,FLEET,Supplies & Services,,Revenue
Walsall Council,http://opendatacommunities.org/id/metropolitan-district-council/walsall,WC70-693,31/07/2016,Economy & Environment,C P DAVIDSON & SONS LTD,07/07/2016,"1,702.00",60500-GENERAL MATERIALS,FLEET,Supplies & Services,,Revenue
Walsall Council,http://opendatacommunities.org/id/metropolitan-district-council/walsall,WC70-694,31/07/2016,Economy & Environment,C P DAVIDSON & SONS LTD,01/07/2016,"1,728.80",60500-GENERAL MATERIALS,FLEET,Supplies & Services,,Revenue
Walsall Council,http://opendatacommunities.org/id/metropolitan-district-council/walsall,WC70-695,31/07/2016,Childrens,REDACTED,04/07/2016,"1,142.88",74006-HOLIDAY/CHRISTMAS ALLOWANCE-FOSTER CARERS-OTH AGENCY PROVISION,INTERNAL FOSTER CARE PROVISION,Third Party Payments,,Revenue
Walsall Council,http://opendatacommunities.org/id/metropolitan-district-council/walsall,WC70-696,31/07/2016,Social Care & Inclusion,CALDMORE AREA HOUSING ASS LTD,04/07/2016,294.05,73374-SUPPORTED & OTHER ACCOMMODATION,MH COMMISSIONING,Third Party Payments,,Revenue
Walsall Council,http://opendatacommunities.org/id/metropolitan-district-council/walsall,WC70-697,31/07/2016,Social Care & Inclusion,CALDMORE AREA HOUSING ASS LTD,04/07/2016,576.80,73374-SUPPORTED & OTHER ACCOMMODATION,MH COMMISSIONING,Third Party Payments,,Revenue
Walsall Council,http://opendatacommunities.org/id/metropolitan-district-council/walsall,WC70-698,31/07/2016,Social Care & Inclusion,CALDMORE AREA HOUSING ASS LTD,04/07/2016,576.80,73374-SUPPORTED & OTHER ACCOMMODATION,MH COMMISSIONING,Third Party Payments,,Revenue
Walsall Council,http://opendatacommunities.org/id/metropolitan-district-council/walsall,WC70-699,31/07/2016,Social Care & Inclusion,CALDMORE AREA HOUSING ASS LTD,04/07/2016,576.80,73374-SUPPORTED & OTHER ACCOMMODATION,MH COMMISSIONING,Third Party Payments,,Revenue
Walsall Council,http://opendatacommunities.org/id/metropolitan-district-council/walsall,WC70-700,31/07/2016,Social Care & Inclusion,CALDMORE AREA HOUSING ASS LTD,04/07/2016,576.80,73374-SUPPORTED & OTHER ACCOMMODATION,MH COMMISSIONING,Third Party Payments,,Revenue
Walsall Council,http://opendatacommunities.org/id/metropolitan-district-council/walsall,WC70-701,31/07/2016,Social Care & Inclusion,CALDMORE AREA HOUSING ASS LTD,04/07/2016,598.20,73374-SUPPORTED & OTHER ACCOMMODATION,MH COMMISSIONING,Third Party Payments,,Revenue
Walsall Council,http://opendatacommunities.org/id/metropolitan-district-council/walsall,WC70-702,31/07/2016,Social Care & Inclusion,CALDMORE AREA HOUSING ASS LTD,11/07/2016,906.72,73374-SUPPORTED & OTHER ACCOMMODATION,MH COMMISSIONING,Third Party Payments,,Revenue
Walsall Council,http://opendatacommunities.org/id/metropolitan-district-council/walsall,WC70-703,31/07/2016,Social Care & Inclusion,CALDMORE AREA HOUSING ASS LTD,11/07/2016,"1,001.17",73374-SUPPORTED & OTHER ACCOMMODATION,MH COMMISSIONING,Third Party Payments,,Revenue
Walsall Council,http://opendatacommunities.org/id/metropolitan-district-council/walsall,WC70-704,31/07/2016,Social Care & Inclusion,CALDMORE AREA HOUSING ASS LTD,11/07/2016,"1,038.92",73374-SUPPORTED & OTHER ACCOMMODATION,MH COMMISSIONING,Third Party Payments,,Revenue
Walsall Council,http://opendatacommunities.org/id/metropolitan-district-council/walsall,WC70-705,31/07/2016,Social Care & Inclusion,CALDMORE AREA HOUSING ASS LTD,04/07/2016,"1,095.60",73374-SUPPORTED & OTHER ACCOMMODATION,MH COMMISSIONING,Third Party Payments,,Revenue
Walsall Council,http://opendatacommunities.org/id/metropolitan-district-council/walsall,WC70-706,31/07/2016,Social Care & Inclusion,CALDMORE AREA HOUSING ASS LTD,04/07/2016,"1,133.40",73374-SUPPORTED & OTHER ACCOMMODATION,MH COMMISSIONING,Third Party Payments,,Revenue
Walsall Council,http://opendatacommunities.org/id/metropolitan-district-council/walsall,WC70-707,31/07/2016,Social Care & Inclusion,CALDMORE AREA HOUSING ASS LTD,11/07/2016,"1,133.40",73374-SUPPORTED & OTHER ACCOMMODATION,MH COMMISSIONING,Third Party Payments,,Revenue
Walsall Council,http://opendatacommunities.org/id/metropolitan-district-council/walsall,WC70-708,31/07/2016,Social Care & Inclusion,CALDMORE AREA HOUSING ASS LTD,11/07/2016,"1,152.29",73374-SUPPORTED & OTHER ACCOMMODATION,MH COMMISSIONING,Third Party Payments,,Revenue
Walsall Council,http://opendatacommunities.org/id/metropolitan-district-council/walsall,WC70-709,31/07/2016,Social Care & Inclusion,CALDMORE AREA HOUSING ASS LTD,11/07/2016,"1,322.30",73374-SUPPORTED & OTHER ACCOMMODATION,MH COMMISSIONING,Third Party Payments,,Revenue
Walsall Council,http://opendatacommunities.org/id/metropolitan-district-council/walsall,WC70-710,31/07/2016,Social Care & Inclusion,CALDMORE AREA HOUSING ASS LTD,04/07/2016,"1,473.40",73374-SUPPORTED & OTHER ACCOMMODATION,MH COMMISSIONING,Third Party Payments,,Revenue
Walsall Council,http://opendatacommunities.org/id/metropolitan-district-council/walsall,WC70-711,31/07/2016,Social Care & Inclusion,CALDMORE AREA HOUSING ASS LTD,07/07/2016,"2,533.04",73373-RESIDENTIAL & NURSING CARE PLACEMENTS,MH COMMISSIONING,Third Party Payments,,Revenue
Walsall Council,http://opendatacommunities.org/id/metropolitan-district-council/walsall,WC70-712,31/07/2016,Social Care & Inclusion,CALDMORE AREA HOUSING ASS LTD,07/07/2016,"2,533.04",73373-RESIDENTIAL & NURSING CARE PLACEMENTS,MH COMMISSIONING,Third Party Payments,,Revenue
Walsall Council,http://opendatacommunities.org/id/metropolitan-district-council/walsall,WC70-713,31/07/2016,Social Care & Inclusion,CALDMORE AREA HOUSING ASS LTD,07/07/2016,"2,533.04",73373-RESIDENTIAL & NURSING CARE PLACEMENTS,MH COMMISSIONING,Third Party Payments,,Revenue
Walsall Council,http://opendatacommunities.org/id/metropolitan-district-council/walsall,WC70-714,31/07/2016,Social Care & Inclusion,CALDMORE AREA HOUSING ASS LTD,07/07/2016,"2,533.04",73373-RESIDENTIAL & NURSING CARE PLACEMENTS,MH COMMISSIONING,Third Party Payments,,Revenue
Walsall Council,http://opendatacommunities.org/id/metropolitan-district-council/walsall,WC70-715,31/07/2016,Social Care & Inclusion,CALDMORE AREA HOUSING ASS LTD,07/07/2016,"2,533.04",73373-RESIDENTIAL & NURSING CARE PLACEMENTS,MH COMMISSIONING,Third Party Payments,,Revenue
Walsall Council,http://opendatacommunities.org/id/metropolitan-district-council/walsall,WC70-716,31/07/2016,Social Care & Inclusion,CALDMORE AREA HOUSING ASS LTD,07/07/2016,"2,533.04",73373-RESIDENTIAL & NURSING CARE PLACEMENTS,MH COMMISSIONING,Third Party Payments,,Revenue
Walsall Council,http://opendatacommunities.org/id/metropolitan-district-council/walsall,WC70-717,31/07/2016,Social Care & Inclusion,CALDMORE AREA HOUSING ASS LTD,07/07/2016,"2,533.04",73373-RESIDENTIAL & NURSING CARE PLACEMENTS,MH COMMISSIONING,Third Party Payments,,Revenue
Walsall Council,http://opendatacommunities.org/id/metropolitan-district-council/walsall,WC70-718,31/07/2016,Social Care & Inclusion,CALDMORE AREA HOUSING ASS LTD,07/07/2016,"2,533.04",73373-RESIDENTIAL & NURSING CARE PLACEMENTS,MH COMMISSIONING,Third Party Payments,,Revenue
Walsall Council,http://opendatacommunities.org/id/metropolitan-district-council/walsall,WC70-719,31/07/2016,Social Care & Inclusion,CALDMORE AREA HOUSING ASS LTD,20/07/2016,"3,166.30",73373-RESIDENTIAL & NURSING CARE PLACEMENTS,MH COMMISSIONING,Third Party Payments,,Revenue
Walsall Council,http://opendatacommunities.org/id/metropolitan-district-council/walsall,WC70-720,31/07/2016,Social Care & Inclusion,CALDMORE AREA HOUSING ASS LTD,20/07/2016,"3,166.30",73373-RESIDENTIAL & NURSING CARE PLACEMENTS,MH COMMISSIONING,Third Party Payments,,Revenue
Walsall Council,http://opendatacommunities.org/id/metropolitan-district-council/walsall,WC70-721,31/07/2016,Social Care & Inclusion,CALDMORE AREA HOUSING ASS LTD,20/07/2016,"3,166.30",73373-RESIDENTIAL & NURSING CARE PLACEMENTS,MH COMMISSIONING,Third Party Payments,,Revenue
Walsall Council,http://opendatacommunities.org/id/metropolitan-district-council/walsall,WC70-722,31/07/2016,Social Care & Inclusion,CALDMORE AREA HOUSING ASS LTD,20/07/2016,"3,166.30",73373-RESIDENTIAL & NURSING CARE PLACEMENTS,MH COMMISSIONING,Third Party Payments,,Revenue
Walsall Council,http://opendatacommunities.org/id/metropolitan-district-council/walsall,WC70-723,31/07/2016,Social Care & Inclusion,CALDMORE AREA HOUSING ASS LTD,20/07/2016,"3,166.30",73373-RESIDENTIAL & NURSING CARE PLACEMENTS,MH COMMISSIONING,Third Party Payments,,Revenue
Walsall Council,http://opendatacommunities.org/id/metropolitan-district-council/walsall,WC70-724,31/07/2016,Social Care & Inclusion,CALDMORE AREA HOUSING ASS LTD,20/07/2016,"3,166.30",73373-RESIDENTIAL & NURSING CARE PLACEMENTS,MH COMMISSIONING,Third Party Payments,,Revenue
Walsall Council,http://opendatacommunities.org/id/metropolitan-district-council/walsall,WC70-725,31/07/2016,Social Care & Inclusion,CALDMORE AREA HOUSING ASS LTD,26/07/2016,"3,166.30",73373-RESIDENTIAL & NURSING CARE PLACEMENTS,MH COMMISSIONING,Third Party Payments,,Revenue
Walsall Council,http://opendatacommunities.org/id/metropolitan-district-council/walsall,WC70-726,31/07/2016,Social Care & Inclusion,CALDMORE AREA HOUSING ASS LTD,26/07/2016,"3,166.30",73373-RESIDENTIAL & NURSING CARE PLACEMENTS,MH COMMISSIONING,Third Party Payments,,Revenue
Walsall Council,http://opendatacommunities.org/id/metropolitan-district-council/walsall,WC70-727,31/07/2016,Social Care & Inclusion,CALDMORE AREA HOUSING ASS LTD,26/07/2016,"3,166.30",73373-RESIDENTIAL & NURSING CARE PLACEMENTS,MH COMMISSIONING,Third Party Payments,,Revenue
Walsall Council,http://opendatacommunities.org/id/metropolitan-district-council/walsall,WC70-728,31/07/2016,Childrens,REDACTED,04/07/2016,372.84,74006-HOLIDAY/CHRISTMAS ALLOWANCE-FOSTER CARERS-OTH AGENCY PROVISION,INTERNAL FOSTER CARE PROVISION,Third Party Payments,,Revenue
Walsall Council,http://opendatacommunities.org/id/metropolitan-district-council/walsall,WC70-729,31/07/2016,Childrens,REDACTED,12/07/2016,287.70,76422-DIRECT PAYMENTS TO SOCIAL SERVICES CLIENTS,FAMILY SUPPORT - DIRECT PAYMENTS,Transfer Payments,,Revenue
Walsall Council,http://opendatacommunities.org/id/metropolitan-district-council/walsall,WC70-730,31/07/2016,Childrens,CAMBIAN CHILDCARE LIMITED,06/07/2016,"3,049.50",74037-INDEPENDENT FOSTER CARE-OTH AGENCY PROVISION,EXTERNAL FOSTER CARE PROVISION,Third Party Payments,,Revenue
Walsall Council,http://opendatacommunities.org/id/metropolitan-district-council/walsall,WC70-731,31/07/2016,Childrens,CAMBIAN CHILDCARE LIMITED,06/07/2016,"3,192.86",74037-INDEPENDENT FOSTER CARE-OTH AGENCY PROVISION,EXTERNAL FOSTER CARE PROVISION,Third Party Payments,,Revenue
Walsall Council,http://opendatacommunities.org/id/metropolitan-district-council/walsall,WC70-732,31/07/2016,Childrens,CAMBIAN CHILDCARE LIMITED,06/07/2016,"3,253.20",74037-INDEPENDENT FOSTER CARE-OTH AGENCY PROVISION,EXTERNAL FOSTER CARE PROVISION,Third Party Payments,,Revenue
Walsall Council,http://opendatacommunities.org/id/metropolitan-district-council/walsall,WC70-733,31/07/2016,Childrens,CAMBIAN CHILDCARE LIMITED,06/07/2016,"4,789.29",74037-INDEPENDENT FOSTER CARE-OTH AGENCY PROVISION,EXTERNAL FOSTER CARE PROVISION,Third Party Payments,,Revenue
Walsall Council,http://opendatacommunities.org/id/metropolitan-district-council/walsall,WC70-734,31/07/2016,Social Care & Inclusion,REDACTED,12/07/2016,"3,600.00",76422-DIRECT PAYMENTS TO SOCIAL SERVICES CLIENTS,YADS COMMISSIONING,Transfer Payments,,Revenue
Walsall Council,http://opendatacommunities.org/id/metropolitan-district-council/walsall,WC70-735,31/07/2016,Economy & Environment,CANNOCK TACHOGRAPH CENTRE LTD,01/07/2016,595.00,73025-PROFESSIONAL SERVICES-PRIV CONTRACTOR & OTHER AGENCIES,FLEET,Third Party Payments,,Revenue
Walsall Council,http://opendatacommunities.org/id/metropolitan-district-council/walsall,WC70-736,31/07/2016,Change and Governance,CAPITA BUSINESS SERVICES LTD 001,06/07/2016,359.00,64001-COURSE/CONFERENCE EXPENSES,LEARNING & MANAGEMENT DEVELOPMENT,Supplies & Services,,Revenue
Walsall Council,http://opendatacommunities.org/id/metropolitan-district-council/walsall,WC70-737,31/07/2016,Change and Governance,CAPITA SPECIALIST INSURANCE SOLUTIONS,08/07/2016,"6,966.27",67000-MISC INSURANCES - INSURANCE PREMIUMS,RISK & INSURANCE,Supplies & Services,,Revenue
Walsall Council,http://opendatacommunities.org/id/metropolitan-district-council/walsall,WC70-738,31/07/2016,Social Care & Inclusion,CARE 2 U LIMITED,20/07/2016,"41,560.34",73372-DOMICILIARY CARE,OP COMMISSIONING,Third Party Payments,,Revenue
Walsall Council,http://opendatacommunities.org/id/metropolitan-district-council/walsall,WC70-739,31/07/2016,Childrens,CARE 4 CHILDREN RESIDENTIAL SERVICES LTD,14/07/2016,"17,050.00",74036-EXTERNAL RESIDENTIAL CARE-OTH AGENCY PROVISION,INDEPENDENT RESIDENTIAL HOMES,Third Party Payments,,Revenue
Walsall Council,http://opendatacommunities.org/id/metropolitan-district-council/walsall,WC70-740,31/07/2016,Social Care & Inclusion,CARE AVENUES LTD,01/07/2016,267.00,73372-DOMICILIARY CARE,OP COMMISSIONING,Third Party Payments,,Revenue
Walsall Council,http://opendatacommunities.org/id/metropolitan-district-council/walsall,WC70-741,31/07/2016,Social Care & Inclusion,CARE AVENUES LTD,20/07/2016,"11,105.25",73372-DOMICILIARY CARE,OP COMMISSIONING,Third Party Payments,,Revenue
Walsall Council,http://opendatacommunities.org/id/metropolitan-district-council/walsall,WC70-742,31/07/2016,Social Care & Inclusion,CARE FIRST MANAGEMENT SERVICES LTD,13/07/2016,780.00,73372-DOMICILIARY CARE,YADS COMMISSIONING,Third Party Payments,,Revenue
Walsall Council,http://opendatacommunities.org/id/metropolitan-district-council/walsall,WC70-743,31/07/2016,Social Care & Inclusion,CARE FIRST MANAGEMENT SERVICES LTD,27/07/2016,780.00,73372-DOMICILIARY CARE,YADS COMMISSIONING,Third Party Payments,,Revenue
Walsall Council,http://opendatacommunities.org/id/metropolitan-district-council/walsall,WC70-744,31/07/2016,Childrens,CARE LEAVERS,27/07/2016,67.99,63114-OTHER FEES & LICENCES-SERVICES-FEES,TRANSITION AND LEAVING CARE,Supplies & Services,,Revenue
Walsall Council,http://opendatacommunities.org/id/metropolitan-district-council/walsall,WC70-745,31/07/2016,Childrens,CARE LEAVERS,27/07/2016,415.17,76010-ACCOMMODATION AND RELATED COSTS-ASSISTANCE TO S/S CLIENTS,TRANSITION AND LEAVING CARE,Transfer Payments,,Revenue
Walsall Council,http://opendatacommunities.org/id/metropolitan-district-council/walsall,WC70-746,31/07/2016,Childrens,CARE LEAVERS,27/07/2016,"3,050.23",64002-OTHER EXPENSES-EXPENSES,TRANSITION AND LEAVING CARE,Supplies & Services,,Revenue
Walsall Council,http://opendatacommunities.org/id/metropolitan-district-council/walsall,WC70-747,31/07/2016,Childrens,CARE LEAVERS,27/07/2016,"4,168.80",76400-RESIDENTS PERSONAL EXPENSES-ALLOWANCES TO S/S CLIENTS,TRANSITION AND LEAVING CARE,Transfer Payments,,Revenue
Walsall Council,http://opendatacommunities.org/id/metropolitan-district-council/walsall,WC70-748,31/07/2016,Childrens,CARE LEAVERS,27/07/2016,"7,073.47",74500-CARE LEAVERS MTCE PAYMENTS,TRANSITION AND LEAVING CARE,Third Party Payments,,Revenue
Walsall Council,http://opendatacommunities.org/id/metropolitan-district-council/walsall,WC70-749,31/07/2016,Social Care & Inclusion,CARE SHOP,08/07/2016,213.24,60539-CLEANING MATERIALS,REABLEMENT TEAM - HOLLY BANK,Supplies & Services,,Revenue
Walsall Council,http://opendatacommunities.org/id/metropolitan-district-council/walsall,WC70-750,31/07/2016,Social Care & Inclusion,CARE SHOP,15/07/2016,268.50,60539-CLEANING MATERIALS,COMMUNITY INTERMEDIATE CARE,Supplies & Services,,Revenue
Walsall Council,http://opendatacommunities.org/id/metropolitan-district-council/walsall,WC70-751,31/07/2016,Social Care & Inclusion,CARE SHOP,15/07/2016,663.68,60539-CLEANING MATERIALS,REABLEMENT TEAM - HOLLY BANK,Supplies & Services,,Revenue
Walsall Council,http://opendatacommunities.org/id/metropolitan-district-council/walsall,WC70-752,31/07/2016,Childrens,CARE TODAY CHILDRENS SERVICES,08/07/2016,"11,121.30",74036-EXTERNAL RESIDENTIAL CARE-OTH AGENCY PROVISION,INDEPENDENT RESIDENTIAL HOMES,Third Party Payments,,Revenue
Walsall Council,http://opendatacommunities.org/id/metropolitan-district-council/walsall,WC70-753,31/07/2016,Childrens,CARE TODAY CHILDRENS SERVICES,08/07/2016,"11,121.30",74036-EXTERNAL RESIDENTIAL CARE-OTH AGENCY PROVISION,INDEPENDENT RESIDENTIAL HOMES,Third Party Payments,,Revenue
Walsall Council,http://opendatacommunities.org/id/metropolitan-district-council/walsall,WC70-754,31/07/2016,Childrens,CARE TODAY CHILDRENS SERVICES,08/07/2016,"13,641.30",74036-EXTERNAL RESIDENTIAL CARE-OTH AGENCY PROVISION,INDEPENDENT RESIDENTIAL HOMES,Third Party Payments,,Revenue
Walsall Council,http://opendatacommunities.org/id/metropolitan-district-council/walsall,WC70-755,31/07/2016,Childrens,CAREFIRST SERVICES LIMITED,27/07/2016,"1,757.40",76010-ACCOMMODATION AND RELATED COSTS-ASSISTANCE TO S/S CLIENTS,TRANSITION AND LEAVING CARE,Transfer Payments,,Revenue
Walsall Council,http://opendatacommunities.org/id/metropolitan-district-council/walsall,WC70-756,31/07/2016,Childrens,CAREFIRST SERVICES LIMITED,27/07/2016,"1,885.80",76010-ACCOMMODATION AND RELATED COSTS-ASSISTANCE TO S/S CLIENTS,TRANSITION AND LEAVING CARE,Transfer Payments,,Revenue
Walsall Council,http://opendatacommunities.org/id/metropolitan-district-council/walsall,WC70-757,31/07/2016,Social Care & Inclusion,CAREVIEW SERVICES LTD,26/07/2016,"6,802.80",73373-RESIDENTIAL & NURSING CARE PLACEMENTS,LD COMMISSIONING,Third Party Payments,,Revenue
Walsall Council,http://opendatacommunities.org/id/metropolitan-district-council/walsall,WC70-758,31/07/2016,Social Care & Inclusion,CARING CARE LIMITED,19/07/2016,"61,486.32",73372-DOMICILIARY CARE,OP COMMISSIONING,Third Party Payments,,Revenue
Walsall Council,http://opendatacommunities.org/id/metropolitan-district-council/walsall,WC70-759,31/07/2016,Social Care & Inclusion,CARING HANDS LIMITED,20/07/2016,"50,169.02",73372-DOMICILIARY CARE,OP COMMISSIONING,Third Party Payments,,Revenue
Walsall Council,http://opendatacommunities.org/id/metropolitan-district-council/walsall,WC70-760,31/07/2016,Childrens,REDACTED,14/07/2016,776.10,66505-OTHER-GRANTS TO OTHER ORGS,EARLY YEARS - 3 YR OLDS,Third Party Payments,,Revenue
Walsall Council,http://opendatacommunities.org/id/metropolitan-district-council/walsall,WC70-761,31/07/2016,Social Care & Inclusion,REDACTED,12/07/2016,450.00,76422-DIRECT PAYMENTS TO SOCIAL SERVICES CLIENTS,YADS COMMISSIONING,Transfer Payments,,Revenue
Walsall Council,http://opendatacommunities.org/id/metropolitan-district-council/walsall,WC70-762,31/07/2016,Childrens,REDACTED,08/07/2016,531.62,74023-SHORT TERM BREAKS,INTERNAL FOSTER CARE PROVISION,Third Party Payments,,Revenue
Walsall Council,http://opendatacommunities.org/id/metropolitan-district-council/walsall,WC70-763,31/07/2016,Childrens,REDACTED,18/07/2016,470.96,74006-HOLIDAY/CHRISTMAS ALLOWANCE-FOSTER CARERS-OTH AGENCY PROVISION,INTERNAL FOSTER CARE PROVISION,Third Party Payments,,Revenue
Walsall Council,http://opendatacommunities.org/id/metropolitan-district-council/walsall,WC70-764,31/07/2016,Childrens,REDACTED,18/07/2016,540.20,62515-MISCELLANEOUS SUPPLIES,INTERNAL FOSTER CARE PROVISION,Supplies & Services,,Revenue
Walsall Council,http://opendatacommunities.org/id/metropolitan-district-council/walsall,WC70-765,31/07/2016,Childrens,REDACTED,04/07/2016,361.12,74006-HOLIDAY/CHRISTMAS ALLOWANCE-FOSTER CARERS-OTH AGENCY PROVISION,INTERNAL FOSTER CARE PROVISION,Third Party Payments,,Revenue
Walsall Council,http://opendatacommunities.org/id/metropolitan-district-council/walsall,WC70-766,31/07/2016,Childrens,REDACTED,04/07/2016,760.43,63000-PROFESSIONAL FEES AND SERVICES,SAFEGUARDING & FAMILY SUPPORT,Supplies & Services,,Revenue
Walsall Council,http://opendatacommunities.org/id/metropolitan-district-council/walsall,WC70-767,31/07/2016,Childrens,REDACTED,05/07/2016,"2,276.00",63000-PROFESSIONAL FEES AND SERVICES,SAFEGUARDING & FAMILY SUPPORT,Supplies & Services,,Revenue
Walsall Council,http://opendatacommunities.org/id/metropolitan-district-council/walsall,WC70-768,31/07/2016,Economy & Environment,CARTER SYNERGY LTD,05/07/2016,"2,152.80",40216-OTHER-PLAN MTCE,NAG - MAINTENANCE,Premises,,Revenue
Walsall Council,http://opendatacommunities.org/id/metropolitan-district-council/walsall,WC70-769,31/07/2016,Economy & Environment,CARTER SYNERGY LTD,18/07/2016,"5,316.00",40013-LIFTS-OP MTCE,NAG - REFURBISHMENTS,Premises,,Revenue
